Report Type,Report Period,Body Name,Service Label,Service Code,Service Divison Label,Service Divison Code,Supplier Name,Expenditure Category,Expenditure Code,Date,Transaction Number,Net Amount,Merchant Category,Merchant Category Code
Expenditure - Over 500,2016 09,Worcestershire County Council,Adult Services & Health,AC-PROFIT,Domiciliary Spot - OP,S33414,A & M BEWDLEY CARE SERVICES LTD,Third Party Payments Dom Care Frm Independent Prov,53669,30/12/2016,7320561782,612.2,,
Expenditure - Over 500,2016 09,Worcestershire County Council,Adult Services & Health,AC-PROFIT,Domiciliary Spot - OP,S33414,A & M BEWDLEY CARE SERVICES LTD,Third Party Payments Dom Care Frm Independent Prov,53669,12/12/2016,7320555645,563.6,,
Expenditure - Over 500,2016 09,Worcestershire County Council,Adult Services & Health,AC-PROFIT,Domiciliary Spot - OP,S33414,A & M BEWDLEY CARE SERVICES LTD,Third Party Payments Dom Care Frm Independent Prov,53669,22/12/2016,7320559321,576.6,,
Expenditure - Over 500,2016 09,Worcestershire County Council,Adult Services & Health,AC-PROFIT,Domiciliary Spot - OP,S33414,A & M BEWDLEY CARE SERVICES LTD,Third Party Payments Dom Care Frm Independent Prov,53669,12/12/2016,7320555636,569.6,,
Expenditure - Over 500,2016 09,Worcestershire County Council,Adult Services & Health,AC-PROFIT,Domiciliary Spot - OP,S33414,A & M BEWDLEY CARE SERVICES LTD,Third Party Payments Dom Care Frm Independent Prov,53669,08/12/2016,7320553759,612.2,,
Expenditure - Over 500,2016 09,Worcestershire County Council,Children's Services,CH-PROFIT,DSG- Independ't Special Schls Fees Pre16,E24001,ABBERLEY HALL LTD,Third Party Pymts Vol Assoc Indepen. Spec Sch Fees,53655,06/12/2016,4101615353,11557,,
Expenditure - Over 500,2016 09,Worcestershire County Council,Children's Services,CH-PROFIT,DSG- Independ't Special Schls Fees Pre16,E24001,ABBERLEY HALL LTD,Third Party Pymts Vol Assoc Indepen. Spec Sch Fees,53655,12/12/2016,4101612408,6890.5,,
Expenditure - Over 500,2016 09,Worcestershire County Council,Adult Services & Health,AC-PROFIT,Domiciliary Spot - OP,S33414,A & M BEWDLEY CARE SERVICES LTD,Third Party Payments Dom Care Frm Independent Prov,53669,23/12/2016,7320560269,612.2,,
Expenditure - Over 500,2016 09,Worcestershire County Council,Adult Services & Health,AC-PROFIT,Domiciliary Spot - OP,S33414,A & M BEWDLEY CARE SERVICES LTD,Third Party Payments Dom Care Frm Independent Prov,53669,08/12/2016,7320553770,563.6,,
Expenditure - Over 500,2016 09,Worcestershire County Council,Non Directorate Specific,LA01,ICT Managed Service (Infra Refresh),CA87591,INSIGHT DIRECT (UK) LTD,CAPEX IT Equipment,65202,19/12/2016,4101622820,13143,,
Expenditure - Over 500,2016 09,Worcestershire County Council,Resources,CS-PROFIT,ICT - Management,C40070,INSIGHT DIRECT (UK) LTD,Computing Hardware,50307,30/12/2016,4101624255,1546.5,,
Expenditure - Over 500,2016 09,Worcestershire County Council,Children's Services,CH-PROFIT,Early Years - 2 year old funding,E23050,ABACUS NURSERY SCHOOL,Third Party Pymts 4Yr Old Nursery Education Grant,53657,05/12/2016,7200027203,2175,,
Expenditure - Over 500,2016 09,Worcestershire County Council,Adult Services & Health,AC-PROFIT,North Supported Living Scheme,S31367,ADVANCE HOUSING AND SUPPORT LTD,Third Party Payments Purchase of Long Term Care,53667,22/12/2016,7310429430,3022.72,,
Expenditure - Over 500,2016 09,Worcestershire County Council,Adult Services & Health,AC-PROFIT,North Supported Living Scheme,S31367,ADVANCE HOUSING AND SUPPORT LTD,Third Party Payments Purchase of Long Term Care,53667,22/12/2016,7310429432,3022.72,,
Expenditure - Over 500,2016 09,Worcestershire County Council,Children's Services,CH-PROFIT,Early Years - 2 year old funding,E23050,ABBERLEY PRESCHOOL,Third Party Pymts 4Yr Old Nursery Education Grant,53657,05/12/2016,7200027205,567,,
Expenditure - Over 500,2016 09,Worcestershire County Council,Adult Services & Health,AC-PROFIT,Houisng Adaptations/Repairs,S42090,AGE UK HRFDS & WORCS,Third Party Payments External Provider,54044,23/12/2016,4101624398,24500,,
Expenditure - Over 500,2016 09,Worcestershire County Council,Adult Services & Health,AC-PROFIT,LT Residential - OP,S35341,ALBION LODGE RESIDENTIAL HOME,Receipts Sales Long Term Residents,67047,22/12/2016,7310430030,1172.38,,
Expenditure - Over 500,2016 09,Worcestershire County Council,Adult Services & Health,AC-PROFIT,LT Residential - OP,S35341,ALBION LODGE RESIDENTIAL HOME,Third Party Payments Purchase of Long Term Care,53667,22/12/2016,7310430108,1229.24,,
Expenditure - Over 500,2016 09,Worcestershire County Council,Adult Services & Health,AC-PROFIT,North Supported Living Scheme,S31367,ADVANCE HOUSING AND SUPPORT LTD,Third Party Payments Purchase of Long Term Care,53667,22/12/2016,7310429442,3022.72,,
Expenditure - Over 500,2016 09,Worcestershire County Council,Adult Services & Health,AC-PROFIT,North Supported Living Scheme,S31367,ADVANCE HOUSING AND SUPPORT LTD,Third Party Payments Purchase of Long Term Care,53667,22/12/2016,7310429562,1035.4,,
Expenditure - Over 500,2016 09,Worcestershire County Council,Adult Services & Health,AC-PROFIT,North Supported Living Scheme,S31367,ADVANCE HOUSING AND SUPPORT LTD,Third Party Payments Purchase of Long Term Care,53667,22/12/2016,7310429564,1035.4,,
Expenditure - Over 500,2016 09,Worcestershire County Council,Adult Services & Health,AC-PROFIT,North Supported Living Scheme,S31367,ADVANCE HOUSING AND SUPPORT LTD,Third Party Payments Purchase of Long Term Care,53667,22/12/2016,7310429574,1035.4,,
Expenditure - Over 500,2016 09,Worcestershire County Council,Adult Services & Health,AC-PROFIT,North Supported Living Scheme,S31367,ADVANCE HOUSING AND SUPPORT LTD,Third Party Payments Purchase of Long Term Care,53667,22/12/2016,7310429578,1035.4,,
Expenditure - Over 500,2016 09,Worcestershire County Council,Adult Services & Health,AC-PROFIT,North Supported Living Scheme,S31367,ADVANCE HOUSING AND SUPPORT LTD,Third Party Payments Purchase of Long Term Care,53667,22/12/2016,7310429596,1035.4,,
Expenditure - Over 500,2016 09,Worcestershire County Council,Adult Services & Health,AC-PROFIT,LT Residential - PD,S35441,ADVANCE HOUSING AND SUPPORT LTD,Third Party Payments Purchase of Long Term Care,53667,22/12/2016,7310429612,1035.4,,
Expenditure - Over 500,2016 09,Worcestershire County Council,Adult Services & Health,AC-PROFIT,South Supportd Living Scheme,S35501,ADVANCE HOUSING AND SUPPORT LTD,Third Party Payments Purchase of Long Term Care,53667,22/12/2016,7310429632,1033,,
Expenditure - Over 500,2016 09,Worcestershire County Council,Adult Services & Health,AC-PROFIT,North Supported Living Scheme,S31367,ADVANCE HOUSING AND SUPPORT LTD,Third Party Payments Purchase of Long Term Care,53667,22/12/2016,7310429636,1035.4,,
Expenditure - Over 500,2016 09,Worcestershire County Council,Adult Services & Health,AC-PROFIT,North Supported Living Scheme,S31367,ADVANCE HOUSING AND SUPPORT LTD,Third Party Payments Purchase of Long Term Care,53667,22/12/2016,7310429650,1035.44,,
Expenditure - Over 500,2016 09,Worcestershire County Council,Adult Services & Health,AC-PROFIT,South Worcester Residential LD,S35551,ALPHAGRANGE LTD,Receipts Sales Long Term Residents,67047,22/12/2016,7310429752,1919.88,,
Expenditure - Over 500,2016 09,Worcestershire County Council,Adult Services & Health,AC-PROFIT,South Worcester Residential LD,S35551,ALPHAGRANGE LTD,Receipts Sales Long Term Residents,67047,22/12/2016,7310429754,1919.88,,
Expenditure - Over 500,2016 09,Worcestershire County Council,Adult Services & Health,AC-PROFIT,ST Residential - OP,S35343,ANCHOR,TPP Purchase of Planned Replacement Care,53666,22/12/2016,7310430678,873,,
Expenditure - Over 500,2016 09,Worcestershire County Council,Adult Services & Health,AC-PROFIT,South Worcester Residential LD,S35551,ALPHAGRANGE LTD,Receipts Sales Long Term Residents,67047,22/12/2016,7310429750,1919.88,,
Expenditure - Procurement Card,2016 09,Worcestershire County Council,Children's Services,CH-PROFIT,Hill View Short Breaks Unit,E31607,ARGOS,Equipment & Furniture,49001,22/12/2016,4600147070,20.83,DISCOUNT STORES,5310
Expenditure - Over 500,2016 09,Worcestershire County Council,Children's Services,CH-PROFIT,Early Years - 2 year old funding,E23050,ASCENSION NURSERY,Third Party Pymts 4Yr Old Nursery Education Grant,53657,05/12/2016,7200027347,3871,,
Expenditure - Over 500,2016 09,Worcestershire County Council,Adult Services & Health,AC-PROFIT,South Worcester Residential LD,S35551,ARDEN HOUSE,Receipts Sales Long Term Residents,67047,22/12/2016,7310429236,1591.32,,
Expenditure - Over 500,2016 09,Worcestershire County Council,Adult Services & Health,AC-PROFIT,North Worcs Residential LD (Wyre Forest),S35511,ARDEN HOUSE,Third Party Payments Purchase of Long Term Care,53667,22/12/2016,7310429246,1936.76,,
Expenditure - Over 500,2016 09,Worcestershire County Council,Adult Services & Health,AC-PROFIT,LT Residential - PD,S35441,ARDEN HOUSE,Third Party Payments Purchase of Long Term Care,53667,22/12/2016,7310429282,4094.08,,
Expenditure - Over 500,2016 09,Worcestershire County Council,Adult Services & Health,AC-PROFIT,North Worcs Residential LD (Wyre Forest),S35511,ARDEN HOUSE,Receipts Sales Long Term Residents,67047,22/12/2016,7310429352,2137.2,,
Expenditure - Over 500,2016 09,Worcestershire County Council,Adult Services & Health,AC-PROFIT,North Worcs Residential LD (Wyre Forest),S35511,ARDEN HOUSE,Receipts Sales Long Term Residents,67047,22/12/2016,7310429354,2137.2,,
Expenditure - Over 500,2016 09,Worcestershire County Council,Adult Services & Health,AC-PROFIT,North Worcs Residential LD (Wyre Forest),S35511,ARDEN HOUSE,Third Party Payments Purchase of Long Term Care,53667,22/12/2016,7310429392,2501.32,,
Expenditure - Over 500,2016 09,Worcestershire County Council,Adult Services & Health,AC-PROFIT,South Worcester Residential LD,S35551,ARDEN HOUSE,Third Party Payments Purchase of Long Term Care,53667,22/12/2016,7310429502,3339,,
Expenditure - Procurement Card,2016 09,Worcestershire County Council,Adult Services & Health,AC-LDDAYC,Bromsgrove Hub,S31690,ARGOS LTD,Equipment & Furniture,49001,02/12/2016,4600144146,36.22,DISCOUNT STORES,5310
Expenditure - Procurement Card,2016 09,Worcestershire County Council,Children's Services,CH-PROFIT,Orchardene Children's Home,E31608,ARGOS LTD,Services Personal Needs,50062,02/12/2016,4600144042,24.99,DISCOUNT STORES,5310
Expenditure - Procurement Card,2016 09,Worcestershire County Council,Adult Services & Health,AC-PROFIT,The Woodlands,S35518,ARGOS LTD,Repairs & Maintenance Buildings  Security Mea,42012,04/12/2016,4600144415,23.86,DISCOUNT STORES,5310
Expenditure - Procurement Card,2016 09,Worcestershire County Council,Children's Services,CH-PROFIT,S17 Care Leavers Team,E36604,ARGOS RETAIL GROUP,Care Grants,51006,08/12/2016,4600145397,137.49,DISCOUNT STORES,5310
Expenditure - Procurement Card,2016 09,Worcestershire County Council,Adult Services & Health,AC-PROFIT,PD CONNECT WORCESTER,S31574,ARGOS LTD,Repairs & Maintenance Buildings General Expen,42001,09/12/2016,4600145294,83.33,DISCOUNT STORES,5310
Expenditure - Procurement Card,2016 09,Worcestershire County Council,Adult Services & Health,AC-PROFIT,Howbury Pickersleigh Rd Malvern,S31764,ARGOS RETAIL GROUP,Equipment & Furniture,49001,12/12/2016,4600145743,14.16,DISCOUNT STORES,5310
Expenditure - Procurement Card,2016 09,Worcestershire County Council,Children's Services,CH-PROFIT,"S17 Warndon, Tolladine, W Villages",E36516,ARGOS RETAIL GROUP,Services Other Fees,50035,12/12/2016,4600145881,28.28,DISCOUNT STORES,5310
Expenditure - Procurement Card,2016 09,Worcestershire County Council,Children's Services,CH-PROFIT,Orchardene Children's Home,E31608,ARGOS LTD,Medical Requisites,49014,13/12/2016,4600145930,16.66,DISCOUNT STORES,5310
Expenditure - Procurement Card,2016 09,Worcestershire County Council,Children's Services,CH-PROFIT,Hill View Short Breaks Unit,E31607,ARGOS,Equipment & Furniture,49001,13/12/2016,4600145726,29.16,DISCOUNT STORES,5310
Expenditure - Procurement Card,2016 09,Worcestershire County Council,Children's Services,CH-PROFIT,Transformation Challenge Award,E23044,ARGOS RETAIL GROUP,Services Aids & Appliances,50033,14/12/2016,4600146087,29.98,DISCOUNT STORES,5310
Expenditure - Procurement Card,2016 09,Worcestershire County Council,Children's Services,CH-PROFIT,S17 Care Leavers Team,E36604,ARGOS LTD,Care Grants,51006,14/12/2016,4600146067,119.95,DISCOUNT STORES,5310
Expenditure - Procurement Card,2016 09,Worcestershire County Council,Children's Services,CH-PROFIT,S17 Care Leavers Team,E36604,ARGOS LTD,Care Grants,51006,14/12/2016,4600146050,133.33,DISCOUNT STORES,5310
Expenditure - Procurement Card,2016 09,Worcestershire County Council,Children's Services,CH-PROFIT,"S17 Warndon, Tolladine, W Villages",E36516,ARGOS LTD,Services Other Fees,50035,14/12/2016,4600146168,49.99,DISCOUNT STORES,5310
Expenditure - Procurement Card,2016 09,Worcestershire County Council,"Business, Environment & Community",EN-PROFIT,"Management, Admin, Professional & E",V40100,ARGOS LTD,Materials Chemical & Apparatus,49055,14/12/2016,4600146158,49.99,DISCOUNT STORES,5310
Expenditure - Procurement Card,2016 09,Worcestershire County Council,Children's Services,CH-PROFIT,Oak House EBD Unit,E31765,ARGOS LTD,Equipment,48601,15/12/2016,4600146200,41.7,DISCOUNT STORES,5310
Expenditure - Procurement Card,2016 09,Worcestershire County Council,Children's Services,CH-PROFIT,Green Hill Lodge,E31761,ARGOS LTD,Equipment & Furniture,49001,16/12/2016,4600146395,4.98,DISCOUNT STORES,5310
Expenditure - Procurement Card,2016 09,Worcestershire County Council,Children's Services,CH-PROFIT,Hill View Short Breaks Unit,E31607,ARGOS,Equipment,48601,20/12/2016,4600146753,13.33,DISCOUNT STORES,5310
Expenditure - Procurement Card,2016 09,Worcestershire County Council,Children's Services,CH-PROFIT,Vale Of Evesham Repite Home,E31609,ARGOS RETAIL GROUP,Services Out Of School Activities,50060,20/12/2016,4600146816,124.99,DISCOUNT STORES,5310
Expenditure - Procurement Card,2016 09,Worcestershire County Council,Children's Services,CH-PROFIT,Green Hill Lodge,E31761,ARGOS RETAIL GROUP,Services Birthday & Christmas Gifts,50058,20/12/2016,4600146850,41.66,DISCOUNT STORES,5310
Expenditure - Procurement Card,2016 09,Worcestershire County Council,Children's Services,CH-PROFIT,Rivendell Residential Unit,E31767,ARGOS RETAIL GROUP,Services Birthday & Christmas Gifts,50058,20/12/2016,4600146863,28.94,DISCOUNT STORES,5310
Expenditure - Procurement Card,2016 09,Worcestershire County Council,Adult Services & Health,AC-LDDAYC,Redditch Hub,S31694,ARGOS LTD,Mobile Communications,50320,21/12/2016,4600146804,37.49,DISCOUNT STORES,5310
Expenditure - Procurement Card,2016 09,Worcestershire County Council,Adult Services & Health,AC-LDDAYC,Redditch Hub,S31694,ARGOS LTD,Mobile Communications,50320,21/12/2016,4600146805,37.49,DISCOUNT STORES,5310
Expenditure - Procurement Card,2016 09,Worcestershire County Council,Adult Services & Health,AC-LDDAYC,Wyre Forest Resource Centre,S31693,ARGOS LTD,Equipment & Furniture,49001,21/12/2016,4600146810,20.83,DISCOUNT STORES,5310
Expenditure - Procurement Card,2016 09,Worcestershire County Council,Non Directorate Specific,LA01,Post 16 - Hillview Alterations,CA07534,ARGOS LTD,CAPEX Furniture & Equipment Furniture,65201,22/12/2016,4600147058,54.6,DISCOUNT STORES,5310
Expenditure - Procurement Card,2016 09,Worcestershire County Council,Children's Services,CH-PROFIT,Hill View Short Breaks Unit,E31607,ARGOS,Equipment,48601,22/12/2016,4600147069,20.83,DISCOUNT STORES,5310
Expenditure - Over 500,2016 09,Worcestershire County Council,Children's Services,CH-PROFIT,Secondary Home/School Transport,E10707,ASTONS COACHES LTD,PTG - Transport Tendered / Cont. Services,46021,08/12/2016,7190136137,2941.37,,
Expenditure - Over 500,2016 09,Worcestershire County Council,Children's Services,CH-PROFIT,Secondary Home/School Transport,E10707,ASTONS COACHES LTD,PTG - Transport Tendered / Cont. Services,46021,08/12/2016,7190136138,2941.37,,
Expenditure - Over 500,2016 09,Worcestershire County Council,Children's Services,CH-PROFIT,Secondary Home/School Transport,E10707,ASTONS COACHES LTD,PTG - Transport Tendered / Cont. Services,46021,08/12/2016,7190136139,2773.29,,
Expenditure - Procurement Card,2016 09,Worcestershire County Council,Children's Services,CH-PROFIT,32 Ploughmans Way Droitwich SL,E31808,ARGOS RETAIL GROUP,Equipment & Furniture,49001,29/12/2016,4600147273,308.93,DISCOUNT STORES,5310
Expenditure - Procurement Card,2016 09,Worcestershire County Council,Children's Services,CH-PROFIT,32 Ploughmans Way Droitwich SL,E31808,ARGOS LTD,Equipment & Furniture,49001,30/12/2016,4600147275,119.99,DISCOUNT STORES,5310
Expenditure - Procurement Card,2016 09,Worcestershire County Council,Children's Services,CH-PROFIT,Hill View Short Breaks Unit,E31607,ARGOS,Services Birthday & Christmas Gifts,50058,30/12/2016,4600147310,68.28,DISCOUNT STORES,5310
Expenditure - Procurement Card,2016 09,Worcestershire County Council,Children's Services,CH-PROFIT,"S20 Warndon Tolladine, W villages",E35516,ARGOS RETAIL GROUP,Fixtures & Fittings,44606,30/12/2016,4600147331,73.94,DISCOUNT STORES,5310
Expenditure - Procurement Card,2016 09,Worcestershire County Council,Children's Services,CH-PROFIT,Hill View Short Breaks Unit,E31607,ARGOS,Equipment & Furniture,49001,31/12/2016,4600147320,37.49,DISCOUNT STORES,5310
Expenditure - Over 500,2016 09,Worcestershire County Council,Adult Services & Health,AC-PROFIT,Equipment - Pooled Budgets,S31526,ARJOHUNTLEIGH UK,Equipment Adults SDD,49084,20/12/2016,4101622128,1294,,
Expenditure - Over 500,2016 09,Worcestershire County Council,Adult Services & Health,AC-PROFIT,Equipment - Pooled Budgets,S31526,ARJOHUNTLEIGH UK,Equipment Adults SDD,49084,20/12/2016,4101622129,458.8,,
Expenditure - Over 500,2016 09,Worcestershire County Council,"Business, Environment & Community",EN-DIR,Concessionary Fares Administration,V21015,ASTONS COACHES LTD,Third Party Pymnts Public Transport Operators,54005,12/12/2016,7190136169,1422.48,,
Expenditure - Over 500,2016 09,Worcestershire County Council,Adult Services & Health,AC-PROFIT,LD Transport (PTG) North,S34844,ARMCHAIR MINIBUSES,PTG - Transport Tendered / Cont. Services,46021,19/12/2016,7190136572,2478,,
Expenditure - Over 500,2016 09,Worcestershire County Council,Children's Services,CH-PROFIT,Short Breaks on framework,E31529,ARMCHAIR MINIBUSES,PTG - Transport Tendered / Cont. Services,46021,19/12/2016,7190136582,4444,,
Expenditure - Over 500,2016 09,Worcestershire County Council,Children's Services,CH-PROFIT,Short Breaks on framework,E31529,ARMCHAIR MINIBUSES,PTG - Transport Tendered / Cont. Services,46021,19/12/2016,7190136584,4378,,
Expenditure - Over 500,2016 09,Worcestershire County Council,Children's Services,CH-PROFIT,Kidderminster SB Unit,E31182,ARMCHAIR MINIBUSES,PTG - Transport Tendered / Cont. Services,46021,19/12/2016,7190136592,3146,,
Expenditure - Over 500,2016 09,Worcestershire County Council,Adult Services & Health,AC-PROFIT,Residential - MH,S35641,ASTON HOUSE,Third Party Payments Purchase of Long Term Care,53667,22/12/2016,7310429718,3060,,
Expenditure - Over 500,2016 09,Worcestershire County Council,Adult Services & Health,AC-PROFIT,Residential - MH,S35641,ASTON HOUSE,Third Party Payments Purchase of Long Term Care,53667,22/12/2016,7310429738,1271.28,,
Expenditure - Over 500,2016 09,Worcestershire County Council,Children's Services,CH-PROFIT,FE Home/College Transport,E20227,ASTONS COACHES LTD,PTG - Public Transport Bus,47514,01/12/2016,7190135973,2494,,
Expenditure - Over 500,2016 09,Worcestershire County Council,Children's Services,CH-PROFIT,Secondary Home/School Transport,E10707,ASTONS COACHES LTD,PTG - Transport Tendered / Cont. Services,46021,08/12/2016,7190136133,3216.72,,
Expenditure - Over 500,2016 09,Worcestershire County Council,Children's Services,CH-PROFIT,Secondary Home/School Transport,E10707,ASTONS COACHES LTD,PTG - Transport Tendered / Cont. Services,46021,08/12/2016,7190136134,3731.4,,
Expenditure - Over 500,2016 09,Worcestershire County Council,Children's Services,CH-PROFIT,Secondary Home/School Transport,E10707,ASTONS COACHES LTD,PTG - Transport Tendered / Cont. Services,46021,08/12/2016,7190136135,3731.4,,
Expenditure - Over 500,2016 09,Worcestershire County Council,Children's Services,CH-PROFIT,Secondary Home/School Transport,E10707,ASTONS COACHES LTD,PTG - Transport Tendered / Cont. Services,46021,08/12/2016,7190136136,4454.06,,
Expenditure - Procurement Card,2016 09,Worcestershire County Council,Children's Services,CH-PROFIT,Hill View Short Breaks Unit,E31607,ARGOS,Equipment & Furniture,49001,06/12/2016,4600144573,44.15,DISCOUNT STORES,5310
Expenditure - Procurement Card,2016 09,Worcestershire County Council,Children's Services,CH-PROFIT,Hill View Short Breaks Unit,E31607,ARGOS,Equipment & Furniture,49001,06/12/2016,4600144556,83.33,DISCOUNT STORES,5310
Expenditure - Procurement Card,2016 09,Worcestershire County Council,Children's Services,CH-PROFIT,Outreach support service,E31763,ARGOS RETAIL GROUP,Equipment & Furniture,49001,06/12/2016,4600144888,43.94,DISCOUNT STORES,5310
Expenditure - Procurement Card,2016 09,Worcestershire County Council,Children's Services,CH-PROFIT,Rivendell Residential Unit,E31767,ARGOS RETAIL GROUP,Services Birthday & Christmas Gifts,50058,06/12/2016,4600144940,29.99,DISCOUNT STORES,5310
Expenditure - Procurement Card,2016 09,Worcestershire County Council,Children's Services,CH-PROFIT,S17 Care Leavers Team,E36604,ARGOS LTD,Care Grants,51006,07/12/2016,4600144897,142.54,DISCOUNT STORES,5310
Expenditure - Procurement Card,2016 09,Worcestershire County Council,Children's Services,CH-PROFIT,Oak House EBD Unit,E31765,ARGOS LTD,Services Birthday & Christmas Gifts,50058,08/12/2016,4600144988,83.29,DISCOUNT STORES,5310
Expenditure - Procurement Card,2016 09,Worcestershire County Council,Children's Services,CH-PROFIT,Oak House EBD Unit,E31765,ARGOS LTD,Equipment,48601,08/12/2016,4600145026,24.16,DISCOUNT STORES,5310
Expenditure - Procurement Card,2016 09,Worcestershire County Council,Children's Services,CH-PROFIT,Hill View Short Breaks Unit,E31607,ARGOS LTD,Equipment & Furniture,49001,08/12/2016,4600145109,39.98,DISCOUNT STORES,5310
Expenditure - Procurement Card,2016 09,Worcestershire County Council,Children's Services,CH-PROFIT,Hill View Short Breaks Unit,E31607,ARGOS,Services Birthday & Christmas Gifts,50058,08/12/2016,4600145062,37.07,DISCOUNT STORES,5310
Expenditure - Over 500,2016 09,Worcestershire County Council,Children's Services,CH-PROFIT,Early Years - 2 year old funding,E23050,ASTWOOD BANK PRE- SCHOOL,Third Party Pymts 4Yr Old Nursery Education Grant,53657,05/12/2016,7200027213,1680,,
Expenditure - Over 500,2016 09,Worcestershire County Council,Children's Services,CH-PROFIT,Secondary Home/School Transport,E10707,ASTONS COACHES LTD,PTG - Transport Tendered / Cont. Services,46021,08/12/2016,7190136014,3600,,
Expenditure - Over 500,2016 09,Worcestershire County Council,Children's Services,CH-PROFIT,Secondary Home/School Transport,E10707,ASTONS COACHES LTD,PTG - Transport Tendered / Cont. Services,46021,08/12/2016,7190136076,1731.22,,
Expenditure - Over 500,2016 09,Worcestershire County Council,Children's Services,CH-PROFIT,Secondary Home/School Transport,E10707,ASTONS COACHES LTD,PTG - Transport Tendered / Cont. Services,46021,08/12/2016,7190136077,1644.86,,
Expenditure - Over 500,2016 09,Worcestershire County Council,Children's Services,CH-PROFIT,Secondary Home/School Transport,E10707,ASTONS COACHES LTD,PTG - Transport Tendered / Cont. Services,46021,08/12/2016,7190136078,2038.18,,
Expenditure - Over 500,2016 09,Worcestershire County Council,Children's Services,CH-PROFIT,Secondary Home/School Transport,E10707,ASTONS COACHES LTD,PTG - Transport Tendered / Cont. Services,46021,08/12/2016,7190136079,2038.18,,
Expenditure - Over 500,2016 09,Worcestershire County Council,Children's Services,CH-PROFIT,Secondary Home/School Transport,E10707,ASTONS COACHES LTD,PTG - Transport Tendered / Cont. Services,46021,08/12/2016,7190136080,1891.36,,
Expenditure - Over 500,2016 09,Worcestershire County Council,Children's Services,CH-PROFIT,Secondary Home/School Transport,E10707,ASTONS COACHES LTD,PTG - Transport Tendered / Cont. Services,46021,08/12/2016,7190136081,1891.37,,
Expenditure - Over 500,2016 09,Worcestershire County Council,Children's Services,CH-PROFIT,Primary Home/School Transport,E10037,ASTONS COACHES LTD,PTG - Transport Tendered / Cont. Services,46021,08/12/2016,7190136086,4425.44,,
Expenditure - Over 500,2016 09,Worcestershire County Council,Children's Services,CH-PROFIT,Primary Home/School Transport,E10037,ASTONS COACHES LTD,PTG - Transport Tendered / Cont. Services,46021,08/12/2016,7190136087,1872.3,,
Expenditure - Over 500,2016 09,Worcestershire County Council,Children's Services,CH-PROFIT,Secondary Home/School Transport,E10707,ASTONS COACHES LTD,PTG - Transport Tendered / Cont. Services,46021,08/12/2016,7190136092,2163.79,,
Expenditure - Over 500,2016 09,Worcestershire County Council,Children's Services,CH-PROFIT,Secondary Home/School Transport,E10707,ASTONS COACHES LTD,PTG - Transport Tendered / Cont. Services,46021,08/12/2016,7190136093,2163.79,,
Expenditure - Over 500,2016 09,Worcestershire County Council,Children's Services,CH-PROFIT,Primary Home/School Transport,E10037,ASTONS COACHES LTD,PTG - Transport Tendered / Cont. Services,46021,08/12/2016,7190136115,2001.73,,
Expenditure - Over 500,2016 09,Worcestershire County Council,Children's Services,CH-PROFIT,Primary Home/School Transport,E10037,ASTONS COACHES LTD,PTG - Transport Tendered / Cont. Services,46021,08/12/2016,7190136116,3297.17,,
Expenditure - Over 500,2016 09,Worcestershire County Council,Children's Services,CH-PROFIT,Secondary Home/School Transport,E10707,ASTONS COACHES LTD,PTG - Transport Tendered / Cont. Services,46021,08/12/2016,7190136129,10229.19,,
Expenditure - Over 500,2016 09,Worcestershire County Council,Children's Services,CH-PROFIT,Secondary Home/School Transport,E10707,ASTONS COACHES LTD,PTG - Transport Tendered / Cont. Services,46021,08/12/2016,7190136130,4567.74,,
Expenditure - Over 500,2016 09,Worcestershire County Council,Children's Services,CH-PROFIT,Secondary Home/School Transport,E10707,ASTONS COACHES LTD,PTG - Transport Tendered / Cont. Services,46021,08/12/2016,7190136131,3216.72,,
Expenditure - Over 500,2016 09,Worcestershire County Council,Children's Services,CH-PROFIT,Secondary Home/School Transport,E10707,ASTONS COACHES LTD,PTG - Transport Tendered / Cont. Services,46021,08/12/2016,7190136132,3741.77,,
Expenditure - Over 500,2016 09,Worcestershire County Council,Children's Services,CH-PROFIT,Early Help Wyre Forest District,E21509,BARNARDO SERVICES LTD,Third Party Payments New Arrangements,53663,06/12/2016,4101617744,148638,,
Expenditure - Over 500,2016 09,Worcestershire County Council,Children's Services,CH-PROFIT,External Placements Team 14,E38514,BARNARDO'S MIDLANDS,Third Party Pymts Indepentent Fostering Agency,54059,12/12/2016,7220019973,2774,,
Expenditure - Over 500,2016 09,Worcestershire County Council,"Business, Environment & Community",EN-DIR,Local Bus WCC Services,V21020,ASTONS COACHES LTD,Third Party Pymnts Other Hired & Contracted Servs,53986,19/12/2016,7190136546,12771.9,,
Expenditure - Over 500,2016 09,Worcestershire County Council,"Business, Environment & Community",EN-DIR,Local Bus WCC Services,V21020,ASTONS COACHES LTD,Third Party Pymnts Other Hired & Contracted Servs,53986,19/12/2016,7190136547,17556.24,,
Expenditure - Over 500,2016 09,Worcestershire County Council,"Business, Environment & Community",EN-DIR,Local Bus WCC Services,V21020,ASTONS COACHES LTD,Third Party Pymnts Other Hired & Contracted Servs,53986,19/12/2016,7190136551,17591.6,,
Expenditure - Over 500,2016 09,Worcestershire County Council,Children's Services,CH-PROFIT,Primary Home/School Transport,E10037,ASTONS COACHES LTD,PTG - Transport Tendered / Cont. Services,46021,19/12/2016,7190136604,4365.02,,
Expenditure - Over 500,2016 09,Worcestershire County Council,Children's Services,CH-PROFIT,Primary Home/School Transport,E10037,ASTONS COACHES LTD,PTG - Transport Tendered / Cont. Services,46021,22/12/2016,7190136833,3239.28,,
Expenditure - Over 500,2016 09,Worcestershire County Council,Children's Services,CH-PROFIT,Secondary Home/School Transport,E10707,ASTONS COACHES LTD,PTG - Transport Tendered / Cont. Services,46021,22/12/2016,7190136834,6336.88,,
Expenditure - Over 500,2016 09,Worcestershire County Council,Adult Services & Health,AC-PROFIT,MDO,S80518,AVONCROFT ENTERPRISES LTD,Expenses Project Activity Work,51674,23/12/2016,4101624267,510,,
Expenditure - Over 500,2016 09,Worcestershire County Council,Children's Services,CH-PROFIT,FE Home/College Transport,E20227,ASTONS COACHES LTD,PTG - Public Transport Bus,47514,22/12/2016,7190136613,2489,,
Expenditure - Over 500,2016 09,Worcestershire County Council,"Business, Environment & Community",EN-DIR,Transportation Services Overheads,V20100,JOBTOGS,Protective Clothing,49502,08/12/2016,4101618123,499.15,,
Expenditure - Over 500,2016 09,Worcestershire County Council,Adult Services & Health,AC-PROFIT,LT Residential - OP,S35341,BEDWARDINE HOUSE RESIDENTIAL CARE H,Receipts Sales Long Term Residents,67047,22/12/2016,7310429422,1095.92,,
Expenditure - Over 500,2016 09,Worcestershire County Council,Adult Services & Health,AC-PROFIT,LT Residential - OP,S35341,BEDWARDINE HOUSE RESIDENTIAL CARE H,Receipts Sales Long Term Residents,67047,22/12/2016,7310429428,1231.64,,
Expenditure - Over 500,2016 09,Worcestershire County Council,Adult Services & Health,AC-PROFIT,LT Residential - OP,S35341,BEDWARDINE HOUSE RESIDENTIAL CARE H,Receipts Sales Long Term Residents,67047,22/12/2016,7310429510,1579.76,,
Expenditure - Over 500,2016 09,Worcestershire County Council,Adult Services & Health,AC-PROFIT,LT Residential - OP,S35341,BEDWARDINE HOUSE RESIDENTIAL CARE H,Receipts Sales Long Term Residents,67047,22/12/2016,7310429604,1350.44,,
Expenditure - Over 500,2016 09,Worcestershire County Council,Children's Services,CH-PROFIT,The Bewdley School & Sixth Form Centre,E10732,BEWDLEY SCHOOL & SIXTH FORM CENTRE,Payments4Schools School Fund Contributions,83508,05/12/2016,3310038805,6286.75,,
Expenditure - Over 500,2016 09,Worcestershire County Council,Children's Services,CH-PROFIT,The Bewdley School & Sixth Form Centre,E10732,BEWDLEY SCHOOL & SIXTH FORM CENTRE,Payments4Schools School Fund Contributions,83508,19/12/2016,3310039091,4440.1,,
Expenditure - Over 500,2016 09,Worcestershire County Council,Adult Services & Health,AC-PROFIT,Residential - MH,S35641,BIRMINGHAM INSTITUTE FOR THE DEAF,Third Party Payments Purchase of Long Term Care,53667,22/12/2016,7310430268,5022.52,,
Expenditure - Over 500,2016 09,Worcestershire County Council,Children's Services,CH-PROFIT,Training - Social Work,E36045,BOND SOLON TRAINING LTD,Professional Fees,50031,23/12/2016,4101624281,4110,,
Expenditure - Over 500,2016 09,Worcestershire County Council,Adult Services & Health,AC-PROFIT,Pharmacy - EHC (Sex Hlth/Contraception),S42034,BOOTS UK,Third Party Payments,53006,22/12/2016,7580001419,584.34,,
Expenditure - Over 500,2016 09,Worcestershire County Council,Adult Services & Health,AC-PROFIT,Pharmacy - EHC (Sex Hlth/Contraception),S42034,BOOTS UK,Third Party Payments,53006,22/12/2016,7580001424,666.5,,
Expenditure - Over 500,2016 09,Worcestershire County Council,Children's Services,CH-PROFIT,DSG- Independ't Special Schls Fees Pre16,E24001,BOWBROOK HOUSE SCHOOL LTD,Third Party Pymts Vol Assoc Indepen. Spec Sch Fees,53655,23/12/2016,4101624027,3456,,
Expenditure - Over 500,2016 09,Worcestershire County Council,Children's Services,CH-PROFIT,Secondary Home/School Transport,E10707,BROMSGROVE BUS & COACH CO LTD,PTG - Transport Tendered / Cont. Services,46021,08/12/2016,7190136145,1692.73,,
Expenditure - Over 500,2016 09,Worcestershire County Council,Children's Services,CH-PROFIT,Primary Home/School Transport,E10037,BROMSGROVE BUS & COACH CO LTD,PTG - Transport Tendered / Cont. Services,46021,08/12/2016,7190136154,1606.36,,
Expenditure - Over 500,2016 09,Worcestershire County Council,Children's Services,CH-PROFIT,Secondary Home/School Transport,E10707,BROMSGROVE BUS & COACH CO LTD,PTG - Transport Tendered / Cont. Services,46021,08/12/2016,7190136157,1395,,
Expenditure - Over 500,2016 09,Worcestershire County Council,Children's Services,CH-PROFIT,Secondary Home/School Transport,E10707,BROMSGROVE BUS & COACH CO LTD,PTG - Transport Tendered / Cont. Services,46021,08/12/2016,7190136160,1949.99,,
Expenditure - Over 500,2016 09,Worcestershire County Council,Children's Services,CH-PROFIT,S20 LAC Permanancy North West,E35602,BEOLEY EQUESTRIAN CENTRE,Subsistence,50601,29/12/2016,4101624520,700,,
Expenditure - Over 500,2016 09,Worcestershire County Council,Children's Services,CH-PROFIT,Special Home/School Transport,E10877,BROMSGROVE BUS & COACH CO LTD,PTG - Transport Tendered / Cont. Services,46021,15/12/2016,7190136359,2574,,
Expenditure - Over 500,2016 09,Worcestershire County Council,Children's Services,CH-PROFIT,Special Home/School Transport,E10877,BROMSGROVE BUS & COACH CO LTD,PTG - Transport Tendered / Cont. Services,46021,15/12/2016,7190136386,2904,,
Expenditure - Over 500,2016 09,Worcestershire County Council,Children's Services,CH-PROFIT,Special Home/School Transport,E10877,BROMSGROVE BUS & COACH CO LTD,PTG - Transport Tendered / Cont. Services,46021,15/12/2016,7190136387,3014,,
Expenditure - Over 500,2016 09,Worcestershire County Council,Children's Services,CH-PROFIT,Special Home/School Transport,E10877,BROMSGROVE BUS & COACH CO LTD,PTG - Transport Tendered / Cont. Services,46021,15/12/2016,7190136388,2904,,
Expenditure - Over 500,2016 09,Worcestershire County Council,Resources,CS-PROFIT,"County Offices,Windsor St, Bromsgrove",C40346,BROMSGROVE DISTRICT COUNCIL,Rates,43801,05/12/2016,3330001216,81508,,
Expenditure - Over 500,2016 09,Worcestershire County Council,Adult Services & Health,AC-PROFIT,Bromsgrove Register Office,S80061,BROMSGROVE DISTRICT COUNCIL,Rates,43801,05/12/2016,3330001217,7579.25,,
Expenditure - Over 500,2016 09,Worcestershire County Council,Adult Services & Health,AC-PROFIT,LT Residential - PD,S35441,BIRMINGHAM FOCUS,Third Party Payments Purchase of Long Term Care,53667,22/12/2016,7310430270,4234.24,,
Expenditure - Over 500,2016 09,Worcestershire County Council,Children's Services,CH-PROFIT,Worcester. Blessed Edward Oldcorne,E10847,BLESSED EDWARD OLDCORNE,Education School Bank Accounts,99903,12/12/2016,3310038922,14682.05,,
Expenditure - Over 500,2016 09,Worcestershire County Council,Children's Services,CH-PROFIT,Worcester. Blessed Edward Oldcorne,E10847,BLESSED EDWARD OLDCORNE,Education School Bank Accounts,99903,28/12/2016,3310039278,10735.45,,
Expenditure - Over 500,2016 09,Worcestershire County Council,Adult Services & Health,AC-PROFIT,LT Residential - OP,S35341,BOURNVILLE VILLAGE TRUST,Third Party Payments Purchase of Long Term Care,53667,22/12/2016,7310430316,989.8,,
Expenditure - Over 500,2016 09,Worcestershire County Council,Children's Services,CH-PROFIT,DSG- Independ't Special Schls Fees Pre16,E24001,BOWBROOK HOUSE SCHOOL LTD,Third Party Pymts Vol Assoc Indepen. Spec Sch Fees,53655,23/12/2016,4101624028,3759.6,,
Expenditure - Over 500,2016 09,Worcestershire County Council,Children's Services,CH-PROFIT,DSG- Independ't Special Schls Fees Pre16,E24001,BOWBROOK HOUSE SCHOOL LTD,Third Party Pymts Vol Assoc Indepen. Spec Sch Fees,53655,23/12/2016,4101624031,3579.5,,
Expenditure - Over 500,2016 09,Worcestershire County Council,Children's Services,CH-PROFIT,DSG- Independ't Special Schls Fees Pre16,E24001,BOWBROOK HOUSE SCHOOL LTD,Third Party Pymts Vol Assoc Indepen. Spec Sch Fees,53655,23/12/2016,4101624032,3559,,
Expenditure - Over 500,2016 09,Worcestershire County Council,Children's Services,CH-PROFIT,DSG- Independ't Special Schls Fees Pre16,E24001,BOWBROOK HOUSE SCHOOL LTD,Third Party Pymts Vol Assoc Indepen. Spec Sch Fees,53655,23/12/2016,4101624029,3425,,
Expenditure - Over 500,2016 09,Worcestershire County Council,Adult Services & Health,AC-PROFIT,Field Service Projects,S80559,BRANDON HIRE,Equipment Hire Of Mechanical Equipment,49073,15/12/2016,4101617923,994,,
Expenditure - Over 500,2016 09,Worcestershire County Council,Children's Services,CH-PROFIT,Early Years - 2 year old funding,E23050,BRETFORTON PRESCHOOL PLAYGROUP,Third Party Pymts 4Yr Old Nursery Education Grant,53657,05/12/2016,7200027232,759,,
Expenditure - Over 500,2016 09,Worcestershire County Council,Non Directorate Specific,LA01,Upton on Severn Drainage,CA48487,BRITISH TELECOMMUNICATIONS PLC,CAPEX Construction Costs Direct Pymts,64958,15/12/2016,4101620504,1944.17,,
Expenditure - Over 500,2016 09,Worcestershire County Council,Children's Services,CH-PROFIT,Early Years - 2 year old funding,E23050,BROADWAY PLAYGROUP,Third Party Pymts 4Yr Old Nursery Education Grant,53657,05/12/2016,7200027237,710.86,,
Expenditure - Over 500,2016 09,Worcestershire County Council,Children's Services,CH-PROFIT,Early Years - 2 year old funding,E23050,BENGEWORTH PRE-SCHOOL,Third Party Pymts 4Yr Old Nursery Education Grant,53657,05/12/2016,7200027226,5325,,
Expenditure - Over 500,2016 09,Worcestershire County Council,Resources,CS-PROFIT,ICT - Applications Directorate based,C40172,BYTES SOFTWARE SERVICES LTD,Computing Software,50319,13/12/2016,4101619036,24620.4,,
Expenditure - Over 500,2016 09,Worcestershire County Council,Resources,CS-PROFIT,ICT - Applications Directorate based,C40172,BYTES SOFTWARE SERVICES LTD,Computing Software,50319,13/12/2016,4101619354,2378.88,,
Expenditure - Over 500,2016 09,Worcestershire County Council,Resources,CS-PROFIT,Broadband - Transition Expenditure,C40085,CAPITA BUSINESS SERVICES LTD,Computing Hardware,50307,12/12/2016,4101619264,6404.99,,
Expenditure - Over 500,2016 09,Worcestershire County Council,Resources,CS-PROFIT,Broadband - 1516 Expenditure,C40087,CAPITA BUSINESS SERVICES LTD,Services Other Fees,50035,12/12/2016,4101619267,10157.67,,
Expenditure - Over 500,2016 09,Worcestershire County Council,Adult Services & Health,AC-PROFIT,Practice Learning Income,S34791,BOURNEMOUTH UNIVERSITY,Training Expenses,51665,22/12/2016,4101624538,610,,
Expenditure - Over 500,2016 09,Worcestershire County Council,Adult Services & Health,AC-PROFIT,Practice Learning Income,S34791,BOURNEMOUTH UNIVERSITY,Training Expenses,51665,22/12/2016,4101624539,610,,
Expenditure - Over 500,2016 09,Worcestershire County Council,Adult Services & Health,AC-PROFIT,Practice Learning Income,S34791,BOURNEMOUTH UNIVERSITY,Training Expenses,51665,22/12/2016,4101624540,610,,
Expenditure - Over 500,2016 09,Worcestershire County Council,Adult Services & Health,AC-PROFIT,Practice Learning Income,S34791,BOURNEMOUTH UNIVERSITY,Training Expenses,51665,22/12/2016,4101624541,-610,,
Expenditure - Over 500,2016 09,Worcestershire County Council,Adult Services & Health,AC-PROFIT,Practice Learning Income,S34791,BOURNEMOUTH UNIVERSITY,Training Expenses,51665,22/12/2016,4101624542,-610,,
Expenditure - Over 500,2016 09,Worcestershire County Council,Adult Services & Health,AC-PROFIT,Practice Learning Income,S34791,BOURNEMOUTH UNIVERSITY,Training Expenses,51665,22/12/2016,4101624544,-610,,
Expenditure - Over 500,2016 09,Worcestershire County Council,Adult Services & Health,AC-PROFIT,Practice Learning Income,S34791,BOURNEMOUTH UNIVERSITY,Training Expenses,51665,28/12/2016,4101624547,610,,
Expenditure - Over 500,2016 09,Worcestershire County Council,Adult Services & Health,AC-PROFIT,Practice Learning Income,S34791,BOURNEMOUTH UNIVERSITY,Training Expenses,51665,28/12/2016,4101624548,610,,
Expenditure - Over 500,2016 09,Worcestershire County Council,Adult Services & Health,AC-PROFIT,Practice Learning Income,S34791,BOURNEMOUTH UNIVERSITY,Training Expenses,51665,28/12/2016,4101624549,610,,
Expenditure - Over 500,2016 09,Worcestershire County Council,Adult Services & Health,AC-PROFIT,Practice Learning Income,S34791,BOURNEMOUTH UNIVERSITY,Training Expenses,51665,28/12/2016,4101624550,610,,
Expenditure - Over 500,2016 09,Worcestershire County Council,Children's Services,CH-PROFIT,Current Education HR related,E20863,CAPITA BUSINESS SERVICES LTD,Actuarial Strain - Teachers,39096,15/12/2016,4101619454,1948.59,,
Expenditure - Over 500,2016 09,Worcestershire County Council,Adult Services & Health,AC-PROFIT,LD Day Care External North,S35555,CAMPHILL VILLAGE TRUST,Third Party Payments Day Care Frm Independent Prov,53668,08/12/2016,7320552774,531.09,,
Expenditure - Over 500,2016 09,Worcestershire County Council,Adult Services & Health,AC-PROFIT,LD Day Care External North,S35555,CAMPHILL VILLAGE TRUST,Third Party Payments Day Care Frm Independent Prov,53668,22/12/2016,7320558740,556.38,,
Expenditure - Over 500,2016 09,Worcestershire County Council,Children's Services,CH-PROFIT,Secretariat - Education,E10006,BYTES SOFTWARE SERVICES LTD,Computing Software,50319,19/12/2016,4101620574,440.91,,
Expenditure - Over 500,2016 09,Worcestershire County Council,Resources,CS-PROFIT,ICT - Applications Directorate based,C40172,BYTES SOFTWARE SERVICES LTD,Computing Software,50319,28/12/2016,4101624388,32487.48,,
Expenditure - Over 500,2016 09,Worcestershire County Council,"Business, Environment & Community",EN-DIR,Fleet Stock Items,V21489,C N UNWIN LTD,Equipment Special Equipment Purchase,49053,22/12/2016,4101622927,1064.68,,
Expenditure - Over 500,2016 09,Worcestershire County Council,Non Directorate Specific,LA01,Post 16 - Hillview Alterations,CA07534,CAPITA BUSINESS SERVICES LTD,CAPEX Furniture & Equipment Furniture,65201,06/12/2016,4101617733,701.71,,
Expenditure - Over 500,2016 09,Worcestershire County Council,Adult Services & Health,AC-PROFIT,LD Day Care External North,S35555,CAMPHILL VILLAGE TRUST,Third Party Payments Day Care Frm Independent Prov,53668,08/12/2016,7320552724,556.38,,
Expenditure - Over 500,2016 09,Worcestershire County Council,Children's Services,CH-PROFIT,Primary Home/School Transport,E10037,BROOKSIDE TAXIS NO2 CLIENTS A/C,PTG - Transport Tendered / Cont. Services,46021,08/12/2016,7190136113,1455,,
Expenditure - Over 500,2016 09,Worcestershire County Council,Children's Services,CH-PROFIT,Short Breaks on framework,E31529,BROOKSIDE TAXIS NO2 CLIENTS A/C,PTG - Transport Tendered / Cont. Services,46021,15/12/2016,7190136356,3849.78,,
Expenditure - Over 500,2016 09,Worcestershire County Council,Children's Services,CH-PROFIT,Post 16 - SEN H/S Transport,E20803,BROOKSIDE TAXIS NO2 CLIENTS A/C,PTG - Transport Tendered / Cont. Services,46021,15/12/2016,7190136365,1320,,
Expenditure - Over 500,2016 09,Worcestershire County Council,Children's Services,CH-PROFIT,HTST LAC Permanency Team 3 North West,E28188,BROOKSIDE TAXIS NO2 CLIENTS A/C,PTG - Adhoc Transport,46506,15/12/2016,7190136370,1760,,
Expenditure - Over 500,2016 09,Worcestershire County Council,Resources,FS-PROFIT,Insurance - Central Funds (WCC),F40475,BROWNE JACOBSON LLP,Expenses Insurances Claims - Other,51636,20/12/2016,3300652583,9020.81,,
Expenditure - Over 500,2016 09,Worcestershire County Council,Resources,CS-PROFIT,Commercial Core Team,C41003,BROWNE JACOBSON LLP,Legal Fees,50024,22/12/2016,4101623513,595,,
Expenditure - Over 500,2016 09,Worcestershire County Council,Resources,FS-PROFIT,Insurance - Central Funds (WCC),F40475,BROWNE JACOBSON LLP,Expenses Insurances Claims - Other,51636,23/12/2016,3300652672,682,,
Expenditure - Over 500,2016 09,Worcestershire County Council,Adult Services & Health,AC-PROFIT,Domiciliary Spot - PD,S33412,CARE FORCE,Third Party Payments Dom Care Frm Independent Prov,53669,19/12/2016,7320558355,570.77,,
Expenditure - Over 500,2016 09,Worcestershire County Council,"Business, Environment & Community",EN-PROFIT,Material Stock,V82822,BROMYARD TIMBER & FENCING LTD,Other Materials,49031,30/12/2016,4101623341,2788.5,,
Expenditure - Over 500,2016 09,Worcestershire County Council,Adult Services & Health,AC-PROFIT,ST Nursing - OP,S35344,BUPA CARE SERVICES,TPP Purchase of Planned Replacement Care,53666,22/12/2016,7310428629,1368.4,,
Expenditure - Over 500,2016 09,Worcestershire County Council,Adult Services & Health,AC-PROFIT,LT Nursing - OP,S35342,BUPA CARE SERVICES,Third Party Payments Purchase of Long Term Care,53667,22/12/2016,7310428635,1902.25,,
Expenditure - Over 500,2016 09,Worcestershire County Council,Adult Services & Health,AC-PROFIT,Domiciliary Spot - PD,S33412,CARE FORCE,Third Party Payments Dom Care Frm Independent Prov,53669,12/12/2016,7320555732,570.77,,
Expenditure - Over 500,2016 09,Worcestershire County Council,Adult Services & Health,AC-PROFIT,LT Nursing - OP,S35342,BUPA CARE SERVICES,Receipts Sales Long Term Residents,67047,22/12/2016,7310428591,3223.53,,
Expenditure - Over 500,2016 09,Worcestershire County Council,Adult Services & Health,AC-PROFIT,LT Nursing - OP,S35342,BUPA CARE SERVICES,Receipts Sales Long Term Residents,67047,22/12/2016,7310428593,2213.2,,
Expenditure - Over 500,2016 09,Worcestershire County Council,Adult Services & Health,AC-PROFIT,LT Nursing - OP,S35342,BUPA CARE SERVICES,Receipts Sales Long Term Residents,67047,22/12/2016,7310428597,1912.6,,
Expenditure - Over 500,2016 09,Worcestershire County Council,Adult Services & Health,AC-PROFIT,Step Down Beds,S35724,BUPA CARE SERVICES,TPP Purchase of Planned Replacement Care,53666,22/12/2016,7310428607,-1903.5,,
Expenditure - Over 500,2016 09,Worcestershire County Council,Adult Services & Health,AC-PROFIT,ST Nursing - OP,S35344,BUPA CARE SERVICES,TPP Purchase of Emergency Replace Care,53677,22/12/2016,7310428623,604.25,,
Expenditure - Over 500,2016 09,Worcestershire County Council,Adult Services & Health,AC-PROFIT,ST Nursing - OP,S35344,BUPA CARE SERVICES,TPP Purchase of Emergency Replace Care,53677,22/12/2016,7310428647,684.2,,
Expenditure - Over 500,2016 09,Worcestershire County Council,Adult Services & Health,AC-PROFIT,ST Nursing - OP,S35344,BUPA CARE SERVICES,TPP Purchase of Planned Replacement Care,53666,22/12/2016,7310428651,873.44,,
Expenditure - Over 500,2016 09,Worcestershire County Council,Adult Services & Health,AC-PROFIT,Step Down Beds,S35724,BUPA CARE SERVICES,TPP Purchase of Planned Replacement Care,53666,22/12/2016,7310428659,3807,,
Expenditure - Over 500,2016 09,Worcestershire County Council,Adult Services & Health,AC-PROFIT,Step Down Beds,S35724,BUPA CARE SERVICES,TPP Purchase of Planned Replacement Care,53666,22/12/2016,7310428661,3716.35,,
Expenditure - Over 500,2016 09,Worcestershire County Council,Adult Services & Health,AC-PROFIT,COP Property Temporary Code,S35397,BUPA CARE SERVICES,Third Party Payments Purchase of Long Term Care,53667,22/12/2016,7310428669,3519,,
Expenditure - Over 500,2016 09,Worcestershire County Council,Adult Services & Health,AC-PROFIT,Domiciliary Spot - PD,S33412,CARE FORCE,Third Party Payments Dom Care Frm Independent Prov,53669,30/12/2016,7320561955,562.92,,
Expenditure - Over 500,2016 09,Worcestershire County Council,Adult Services & Health,AC-PROFIT,LT Nursing - OP,S35342,BUPA CARE SERVICES,Third Party Payments Purchase of Long Term Care,53667,22/12/2016,7310428209,1655.52,,
Expenditure - Over 500,2016 09,Worcestershire County Council,Adult Services & Health,AC-PROFIT,South Worcester Nursing LD,S35552,BUPA CARE SERVICES,Third Party Payments Purchase of Long Term Care,53667,22/12/2016,7310428217,3119.4,,
Expenditure - Over 500,2016 09,Worcestershire County Council,Adult Services & Health,AC-PROFIT,LT Nursing - OP,S35342,BUPA CARE SERVICES,Receipts Sales Long Term Residents,67047,22/12/2016,7310428219,1855.56,,
Expenditure - Over 500,2016 09,Worcestershire County Council,Adult Services & Health,AC-PROFIT,LT Nursing - OP,S35342,BUPA CARE SERVICES,Receipts Sales Long Term Residents,67047,22/12/2016,7310428233,2034.2,,
Expenditure - Over 500,2016 09,Worcestershire County Council,Adult Services & Health,AC-PROFIT,LT Nursing - OP,S35342,BUPA CARE SERVICES,Receipts Sales Long Term Residents,67047,22/12/2016,7310428251,1376.12,,
Expenditure - Over 500,2016 09,Worcestershire County Council,Adult Services & Health,AC-PROFIT,Nursing - MH,S35642,BUPA CARE SERVICES,Receipts Sales Long Term Residents,67047,22/12/2016,7310428261,-674.92,,
Expenditure - Over 500,2016 09,Worcestershire County Council,Adult Services & Health,AC-ERROR,Adults & Community Servs Error Suspense,ACSSER001,BUPA CARE SERVICES,Adult & Community Servs - Other,98254,22/12/2016,7310428263,625,,
Expenditure - Over 500,2016 09,Worcestershire County Council,Adult Services & Health,AC-PROFIT,LT Nursing - OP,S35342,BUPA CARE SERVICES,Third Party Payments Purchase of Long Term Care,53667,22/12/2016,7310428265,2417,,
Expenditure - Over 500,2016 09,Worcestershire County Council,Adult Services & Health,AC-PROFIT,Property Charge Temporary Code,S35398,BUPA CARE SERVICES,Third Party Payments Purchase of Long Term Care,53667,22/12/2016,7310428267,1067.16,,
Expenditure - Over 500,2016 09,Worcestershire County Council,Adult Services & Health,AC-PROFIT,LT Nursing - OP,S35342,BUPA CARE SERVICES,Third Party Payments Purchase of Long Term Care,53667,22/12/2016,7310428271,1674,,
Expenditure - Over 500,2016 09,Worcestershire County Council,Adult Services & Health,AC-PROFIT,LT Nursing - OP,S35342,BUPA CARE SERVICES,Third Party Payments Purchase of Long Term Care,53667,22/12/2016,7310428279,2578.6,,
Expenditure - Over 500,2016 09,Worcestershire County Council,Adult Services & Health,AC-PROFIT,South Worcester Residential LD,S35551,CAMPHILL DEVON COMMUNITY LTD,Receipts Sales Long Term Residents,67047,22/12/2016,7310429730,1366.08,,
Expenditure - Over 500,2016 09,Worcestershire County Council,Adult Services & Health,AC-PROFIT,LT Residential - PD,S35441,CAMPHILL DEVON COMMUNITY LTD,Receipts Sales Long Term Residents,67047,22/12/2016,7310429932,2615.88,,
Expenditure - Over 500,2016 09,Worcestershire County Council,Adult Services & Health,AC-PROFIT,Domiciliary Spot - PD,S33412,CARE FORCE,Third Party Payments Dom Care Frm Independent Prov,53669,08/12/2016,7320554307,570.77,,
Expenditure - Over 500,2016 09,Worcestershire County Council,Adult Services & Health,AC-PROFIT,LT Nursing - PD,S35442,BUPA CARE SERVICES,Receipts Sales Long Term Residents,67047,22/12/2016,7310428295,2085.4,,
Expenditure - Over 500,2016 09,Worcestershire County Council,Adult Services & Health,AC-PROFIT,LT Nursing - OP,S35342,BUPA CARE SERVICES,Third Party Payments Purchase of Long Term Care,53667,22/12/2016,7310428299,1262.16,,
Expenditure - Over 500,2016 09,Worcestershire County Council,Adult Services & Health,AC-PROFIT,Property Charge Temporary Code,S35398,BUPA CARE SERVICES,Receipts Sales Long Term Residents,67047,22/12/2016,7310428311,1684,,
Expenditure - Over 500,2016 09,Worcestershire County Council,Adult Services & Health,AC-ERROR,Adults & Community Servs Error Suspense,ACSSER001,BUPA CARE SERVICES,Adult & Community Servs - Other,98254,22/12/2016,7310428335,625,,
Expenditure - Over 500,2016 09,Worcestershire County Council,Adult Services & Health,AC-PROFIT,LT Nursing - OP,S35342,BUPA CARE SERVICES,Receipts Sales Long Term Residents,67047,22/12/2016,7310428347,985.44,,
Expenditure - Over 500,2016 09,Worcestershire County Council,Adult Services & Health,AC-ERROR,Adults & Community Servs Error Suspense,ACSSER001,BUPA CARE SERVICES,Adult & Community Servs - Other,98254,22/12/2016,7310428349,625,,
Expenditure - Over 500,2016 09,Worcestershire County Council,Adult Services & Health,AC-ERROR,Adults & Community Servs Error Suspense,ACSSER001,BUPA CARE SERVICES,Adult & Community Servs - Other,98254,22/12/2016,7310428351,625,,
Expenditure - Over 500,2016 09,Worcestershire County Council,Adult Services & Health,AC-ERROR,Adults & Community Servs Error Suspense,ACSSER001,BUPA CARE SERVICES,Adult & Community Servs - Other,98254,22/12/2016,7310428353,625,,
Expenditure - Over 500,2016 09,Worcestershire County Council,Adult Services & Health,AC-ERROR,Adults & Community Servs Error Suspense,ACSSER001,BUPA CARE SERVICES,Adult & Community Servs - Other,98254,22/12/2016,7310428355,625,,
Expenditure - Over 500,2016 09,Worcestershire County Council,Adult Services & Health,AC-PROFIT,LT Nursing - PD,S35442,BUPA CARE SERVICES,Third Party Payments Purchase of Long Term Care,53667,22/12/2016,7310428381,2720.56,,
Expenditure - Over 500,2016 09,Worcestershire County Council,Adult Services & Health,AC-PROFIT,South Worcester Nursing LD,S35552,BUPA CARE SERVICES,Receipts Sales Long Term Residents,67047,22/12/2016,7310428427,3003.72,,
Expenditure - Over 500,2016 09,Worcestershire County Council,Adult Services & Health,AC-ERROR,Adults & Community Servs Error Suspense,ACSSER001,BUPA CARE SERVICES,Adult & Community Servs - Other,98254,22/12/2016,7310428447,625,,
Expenditure - Over 500,2016 09,Worcestershire County Council,Adult Services & Health,AC-ERROR,Adults & Community Servs Error Suspense,ACSSER001,BUPA CARE SERVICES,Adult & Community Servs - Other,98254,22/12/2016,7310428459,625,,
Expenditure - Over 500,2016 09,Worcestershire County Council,Adult Services & Health,AC-ERROR,Adults & Community Servs Error Suspense,ACSSER001,BUPA CARE SERVICES,Adult & Community Servs - Other,98254,22/12/2016,7310428465,625,,
Expenditure - Over 500,2016 09,Worcestershire County Council,Adult Services & Health,AC-ERROR,Adults & Community Servs Error Suspense,ACSSER001,BUPA CARE SERVICES,Adult & Community Servs - Other,98254,22/12/2016,7310428469,625,,
Expenditure - Over 500,2016 09,Worcestershire County Council,Adult Services & Health,AC-ERROR,Adults & Community Servs Error Suspense,ACSSER001,BUPA CARE SERVICES,Adult & Community Servs - Other,98254,22/12/2016,7310428471,625,,
Expenditure - Over 500,2016 09,Worcestershire County Council,Adult Services & Health,AC-ERROR,Adults & Community Servs Error Suspense,ACSSER001,BUPA CARE SERVICES,Adult & Community Servs - Other,98254,22/12/2016,7310428499,625,,
Expenditure - Over 500,2016 09,Worcestershire County Council,Adult Services & Health,AC-ERROR,Adults & Community Servs Error Suspense,ACSSER001,BUPA CARE SERVICES,Adult & Community Servs - Other,98254,22/12/2016,7310428501,625,,
Expenditure - Over 500,2016 09,Worcestershire County Council,Adult Services & Health,AC-ERROR,Adults & Community Servs Error Suspense,ACSSER001,BUPA CARE SERVICES,Adult & Community Servs - Other,98254,22/12/2016,7310428517,625,,
Expenditure - Over 500,2016 09,Worcestershire County Council,Adult Services & Health,AC-PROFIT,Property Charge Temporary Code,S35398,BUPA CARE SERVICES,Receipts Sales Long Term Residents,67047,22/12/2016,7310428537,2083.56,,
Expenditure - Over 500,2016 09,Worcestershire County Council,Adult Services & Health,AC-PROFIT,LT Nursing - OP,S35342,BUPA CARE SERVICES,Third Party Payments Purchase of Long Term Care,53667,22/12/2016,7310428547,1894.2,,
Expenditure - Over 500,2016 09,Worcestershire County Council,Adult Services & Health,AC-PROFIT,Interim Care,S35385,BUPA CARE SERVICES,TPP Purchase of Planned Replacement Care,53666,22/12/2016,7310428567,2172.75,,
Expenditure - Over 500,2016 09,Worcestershire County Council,Adult Services & Health,AC-ERROR,Adults & Community Servs Error Suspense,ACSSER001,BUPA CARE SERVICES,Adult & Community Servs - Other,98254,22/12/2016,7310428579,625,,
Expenditure - Over 500,2016 09,Worcestershire County Council,Adult Services & Health,AC-PROFIT,PoP Placements,S35386,BUPA CARE SERVICES,TPP Purchase of Planned Replacement Care,53666,22/12/2016,7310428583,-634.5,,
Expenditure - Over 500,2016 09,Worcestershire County Council,"Business, Environment & Community",EN-PROFIT,"Management, Admin, Professional & E",V22000,NCC SERVICES LIMITED,Consultants Fees,50030,05/12/2016,4101614492,680,,
Expenditure - Over 500,2016 09,Worcestershire County Council,Adult Services & Health,AC-PROFIT,LT Residential - OP,S35341,CHASE REST HOME,Receipts Sales Long Term Residents,67047,22/12/2016,7310427794,1224.12,,
Expenditure - Over 500,2016 09,Worcestershire County Council,Adult Services & Health,AC-PROFIT,LT Residential - OP,S35341,CHASE REST HOME,Receipts Sales Long Term Residents,67047,22/12/2016,7310427796,1249.68,,
Expenditure - Over 500,2016 09,Worcestershire County Council,Adult Services & Health,AC-PROFIT,LT Residential - OP,S35341,CHASE REST HOME,Receipts Sales Long Term Residents,67047,22/12/2016,7310427828,1205.2,,
Expenditure - Over 500,2016 09,Worcestershire County Council,Adult Services & Health,AC-PROFIT,Residential - MH,S35641,CASA MIA,Third Party Payments Purchase of Long Term Care,53667,22/12/2016,7310429247,2460,,
Expenditure - Over 500,2016 09,Worcestershire County Council,Adult Services & Health,AC-PROFIT,Residential - MH,S35641,CASA MIA,Third Party Payments Purchase of Long Term Care,53667,22/12/2016,7310429249,3260,,
Expenditure - Over 500,2016 09,Worcestershire County Council,Adult Services & Health,AC-PROFIT,Residential - MH,S35641,CASA MIA,Third Party Payments Purchase of Long Term Care,53667,22/12/2016,7310429251,2860,,
Expenditure - Over 500,2016 09,Worcestershire County Council,Adult Services & Health,AC-PROFIT,Residential - MH,S35641,CASA MIA,Third Party Payments Purchase of Long Term Care,53667,22/12/2016,7310429257,2893.6,,
Expenditure - Over 500,2016 09,Worcestershire County Council,Adult Services & Health,AC-PROFIT,Residential - MH,S35641,CASA MIA,Third Party Payments Purchase of Long Term Care,53667,22/12/2016,7310429267,3260,,
Expenditure - Over 500,2016 09,Worcestershire County Council,Adult Services & Health,AC-PROFIT,Residential - MH,S35641,CASA MIA,Third Party Payments Purchase of Long Term Care,53667,22/12/2016,7310429279,3260,,
Expenditure - Over 500,2016 09,Worcestershire County Council,Adult Services & Health,AC-PROFIT,Residential - MH,S35641,CASA MIA,Third Party Payments Purchase of Long Term Care,53667,22/12/2016,7310429281,3260,,
Expenditure - Over 500,2016 09,Worcestershire County Council,Adult Services & Health,AC-PROFIT,Residential - MH,S35641,CASA MIA,Third Party Payments Purchase of Long Term Care,53667,22/12/2016,7310429347,3260,,
Expenditure - Over 500,2016 09,Worcestershire County Council,Adult Services & Health,AC-PROFIT,Residential - MH,S35641,CASA MIA,Third Party Payments Purchase of Long Term Care,53667,22/12/2016,7310429363,3260,,
Expenditure - Over 500,2016 09,Worcestershire County Council,Adult Services & Health,AC-PROFIT,Residential - MH,S35641,CASA MIA,Third Party Payments Purchase of Long Term Care,53667,22/12/2016,7310429419,3260,,
Expenditure - Over 500,2016 09,Worcestershire County Council,Adult Services & Health,AC-PROFIT,LT Residential - OP,S35341,CHASE REST HOME,Receipts Sales Long Term Residents,67047,22/12/2016,7310427876,1194,,
Expenditure - Over 500,2016 09,Worcestershire County Council,Adult Services & Health,AC-PROFIT,LT Residential - OP,S35341,CHASE REST HOME,Third Party Payments Purchase of Long Term Care,53667,22/12/2016,7310427896,913.76,,
Expenditure - Over 500,2016 09,Worcestershire County Council,Adult Services & Health,AC-PROFIT,LT Residential - OP,S35341,CHASE REST HOME,Third Party Payments Purchase of Long Term Care,53667,22/12/2016,7310427900,2496,,
Expenditure - Over 500,2016 09,Worcestershire County Council,Adult Services & Health,AC-PROFIT,LT Residential - OP,S35341,CHASE REST HOME,Third Party Payments Purchase of Long Term Care,53667,22/12/2016,7310427926,952.68,,
Expenditure - Over 500,2016 09,Worcestershire County Council,Adult Services & Health,AC-PROFIT,LT Residential - OP,S35341,CHASE REST HOME,Third Party Payments Purchase of Long Term Care,53667,22/12/2016,7310427948,1737.2,,
Expenditure - Over 500,2016 09,Worcestershire County Council,Adult Services & Health,AC-PROFIT,Residential - MH,S35641,CASA MIA,Third Party Payments Purchase of Long Term Care,53667,22/12/2016,7310429455,4060,,
Expenditure - Over 500,2016 09,Worcestershire County Council,Adult Services & Health,AC-PROFIT,LT Residential - OP,S35341,CHASE REST HOME,Third Party Payments Purchase of Long Term Care,53667,22/12/2016,7310427950,1537.2,,
Expenditure - Over 500,2016 09,Worcestershire County Council,Adult Services & Health,AC-PROFIT,LT Residential - OP,S35341,CHASE REST HOME,Receipts Sales Long Term Residents,67047,22/12/2016,7310427956,10766.04,,
Expenditure - Over 500,2016 09,Worcestershire County Council,Adult Services & Health,AC-PROFIT,LT Residential - OP,S35341,CHASE REST HOME,Receipts Sales Long Term Residents,67047,22/12/2016,7310427992,1105.92,,
Expenditure - Over 500,2016 09,Worcestershire County Council,Adult Services & Health,AC-PROFIT,Property Charge Temporary Code,S35398,CHASE REST HOME,Receipts Sales Long Term Residents,67047,22/12/2016,7310428000,1699.84,,
Expenditure - Over 500,2016 09,Worcestershire County Council,Adult Services & Health,AC-PROFIT,LT Residential - OP,S35341,CHASE REST HOME,Receipts Sales Long Term Residents,67047,22/12/2016,7310428014,1589.16,,
Expenditure - Over 500,2016 09,Worcestershire County Council,Adult Services & Health,AC-PROFIT,LT Residential - OP,S35341,CHASE REST HOME,TPP Purchase of Planned Replacement Care,53666,22/12/2016,7310428032,1554.12,,
Expenditure - Over 500,2016 09,Worcestershire County Council,Adult Services & Health,AC-PROFIT,LT Residential - OP,S35341,CHASE REST HOME,Receipts Sales Long Term Residents,67047,22/12/2016,7310428056,1640.32,,
Expenditure - Over 500,2016 09,Worcestershire County Council,Adult Services & Health,AC-PROFIT,LT Residential - OP,S35341,CHASE REST HOME,Third Party Payments Purchase of Long Term Care,53667,22/12/2016,7310428086,1505.2,,
Expenditure - Over 500,2016 09,Worcestershire County Council,Adult Services & Health,AC-PROFIT,LT Residential - OP,S35341,CHASE REST HOME,Receipts Sales Long Term Residents,67047,22/12/2016,7310428108,1956.58,,
Expenditure - Over 500,2016 09,Worcestershire County Council,Adult Services & Health,AC-PROFIT,LT Residential - OP,S35341,CHASE REST HOME,Receipts Sales Long Term Residents,67047,22/12/2016,7310428118,1639.36,,
Expenditure - Over 500,2016 09,Worcestershire County Council,Adult Services & Health,AC-PROFIT,12-Week Disregard,S35308,CHASE REST HOME,Receipts Sales Long Term Residents,67047,22/12/2016,7310428124,866.81,,
Expenditure - Over 500,2016 09,Worcestershire County Council,Adult Services & Health,AC-PROFIT,ST Residential - OP,S35343,CHASE REST HOME,TPP Purchase of Planned Replacement Care,53666,22/12/2016,7310428150,1021.43,,
Expenditure - Over 500,2016 09,Worcestershire County Council,Children's Services,CH-PROFIT,Early Years - 2 year old funding,E23050,CHEEKY CHARLEYS NURSERY,Third Party Pymts 4Yr Old Nursery Education Grant,53657,05/12/2016,7200027247,1860,,
Expenditure - Over 500,2016 09,Worcestershire County Council,Adult Services & Health,AC-PROFIT,North Worcs Residential LD (Wyre Forest),S35511,CASA MIA,Third Party Payments Purchase of Long Term Care,53667,22/12/2016,7310429501,4880,,
Expenditure - Over 500,2016 09,Worcestershire County Council,Adult Services & Health,AC-PROFIT,Residential - MH,S35641,CASA MIA,Third Party Payments Purchase of Long Term Care,53667,22/12/2016,7310429509,4113.28,,
Expenditure - Over 500,2016 09,Worcestershire County Council,Adult Services & Health,AC-PROFIT,LT Residential - OP,S35341,CASA MIA,Third Party Payments Purchase of Long Term Care,53667,22/12/2016,7310429593,1331.32,,
Expenditure - Over 500,2016 09,Worcestershire County Council,Adult Services & Health,AC-PROFIT,Residential - MH,S35641,CASA MIA,Third Party Payments Purchase of Long Term Care,53667,22/12/2016,7310429613,-8428.58,,
Expenditure - Over 500,2016 09,Worcestershire County Council,Adult Services & Health,AC-PROFIT,Residential - MH,S35641,CASA MIA,Third Party Payments Purchase of Long Term Care,53667,22/12/2016,7310429643,13272.52,,
Expenditure - Over 500,2016 09,Worcestershire County Council,Adult Services & Health,AC-PROFIT,LT Residential - OP,S35341,CHANDOS LODGE LIMITED,Receipts Sales Long Term Residents,67047,22/12/2016,7310429348,1096.04,,
Expenditure - Over 500,2016 09,Worcestershire County Council,Adult Services & Health,AC-PROFIT,LT Residential - OP,S35341,CHANDOS LODGE LIMITED,Receipts Sales Long Term Residents,67047,22/12/2016,7310429480,1238.52,,
Expenditure - Over 500,2016 09,Worcestershire County Council,Adult Services & Health,AC-PROFIT,LT Residential - OP,S35341,CHANDOS LODGE LIMITED,Third Party Payments Purchase of Long Term Care,53667,22/12/2016,7310429512,1824,,
Expenditure - Over 500,2016 09,Worcestershire County Council,Adult Services & Health,AC-PROFIT,LT Residential - OP,S35341,CHANDOS LODGE LIMITED,Receipts Sales Long Term Residents,67047,22/12/2016,7310429550,1668.36,,
Expenditure - Over 500,2016 09,Worcestershire County Council,Adult Services & Health,AC-PROFIT,LT Residential - OP,S35341,CHANDOS LODGE LIMITED,Third Party Payments Purchase of Long Term Care,53667,22/12/2016,7310429576,1477.2,,
Expenditure - Over 500,2016 09,Worcestershire County Council,Adult Services & Health,AC-PROFIT,Step Down Beds,S35724,CHANDOS LODGE LIMITED,TPP Purchase of Planned Replacement Care,53666,22/12/2016,7310429684,2464.58,,
Expenditure - Over 500,2016 09,Worcestershire County Council,Children's Services,CH-PROFIT,Bromsgrove. Catshill Middle,E10627,CATSHILL MIDDLE SCHOOL FUND ACCOUNT,Payments4Schools School Fund Contributions,83508,19/12/2016,3310039072,1948,,
Expenditure - Over 500,2016 09,Worcestershire County Council,Adult Services & Health,AC-PROFIT,Step Down Beds,S35724,CHANDOS LODGE LIMITED,TPP Purchase of Planned Replacement Care,53666,22/12/2016,7310429698,2499.72,,
Expenditure - Over 500,2016 09,Worcestershire County Council,"Business, Environment & Community",EN-DIR,Transport Strategy Team,V19410,CARTER GRAPHICS LIMITED,"Printing, Stationery & Gen Office External",49758,08/12/2016,4101617819,1392,,
Expenditure - Over 500,2016 09,Worcestershire County Council,"Business, Environment & Community",EN-DIR,Transport Strategy Team,V19410,CARTER GRAPHICS LIMITED,"Printing, Stationery & Gen Office External",49758,23/12/2016,4101622950,1270,,
Expenditure - Over 500,2016 09,Worcestershire County Council,Adult Services & Health,AC-PROFIT,Residential - MH,S35641,CASA MIA,Receipts Sales Long Term Residents,67047,22/12/2016,7310429195,1367.96,,
Expenditure - Over 500,2016 09,Worcestershire County Council,Adult Services & Health,AC-PROFIT,Residential - MH,S35641,CASA MIA,Third Party Payments Purchase of Long Term Care,53667,22/12/2016,7310429197,2348.48,,
Expenditure - Over 500,2016 09,Worcestershire County Council,Adult Services & Health,AC-PROFIT,North Worcs Residential LD (Wyre Forest),S35511,CASA MIA,Receipts Sales Long Term Residents,67047,22/12/2016,7310429199,2737.2,,
Expenditure - Over 500,2016 09,Worcestershire County Council,Adult Services & Health,AC-PROFIT,Residential - MH,S35641,CASA MIA,Third Party Payments Purchase of Long Term Care,53667,22/12/2016,7310429203,2396.8,,
Expenditure - Over 500,2016 09,Worcestershire County Council,Adult Services & Health,AC-PROFIT,North Worcs Residential LD (Wyre Forest),S35511,CASA MIA,Receipts Sales Long Term Residents,67047,22/12/2016,7310429233,2174.52,,
Expenditure - Over 500,2016 09,Worcestershire County Council,Adult Services & Health,AC-PROFIT,South Worcester Residential LD,S35551,CEDAR GARDENS,Receipts Sales Long Term Residents,67047,22/12/2016,7310429728,1949.88,,
Expenditure - Over 500,2016 09,Worcestershire County Council,Adult Services & Health,AC-PROFIT,South Worcester Residential LD,S35551,CEDAR GARDENS,Receipts Sales Long Term Residents,67047,22/12/2016,7310429740,2844.32,,
Expenditure - Over 500,2016 09,Worcestershire County Council,Adult Services & Health,AC-PROFIT,South Worcester Residential LD,S35551,CEDAR GARDENS,Receipts Sales Long Term Residents,67047,22/12/2016,7310429742,2922.76,,
Expenditure - Over 500,2016 09,Worcestershire County Council,Adult Services & Health,AC-PROFIT,South Worcester Residential LD,S35551,CEDAR GARDENS,Third Party Payments Purchase of Long Term Care,53667,22/12/2016,7310429784,1875.08,,
Expenditure - Over 500,2016 09,Worcestershire County Council,Children's Services,CH-PROFIT,Early Years - 2 year old funding,E23050,CHURCH HOUSE DAY NURSERY LTD,Third Party Pymts 4Yr Old Nursery Education Grant,53657,05/12/2016,7200027252,8117.4,,
Expenditure - Over 500,2016 09,Worcestershire County Council,Resources,FS-PROFIT,Management Team,F40300,CIPFA,Employee Training External Fees & Accommodation,39009,01/12/2016,4101614465,4129.13,,
Expenditure - Over 500,2016 09,Worcestershire County Council,Adult Services & Health,AC-ERROR,Adults & Community Servs Error Suspense,ACSSER001,CLASSIC CARE LTD,Adult & Community Servs - Other,98254,22/12/2016,7310428429,625,,
Expenditure - Over 500,2016 09,Worcestershire County Council,Adult Services & Health,AC-ERROR,Adults & Community Servs Error Suspense,ACSSER001,CLASSIC CARE LTD,Adult & Community Servs - Other,98254,22/12/2016,7310428431,625,,
Expenditure - Over 500,2016 09,Worcestershire County Council,Adult Services & Health,AC-ERROR,Adults & Community Servs Error Suspense,ACSSER001,CLASSIC CARE LTD,Adult & Community Servs - Other,98254,22/12/2016,7310428433,625,,
Expenditure - Over 500,2016 09,Worcestershire County Council,Adult Services & Health,AC-PROFIT,LT Nursing - OP,S35342,CLASSIC CARE LTD,Third Party Payments Purchase of Long Term Care,53667,22/12/2016,7310428435,-1147.63,,
Expenditure - Over 500,2016 09,Worcestershire County Council,Adult Services & Health,AC-PROFIT,Fairfield Centre Management,S25055,CITY & GUILDS,Services Course Fees For Pupils,50038,28/12/2016,4101624516,599,,
Expenditure - Over 500,2016 09,Worcestershire County Council,Adult Services & Health,AC-PROFIT,Domiciliary Spot - PD,S33412,HOUSING 21,Third Party Payments Dom Care Frm Independent Prov,53669,08/12/2016,7320551913,1333.92,,
Expenditure - Over 500,2016 09,Worcestershire County Council,Adult Services & Health,AC-PROFIT,LT Nursing - OP,S35342,CLASSIC CARE LTD,Receipts Sales Long Term Residents,67047,22/12/2016,7310428197,1516.56,,
Expenditure - Over 500,2016 09,Worcestershire County Council,Adult Services & Health,AC-PROFIT,LT Nursing - OP,S35342,CLASSIC CARE LTD,Third Party Payments Purchase of Long Term Care,53667,22/12/2016,7310428205,2038.2,,
Expenditure - Over 500,2016 09,Worcestershire County Council,Adult Services & Health,AC-PROFIT,LT Nursing - OP,S35342,CLASSIC CARE LTD,Receipts Sales Long Term Residents,67047,22/12/2016,7310428207,1838.2,,
Expenditure - Over 500,2016 09,Worcestershire County Council,Adult Services & Health,AC-ERROR,Adults & Community Servs Error Suspense,ACSSER001,CLASSIC CARE LTD,Adult & Community Servs - Other,98254,22/12/2016,7310428231,625,,
Expenditure - Over 500,2016 09,Worcestershire County Council,Adult Services & Health,AC-ERROR,Adults & Community Servs Error Suspense,ACSSER001,CLASSIC CARE LTD,Adult & Community Servs - Other,98254,22/12/2016,7310428235,625,,
Expenditure - Over 500,2016 09,Worcestershire County Council,Adult Services & Health,AC-ERROR,Adults & Community Servs Error Suspense,ACSSER001,CLASSIC CARE LTD,Adult & Community Servs - Other,98254,22/12/2016,7310428237,625,,
Expenditure - Over 500,2016 09,Worcestershire County Council,Adult Services & Health,AC-ERROR,Adults & Community Servs Error Suspense,ACSSER001,CLASSIC CARE LTD,Adult & Community Servs - Other,98254,22/12/2016,7310428239,625,,
Expenditure - Over 500,2016 09,Worcestershire County Council,Adult Services & Health,AC-ERROR,Adults & Community Servs Error Suspense,ACSSER001,CLASSIC CARE LTD,Adult & Community Servs - Other,98254,22/12/2016,7310428273,625,,
Expenditure - Over 500,2016 09,Worcestershire County Council,Adult Services & Health,AC-PROFIT,COP Property Temporary Code,S35397,CLASSIC CARE LTD,Third Party Payments Purchase of Long Term Care,53667,22/12/2016,7310428401,-585.65,,
Expenditure - Over 500,2016 09,Worcestershire County Council,Adult Services & Health,AC-ERROR,Adults & Community Servs Error Suspense,ACSSER001,CLASSIC CARE LTD,Adult & Community Servs - Other,98254,22/12/2016,7310428403,625,,
Expenditure - Over 500,2016 09,Worcestershire County Council,Adult Services & Health,AC-ERROR,Adults & Community Servs Error Suspense,ACSSER001,CLASSIC CARE LTD,Adult & Community Servs - Other,98254,22/12/2016,7310428405,625,,
Expenditure - Over 500,2016 09,Worcestershire County Council,Adult Services & Health,AC-PROFIT,LT Nursing - OP,S35342,CLASSIC CARE LTD,Third Party Payments Purchase of Long Term Care,53667,22/12/2016,7310428409,2742.56,,
Expenditure - Over 500,2016 09,Worcestershire County Council,Adult Services & Health,AC-PROFIT,LT Nursing - OP,S35342,CLASSIC CARE LTD,Receipts Sales Long Term Residents,67047,22/12/2016,7310428425,1895.8,,
Expenditure - Over 500,2016 09,Worcestershire County Council,Adult Services & Health,AC-ERROR,Adults & Community Servs Error Suspense,ACSSER001,CLASSIC CARE LTD,Adult & Community Servs - Other,98254,22/12/2016,7310428485,625,,
Expenditure - Over 500,2016 09,Worcestershire County Council,Adult Services & Health,AC-PROFIT,LT Nursing - OP,S35342,CLASSIC CARE LTD,Receipts Sales Long Term Residents,67047,22/12/2016,7310428487,1853.28,,
Expenditure - Over 500,2016 09,Worcestershire County Council,Adult Services & Health,AC-PROFIT,COP Property Temporary Code,S35397,CLASSIC CARE LTD,Third Party Payments Purchase of Long Term Care,53667,22/12/2016,7310428489,3629,,
Expenditure - Over 500,2016 09,Worcestershire County Council,Adult Services & Health,AC-ERROR,Adults & Community Servs Error Suspense,ACSSER001,CLASSIC CARE LTD,Adult & Community Servs - Other,98254,22/12/2016,7310428495,625,,
Expenditure - Over 500,2016 09,Worcestershire County Council,Adult Services & Health,AC-ERROR,Adults & Community Servs Error Suspense,ACSSER001,CLASSIC CARE LTD,Adult & Community Servs - Other,98254,22/12/2016,7310428505,625,,
Expenditure - Over 500,2016 09,Worcestershire County Council,Adult Services & Health,AC-ERROR,Adults & Community Servs Error Suspense,ACSSER001,CLASSIC CARE LTD,Adult & Community Servs - Other,98254,22/12/2016,7310428507,625,,
Expenditure - Over 500,2016 09,Worcestershire County Council,Adult Services & Health,AC-ERROR,Adults & Community Servs Error Suspense,ACSSER001,CLASSIC CARE LTD,Adult & Community Servs - Other,98254,22/12/2016,7310428509,625,,
Expenditure - Over 500,2016 09,Worcestershire County Council,Adult Services & Health,AC-ERROR,Adults & Community Servs Error Suspense,ACSSER001,CLASSIC CARE LTD,Adult & Community Servs - Other,98254,22/12/2016,7310428515,625,,
Expenditure - Over 500,2016 09,Worcestershire County Council,Adult Services & Health,AC-ERROR,Adults & Community Servs Error Suspense,ACSSER001,CLASSIC CARE LTD,Adult & Community Servs - Other,98254,22/12/2016,7310428519,625,,
Expenditure - Over 500,2016 09,Worcestershire County Council,Adult Services & Health,AC-ERROR,Adults & Community Servs Error Suspense,ACSSER001,CLASSIC CARE LTD,Adult & Community Servs - Other,98254,22/12/2016,7310428531,625,,
Expenditure - Over 500,2016 09,Worcestershire County Council,Adult Services & Health,AC-ERROR,Adults & Community Servs Error Suspense,ACSSER001,CLASSIC CARE LTD,Adult & Community Servs - Other,98254,22/12/2016,7310428535,625,,
Expenditure - Over 500,2016 09,Worcestershire County Council,Adult Services & Health,AC-ERROR,Adults & Community Servs Error Suspense,ACSSER001,CLASSIC CARE LTD,Adult & Community Servs - Other,98254,22/12/2016,7310428539,625,,
Expenditure - Over 500,2016 09,Worcestershire County Council,Adult Services & Health,AC-ERROR,Adults & Community Servs Error Suspense,ACSSER001,CLASSIC CARE LTD,Adult & Community Servs - Other,98254,22/12/2016,7310428541,625,,
Expenditure - Over 500,2016 09,Worcestershire County Council,Adult Services & Health,AC-ERROR,Adults & Community Servs Error Suspense,ACSSER001,CLASSIC CARE LTD,Adult & Community Servs - Other,98254,22/12/2016,7310428543,625,,
Expenditure - Over 500,2016 09,Worcestershire County Council,Adult Services & Health,AC-PROFIT,12-Week Disregard,S35308,CLASSIC CARE LTD,Receipts Sales Long Term Residents,67047,22/12/2016,7310428545,3596.32,,
Expenditure - Over 500,2016 09,Worcestershire County Council,Adult Services & Health,AC-ERROR,Adults & Community Servs Error Suspense,ACSSER001,CLASSIC CARE LTD,Adult & Community Servs - Other,98254,22/12/2016,7310428569,625,,
Expenditure - Over 500,2016 09,Worcestershire County Council,Adult Services & Health,AC-PROFIT,LT Nursing - OP,S35342,CLASSIC CARE LTD,Third Party Payments Purchase of Long Term Care,53667,22/12/2016,7310428573,2102.84,,
Expenditure - Over 500,2016 09,Worcestershire County Council,Adult Services & Health,AC-PROFIT,PoP Placements,S35386,CLASSIC CARE LTD,TPP Purchase of Planned Replacement Care,53666,22/12/2016,7310428631,815.79,,
Expenditure - Over 500,2016 09,Worcestershire County Council,Adult Services & Health,AC-ERROR,Adults & Community Servs Error Suspense,ACSSER001,CLASSIC CARE LTD,Adult & Community Servs - Other,98254,22/12/2016,7310428663,625,,
Expenditure - Over 500,2016 09,Worcestershire County Council,Adult Services & Health,AC-PROFIT,Step Down Beds,S35724,CLASSIC CARE LTD,TPP Purchase of Planned Replacement Care,53666,22/12/2016,7310428683,3353.78,,
Expenditure - Over 500,2016 09,Worcestershire County Council,Adult Services & Health,AC-ERROR,Adults & Community Servs Error Suspense,ACSSER001,CLASSIC CARE LTD,Adult & Community Servs - Other,98254,22/12/2016,7310428289,625,,
Expenditure - Over 500,2016 09,Worcestershire County Council,Adult Services & Health,AC-ERROR,Adults & Community Servs Error Suspense,ACSSER001,CLASSIC CARE LTD,Adult & Community Servs - Other,98254,22/12/2016,7310428293,625,,
Expenditure - Over 500,2016 09,Worcestershire County Council,Adult Services & Health,AC-ERROR,Adults & Community Servs Error Suspense,ACSSER001,CLASSIC CARE LTD,Adult & Community Servs - Other,98254,22/12/2016,7310428305,625,,
Expenditure - Over 500,2016 09,Worcestershire County Council,Adult Services & Health,AC-ERROR,Adults & Community Servs Error Suspense,ACSSER001,CLASSIC CARE LTD,Adult & Community Servs - Other,98254,22/12/2016,7310428307,625,,
Expenditure - Over 500,2016 09,Worcestershire County Council,Adult Services & Health,AC-PROFIT,LT Nursing - OP,S35342,CLASSIC CARE LTD,Third Party Payments Purchase of Long Term Care,53667,22/12/2016,7310428329,1977.68,,
Expenditure - Over 500,2016 09,Worcestershire County Council,Adult Services & Health,AC-ERROR,Adults & Community Servs Error Suspense,ACSSER001,CLASSIC CARE LTD,Adult & Community Servs - Other,98254,22/12/2016,7310428331,625,,
Expenditure - Over 500,2016 09,Worcestershire County Council,Adult Services & Health,AC-PROFIT,LT Nursing - OP,S35342,CLASSIC CARE LTD,Third Party Payments Purchase of Long Term Care,53667,22/12/2016,7310428367,2004.88,,
Expenditure - Over 500,2016 09,Worcestershire County Council,Adult Services & Health,AC-ERROR,Adults & Community Servs Error Suspense,ACSSER001,CLASSIC CARE LTD,Adult & Community Servs - Other,98254,22/12/2016,7310428383,625,,
Expenditure - Over 500,2016 09,Worcestershire County Council,Adult Services & Health,AC-ERROR,Adults & Community Servs Error Suspense,ACSSER001,CLASSIC CARE LTD,Adult & Community Servs - Other,98254,22/12/2016,7310428391,625,,
Expenditure - Over 500,2016 09,Worcestershire County Council,Adult Services & Health,AC-PROFIT,LT Nursing - OP,S35342,TEWKESBURY NURSING HOME LTD,Receipts Sales Long Term Residents,67047,22/12/2016,7310429334,1103.52,,
Expenditure - Over 500,2016 09,Worcestershire County Council,Adult Services & Health,AC-PROFIT,LT Nursing - OP,S35342,TEWKESBURY NURSING HOME LTD,Receipts Sales Long Term Residents,67047,22/12/2016,7310429368,2141.32,,
Expenditure - Over 500,2016 09,Worcestershire County Council,Adult Services & Health,AC-PROFIT,LT Nursing - OP,S35342,TEWKESBURY NURSING HOME LTD,Receipts Sales Long Term Residents,67047,22/12/2016,7310429390,2307.12,,
Expenditure - Over 500,2016 09,Worcestershire County Council,Adult Services & Health,AC-PROFIT,LT Nursing - OP,S35342,TEWKESBURY NURSING HOME LTD,Receipts Sales Long Term Residents,67047,22/12/2016,7310429408,1714.48,,
Expenditure - Over 500,2016 09,Worcestershire County Council,Adult Services & Health,AC-ERROR,Adults & Community Servs Error Suspense,ACSSER001,TEWKESBURY NURSING HOME LTD,Adult & Community Servs - Other,98254,22/12/2016,7310429514,625,,
Expenditure - Over 500,2016 09,Worcestershire County Council,Adult Services & Health,AC-ERROR,Adults & Community Servs Error Suspense,ACSSER001,TEWKESBURY NURSING HOME LTD,Adult & Community Servs - Other,98254,22/12/2016,7310429544,625,,
Expenditure - Over 500,2016 09,Worcestershire County Council,Adult Services & Health,AC-PROFIT,LT Residential - OP,S35341,TEWKESBURY NURSING HOME LTD,Third Party Payments Purchase of Long Term Care,53667,22/12/2016,7310429570,827.36,,
Expenditure - Over 500,2016 09,Worcestershire County Council,Adult Services & Health,AC-PROFIT,12-Week Disregard,S35308,TEWKESBURY NURSING HOME LTD,Third Party Payments Purchase of Long Term Care,53667,22/12/2016,7310429638,1050,,
Expenditure - Over 500,2016 09,Worcestershire County Council,"Business, Environment & Community",EN-DIR,Concessionary Fares Administration,V21015,EUROLINERS,Third Party Pymnts Public Transport Operators,54005,12/12/2016,7190136174,2126.88,,
Expenditure - Over 500,2016 09,Worcestershire County Council,Adult Services & Health,AC-PROFIT,Domiciliary Spot - PD,S33412,COMPLETE CARE HOLDINGS LIMITED,Third Party Payments Dom Care Frm Independent Prov,53669,01/12/2016,7320550838,3088.9,,
Expenditure - Over 500,2016 09,Worcestershire County Council,Adult Services & Health,AC-PROFIT,Domiciliary Spot - PD,S33412,COMPLETE CARE HOLDINGS LIMITED,Third Party Payments Dom Care Frm Independent Prov,53669,12/12/2016,7320554374,3212.6,,
Expenditure - Over 500,2016 09,Worcestershire County Council,Adult Services & Health,AC-PROFIT,LT Nursing - OP,S35342,TEWKESBURY NURSING HOME LTD,Receipts Sales Long Term Residents,67047,22/12/2016,7310429690,1696.74,,
Expenditure - Over 500,2016 09,Worcestershire County Council,Adult Services & Health,AC-PROFIT,ASH H&S,S34797,COGNET LTD,Training Expenses,51665,30/12/2016,4101622198,440,,
Expenditure - Over 500,2016 09,Worcestershire County Council,Children's Services,CH-PROFIT,Primary Home/School Transport,E10037,COLWALL COACHES,PTG - Transport Tendered / Cont. Services,46021,08/12/2016,7190136119,2417.58,,
Expenditure - Over 500,2016 09,Worcestershire County Council,Adult Services & Health,AC-PROFIT,Domiciliary Spot - PD,S33412,COMPLETE CARE HOLDINGS LIMITED,Third Party Payments Dom Care Frm Independent Prov,53669,30/12/2016,7320560834,3238.8,,
Expenditure - Over 500,2016 09,Worcestershire County Council,"Business, Environment & Community",EN-ERROR,Environmnt Error Suspense,ENVSER001,COMMANDERY COACHES LLP,Environmnt - Other,98252,01/12/2016,7190135981,2520.09,,
Expenditure - Over 500,2016 09,Worcestershire County Council,"Business, Environment & Community",EN-ERROR,Environmnt Error Suspense,ENVSER001,COMMANDERY COACHES LLP,Environmnt - Other,98252,01/12/2016,7190135982,2520.09,,
Expenditure - Over 500,2016 09,Worcestershire County Council,"Business, Environment & Community",EN-ERROR,Environmnt Error Suspense,ENVSER001,COMMANDERY COACHES LLP,Environmnt - Other,98252,08/12/2016,7190135992,2520.09,,
Expenditure - Over 500,2016 09,Worcestershire County Council,Children's Services,CH-PROFIT,Primary Home/School Transport,E10037,COMMANDERY COACHES LLP,PTG - Transport Tendered / Cont. Services,46021,08/12/2016,7190136012,3060,,
Expenditure - Over 500,2016 09,Worcestershire County Council,Children's Services,CH-PROFIT,Primary Home/School Transport,E10037,COMMANDERY COACHES LLP,PTG - Transport Tendered / Cont. Services,46021,08/12/2016,7190136114,2331.8,,
Expenditure - Over 500,2016 09,Worcestershire County Council,"Business, Environment & Community",EN-PROFIT,Community Transport,V21010,COMMUNITY ACTION GROUP,Third Party Pymnts Other Hired & Contracted Servs,53986,12/12/2016,7190136191,606.67,,
Expenditure - Over 500,2016 09,Worcestershire County Council,"Business, Environment & Community",EN-PROFIT,Community Transport,V21010,COMMUNITY ACTION GROUP,Third Party Pymnts Other Hired & Contracted Servs,53986,12/12/2016,7190136192,2287.5,,
Expenditure - Over 500,2016 09,Worcestershire County Council,"Business, Environment & Community",EN-DIR,Concessionary Fares Administration,V21015,COMMUNITY ACTION GROUP,Third Party Pymts Public Transport Voluntary Orgs,53672,22/12/2016,7190136622,1269,,
Expenditure - Over 500,2016 09,Worcestershire County Council,Children's Services,CH-PROFIT,Early Years - 2 year old funding,E23050,CLEEVE PRIOR PRE-SCHOOL,Third Party Pymts 4Yr Old Nursery Education Grant,53657,05/12/2016,7200027253,630,,
Expenditure - Over 500,2016 09,Worcestershire County Council,Adult Services & Health,AC-PROFIT,ASH H&S,S34797,COGNET LTD,Training Expenses,51665,13/12/2016,4101616400,1600,,
Expenditure - Over 500,2016 09,Worcestershire County Council,Adult Services & Health,AC-PROFIT,ASH H&S,S34797,COGNET LTD,Training Expenses,51665,13/12/2016,4101617849,1507.5,,
Expenditure - Over 500,2016 09,Worcestershire County Council,Adult Services & Health,AC-PROFIT,Domiciliary Spot - OP,S33414,COUNTY HOME CARE SERVICES LTD T/A,Third Party Payments Dom Care Frm Independent Prov,53669,08/12/2016,7320552442,582.4,,
Expenditure - Over 500,2016 09,Worcestershire County Council,Resources,CS-PROFIT,Allowances & Expenses,C40226,COUNTY COUNCILS NETWORK,Expenses Members Conference Fees,50611,05/12/2016,4101616790,1780,,
Expenditure - Over 500,2016 09,Worcestershire County Council,Adult Services & Health,AC-PROFIT,Domiciliary Spot - OP,S33414,COUNTY HOME CARE SERVICES LTD T/A,Third Party Payments Dom Care Frm Independent Prov,53669,01/12/2016,7320550791,509.6,,
Expenditure - Over 500,2016 09,Worcestershire County Council,Adult Services & Health,AC-PROFIT,Domiciliary Spot - OP,S33414,COUNTY HOME CARE SERVICES LTD T/A,Third Party Payments Dom Care Frm Independent Prov,53669,01/12/2016,7320550792,509.6,,
Expenditure - Over 500,2016 09,Worcestershire County Council,Adult Services & Health,AC-PROFIT,Domiciliary Spot - OP,S33414,COUNTY HOME CARE SERVICES LTD T/A,Third Party Payments Dom Care Frm Independent Prov,53669,01/12/2016,7320550793,509.6,,
Expenditure - Over 500,2016 09,Worcestershire County Council,Adult Services & Health,AC-PROFIT,Domiciliary Spot - OP,S33414,COUNTY HOME CARE SERVICES LTD T/A,Third Party Payments Dom Care Frm Independent Prov,53669,01/12/2016,7320550794,509.6,,
Expenditure - Over 500,2016 09,Worcestershire County Council,Adult Services & Health,AC-PROFIT,Domiciliary Block - OP,S33424,COUNTY HOME CARE SERVICES LTD T/A,Third Party Payments Dom Care Frm Independent Prov,53669,05/12/2016,7320551387,577.9,,
Expenditure - Over 500,2016 09,Worcestershire County Council,Adult Services & Health,AC-PROFIT,Domiciliary Spot - OP,S33414,COUNTY HOME CARE SERVICES LTD T/A,Third Party Payments Dom Care Frm Independent Prov,53669,05/12/2016,7320551393,505.82,,
Expenditure - Over 500,2016 09,Worcestershire County Council,Adult Services & Health,AC-PROFIT,Domiciliary Block - OP,S33424,COUNTY HOME CARE SERVICES LTD T/A,Third Party Payments Dom Care Frm Independent Prov,53669,05/12/2016,7320551407,577.41,,
Expenditure - Over 500,2016 09,Worcestershire County Council,Adult Services & Health,AC-PROFIT,Domiciliary Spot - OP,S33414,COUNTY HOME CARE SERVICES LTD T/A,Third Party Payments Dom Care Frm Independent Prov,53669,08/12/2016,7320552448,582.4,,
Expenditure - Over 500,2016 09,Worcestershire County Council,Adult Services & Health,AC-PROFIT,Domiciliary Spot - OP,S33414,COUNTY HOME CARE SERVICES LTD T/A,Third Party Payments Dom Care Frm Independent Prov,53669,08/12/2016,7320552446,582.4,,
Expenditure - Over 500,2016 09,Worcestershire County Council,Children's Services,CH-PROFIT,Early Years - 2 year old funding,E23050,COMMUNITY CORNER PRE-SCHOOL,Third Party Pymts 4Yr Old Nursery Education Grant,53657,05/12/2016,7200027255,1512,,
Expenditure - Over 500,2016 09,Worcestershire County Council,Adult Services & Health,AC-PROFIT,Investment in Extra Care,S32360,COUNTY HOME CARE SERVICES LTD T/A,Third Party Payments Purchase of Long Term Care,53667,08/12/2016,7320553703,637.05,,
Expenditure - Over 500,2016 09,Worcestershire County Council,Adult Services & Health,AC-PROFIT,Investment in Extra Care,S32360,COUNTY HOME CARE SERVICES LTD T/A,Third Party Payments Purchase of Long Term Care,53667,08/12/2016,7320553704,637.05,,
Expenditure - Over 500,2016 09,Worcestershire County Council,Adult Services & Health,AC-PROFIT,LT Residential - OP,S35341,COMMUNITY WORLD LTD,Third Party Payments Purchase of Long Term Care,53667,22/12/2016,7310429350,704,,
Expenditure - Over 500,2016 09,Worcestershire County Council,Adult Services & Health,AC-PROFIT,LT Residential - OP,S35341,COMMUNITY WORLD LTD,Receipts Sales Long Term Residents,67047,22/12/2016,7310429454,1380.32,,
Expenditure - Over 500,2016 09,Worcestershire County Council,Adult Services & Health,AC-PROFIT,LT Residential - OP,S35341,COMMUNITY WORLD LTD,Receipts Sales Long Term Residents,67047,22/12/2016,7310429490,1059.52,,
Expenditure - Over 500,2016 09,Worcestershire County Council,Adult Services & Health,AC-PROFIT,LT Residential - OP,S35341,COMMUNITY WORLD LTD,Receipts Sales Long Term Residents,67047,22/12/2016,7310429520,1547.32,,
Expenditure - Over 500,2016 09,Worcestershire County Council,Adult Services & Health,AC-PROFIT,LT Residential - OP,S35341,COMMUNITY WORLD LTD,Receipts Sales Long Term Residents,67047,22/12/2016,7310429586,1165.2,,
Expenditure - Over 500,2016 09,Worcestershire County Council,Adult Services & Health,AC-PROFIT,LT Residential - OP,S35341,COMMUNITY WORLD LTD,Third Party Payments Purchase of Long Term Care,53667,22/12/2016,7310429320,2042.32,,
Expenditure - Over 500,2016 09,Worcestershire County Council,Children's Services,CH-PROFIT,Secondary Home/School Transport,E10707,CLEARWAY TAXIS,PTG - Transport Tendered / Cont. Services,46021,08/12/2016,7190136148,1653.31,,
Expenditure - Over 500,2016 09,Worcestershire County Council,"Business, Environment & Community",EN-DIR,Concessionary Fares Administration,V21015,CLEARWAY TAXIS,Third Party Pymnts Public Transport Operators,54005,12/12/2016,7190136171,2709.99,,
Expenditure - Over 500,2016 09,Worcestershire County Council,Children's Services,CH-PROFIT,Primary - SEN H/S Transport,E20801,CLEARWAY TAXIS,PTG - Transport Tendered / Cont. Services,46021,19/12/2016,7190136575,2376,,
Expenditure - Over 500,2016 09,Worcestershire County Council,Children's Services,CH-PROFIT,External Placements Perm Team 2,E38601,COTSWOLD CHINE HOME-SCHOOL,Third Party Pymts Agency Residential,54058,19/12/2016,4101620564,22200,,
Expenditure - Over 500,2016 09,Worcestershire County Council,Adult Services & Health,AC-PROFIT,Domiciliary Block - OP,S33424,COUNTY HOME CARE SERVICES LTD T/A,Third Party Payments Dom Care Frm Independent Prov,53669,12/12/2016,7320555310,577.9,,
Expenditure - Over 500,2016 09,Worcestershire County Council,Adult Services & Health,AC-PROFIT,Domiciliary Spot - OP,S33414,COUNTY HOME CARE SERVICES LTD T/A,Third Party Payments Dom Care Frm Independent Prov,53669,12/12/2016,7320555326,505.82,,
Expenditure - Over 500,2016 09,Worcestershire County Council,Adult Services & Health,AC-PROFIT,Domiciliary Block - OP,S33424,COUNTY HOME CARE SERVICES LTD T/A,Third Party Payments Dom Care Frm Independent Prov,53669,12/12/2016,7320555347,577.41,,
Expenditure - Over 500,2016 09,Worcestershire County Council,Adult Services & Health,AC-PROFIT,Domiciliary Spot - OP,S33414,COUNTY HOME CARE SERVICES LTD T/A,Third Party Payments Dom Care Frm Independent Prov,53669,12/12/2016,7320555378,509.6,,
Expenditure - Over 500,2016 09,Worcestershire County Council,Adult Services & Health,AC-PROFIT,Domiciliary Block - OP,S33424,COUNTY HOME CARE SERVICES LTD T/A,Third Party Payments Dom Care Frm Independent Prov,53669,12/12/2016,7320555381,577.9,,
Expenditure - Over 500,2016 09,Worcestershire County Council,Adult Services & Health,AC-PROFIT,Investment in Extra Care,S32360,COUNTY HOME CARE SERVICES LTD T/A,Third Party Payments Purchase of Long Term Care,53667,08/12/2016,7320553705,637.05,,
Expenditure - Over 500,2016 09,Worcestershire County Council,Adult Services & Health,AC-PROFIT,Investment in Extra Care,S32360,COUNTY HOME CARE SERVICES LTD T/A,Third Party Payments Purchase of Long Term Care,53667,23/12/2016,7320560767,637.05,,
Expenditure - Over 500,2016 09,Worcestershire County Council,Adult Services & Health,AC-PROFIT,Domiciliary Spot - OP,S33414,COUNTY HOME CARE SERVICES LTD T/A,Third Party Payments Dom Care Frm Independent Prov,53669,12/12/2016,7320555386,505.82,,
Expenditure - Over 500,2016 09,Worcestershire County Council,Adult Services & Health,AC-PROFIT,Domiciliary Block - OP,S33424,COUNTY HOME CARE SERVICES LTD T/A,Third Party Payments Dom Care Frm Independent Prov,53669,12/12/2016,7320555388,577.41,,
Expenditure - Over 500,2016 09,Worcestershire County Council,Adult Services & Health,AC-PROFIT,Domiciliary Spot - OP,S33414,COUNTY HOME CARE SERVICES LTD T/A,Third Party Payments Dom Care Frm Independent Prov,53669,30/12/2016,7320561725,582.4,,
Expenditure - Over 500,2016 09,Worcestershire County Council,Adult Services & Health,AC-PROFIT,Domiciliary Block - OP,S33424,COUNTY HOME CARE SERVICES LTD T/A,Third Party Payments Dom Care Frm Independent Prov,53669,23/12/2016,7320560337,577.9,,
Expenditure - Over 500,2016 09,Worcestershire County Council,Adult Services & Health,AC-PROFIT,Domiciliary Spot - OP,S33414,COUNTY HOME CARE SERVICES LTD T/A,Third Party Payments Dom Care Frm Independent Prov,53669,23/12/2016,7320560345,505.82,,
Expenditure - Over 500,2016 09,Worcestershire County Council,Adult Services & Health,AC-PROFIT,Domiciliary Block - OP,S33424,COUNTY HOME CARE SERVICES LTD T/A,Third Party Payments Dom Care Frm Independent Prov,53669,23/12/2016,7320560358,577.41,,
Expenditure - Over 500,2016 09,Worcestershire County Council,Adult Services & Health,AC-PROFIT,Domiciliary Block - OP,S33424,COUNTY HOME CARE SERVICES LTD T/A,Third Party Payments Dom Care Frm Independent Prov,53669,30/12/2016,7320561925,577.9,,
Expenditure - Over 500,2016 09,Worcestershire County Council,Adult Services & Health,AC-PROFIT,Domiciliary Spot - OP,S33414,COUNTY HOME CARE SERVICES LTD T/A,Third Party Payments Dom Care Frm Independent Prov,53669,30/12/2016,7320561931,505.82,,
Expenditure - Over 500,2016 09,Worcestershire County Council,Adult Services & Health,AC-PROFIT,Domiciliary Block - OP,S33424,COUNTY HOME CARE SERVICES LTD T/A,Third Party Payments Dom Care Frm Independent Prov,53669,30/12/2016,7320561938,577.41,,
Expenditure - Over 500,2016 09,Worcestershire County Council,Adult Services & Health,AC-PROFIT,Domiciliary Block - OP,S33424,COUNTY HOME CARE SERVICES LTD T/A,Third Party Payments Dom Care Frm Independent Prov,53669,19/12/2016,7320558020,577.9,,
Expenditure - Over 500,2016 09,Worcestershire County Council,Adult Services & Health,AC-PROFIT,Domiciliary Spot - OP,S33414,COUNTY HOME CARE SERVICES LTD T/A,Third Party Payments Dom Care Frm Independent Prov,53669,19/12/2016,7320558026,505.82,,
Expenditure - Over 500,2016 09,Worcestershire County Council,Adult Services & Health,AC-PROFIT,Domiciliary Block - OP,S33424,COUNTY HOME CARE SERVICES LTD T/A,Third Party Payments Dom Care Frm Independent Prov,53669,19/12/2016,7320558032,577.41,,
Expenditure - Over 500,2016 09,Worcestershire County Council,Adult Services & Health,AC-PROFIT,Investment in Extra Care,S32360,COUNTY HOME CARE SERVICES LTD T/A,Third Party Payments Purchase of Long Term Care,53667,19/12/2016,7320558656,637.05,,
Expenditure - Over 500,2016 09,Worcestershire County Council,Adult Services & Health,AC-PROFIT,Domiciliary Spot - OP,S33414,COUNTYWIDE HOMECARE LTD,Third Party Payments Dom Care Frm Independent Prov,53669,22/12/2016,7320559549,547.4,,
Expenditure - Over 500,2016 09,Worcestershire County Council,Adult Services & Health,AC-PROFIT,Domiciliary Spot - PD,S33412,COUNTYWIDE HOMECARE LTD,Third Party Payments Dom Care Frm Independent Prov,53669,22/12/2016,7320559566,581.6,,
Expenditure - Over 500,2016 09,Worcestershire County Council,Adult Services & Health,AC-PROFIT,Domiciliary Spot - OP,S33414,COUNTYWIDE HOMECARE LTD,Third Party Payments Dom Care Frm Independent Prov,53669,08/12/2016,7320552068,547.4,,
Expenditure - Over 500,2016 09,Worcestershire County Council,Adult Services & Health,AC-PROFIT,Domiciliary Spot - PD,S33412,COUNTYWIDE HOMECARE LTD,Third Party Payments Dom Care Frm Independent Prov,53669,08/12/2016,7320552094,630.53,,
Expenditure - Over 500,2016 09,Worcestershire County Council,Adult Services & Health,AC-PROFIT,Domiciliary Spot - OP,S33414,COUNTYWIDE HOMECARE LTD,Third Party Payments Dom Care Frm Independent Prov,53669,08/12/2016,7320552356,547.4,,
Expenditure - Over 500,2016 09,Worcestershire County Council,Adult Services & Health,AC-PROFIT,Domiciliary Spot - PD,S33412,COUNTYWIDE HOMECARE LTD,Third Party Payments Dom Care Frm Independent Prov,53669,08/12/2016,7320552394,630.53,,
Expenditure - Over 500,2016 09,Worcestershire County Council,Adult Services & Health,AC-PROFIT,Domiciliary Spot - OP,S33414,COUNTYWIDE HOMECARE LTD,Third Party Payments Dom Care Frm Independent Prov,53669,19/12/2016,7320557242,547.4,,
Expenditure - Over 500,2016 09,Worcestershire County Council,Adult Services & Health,AC-PROFIT,Domiciliary Spot - PD,S33412,COUNTYWIDE HOMECARE LTD,Third Party Payments Dom Care Frm Independent Prov,53669,19/12/2016,7320557261,638.8,,
Expenditure - Over 500,2016 09,Worcestershire County Council,Adult Services & Health,AC-PROFIT,Domiciliary Spot - OP,S33414,COUNTYWIDE HOMECARE LTD,Third Party Payments Dom Care Frm Independent Prov,53669,30/12/2016,7320562487,547.4,,
Expenditure - Over 500,2016 09,Worcestershire County Council,Adult Services & Health,AC-PROFIT,Domiciliary Spot - PD,S33412,COUNTYWIDE HOMECARE LTD,Third Party Payments Dom Care Frm Independent Prov,53669,30/12/2016,7320562504,622.27,,
Expenditure - Over 500,2016 09,Worcestershire County Council,Adult Services & Health,AC-PROFIT,Domiciliary Spot - PD,S33412,CROSSROADS CARE,Third Party Payments Dom Care Frm Independent Prov,53669,23/12/2016,7320560494,826.06,,
Expenditure - Over 500,2016 09,Worcestershire County Council,Non Directorate Specific,LA01,Police Houses Purchase,CA86535,CRIMESTOP SECURITY & FIRE LTD,CAPEX Construction Costs Main Contractor,64951,05/12/2016,3330001219,3310,,
Expenditure - Over 500,2016 09,Worcestershire County Council,Children's Services,CH-PROFIT,Early Years - 2 year old funding,E23050,CRABBS CROSS & HUNT END PLAY GROUP,Third Party Pymts 4Yr Old Nursery Education Grant,53657,05/12/2016,7200027260,3822,,
Expenditure - Over 500,2016 09,Worcestershire County Council,Children's Services,CH-PROFIT,Early Years - 2 year old funding,E23050,CROWLE PRE-SCHOOL,Third Party Pymts 4Yr Old Nursery Education Grant,53657,05/12/2016,7200027261,1257.2,,
Expenditure - Over 500,2016 09,Worcestershire County Council,Children's Services,CH-PROFIT,Special Home/School Transport,E10877,CROWN RADIO TAXIS,PTG - Transport Tendered / Cont. Services,46021,22/12/2016,7190136725,4015,,
Expenditure - Over 500,2016 09,Worcestershire County Council,Children's Services,CH-PROFIT,Special Home/School Transport,E10877,CROWN RADIO TAXIS,PTG - Transport Tendered / Cont. Services,46021,22/12/2016,7190136726,3476,,
Expenditure - Over 500,2016 09,Worcestershire County Council,Children's Services,CH-PROFIT,Post 16 - SEN H/S Transport,E20803,CROWN RADIO TAXIS,PTG - Transport Tendered / Cont. Services,46021,22/12/2016,7190136727,2814,,
Expenditure - Over 500,2016 09,Worcestershire County Council,Children's Services,CH-PROFIT,Special Home/School Transport,E10877,CROWN RADIO TAXIS,PTG - Transport Tendered / Cont. Services,46021,22/12/2016,7190136728,2625,,
Expenditure - Over 500,2016 09,Worcestershire County Council,Children's Services,CH-PROFIT,Post 16 - SEN H/S Transport,E20803,CROWN RADIO TAXIS,PTG - Transport Tendered / Cont. Services,46021,22/12/2016,7190136729,2226,,
Expenditure - Over 500,2016 09,Worcestershire County Council,Children's Services,CH-PROFIT,Special Home/School Transport,E10877,CROWN RADIO TAXIS,PTG - Transport Tendered / Cont. Services,46021,22/12/2016,7190136737,3366,,
Expenditure - Over 500,2016 09,Worcestershire County Council,Children's Services,CH-PROFIT,Post 16 - SEN H/S Transport,E20803,CROWN RADIO TAXIS,PTG - Transport Tendered / Cont. Services,46021,22/12/2016,7190136739,1650,,
Expenditure - Over 500,2016 09,Worcestershire County Council,Children's Services,CH-PROFIT,Short Breaks on framework,E31529,CROWN RADIO TAXIS,PTG - Transport Tendered / Cont. Services,46021,22/12/2016,7190136740,1980,,
Expenditure - Over 500,2016 09,Worcestershire County Council,Adult Services & Health,AC-PROFIT,Blakenhurst Brockhill  Hewell Libraries,S80494,BERTRAM LIBRARY SERVICES,Materials Videos and DVDs,49041,30/12/2016,7150040034,632.69,,
Expenditure - Over 500,2016 09,Worcestershire County Council,Children's Services,CH-PROFIT,Special Home/School Transport,E10877,CUSTOM TRAVEL,PTG - Transport Tendered / Cont. Services,46021,22/12/2016,7190136738,3423,,
Expenditure - Over 500,2016 09,Worcestershire County Council,Adult Services & Health,AC-PROFIT,Bookfund,S80460,BERTRAM LIBRARY SERVICES,Books,49018,05/12/2016,7150039896,618.59,,
Expenditure - Over 500,2016 09,Worcestershire County Council,Adult Services & Health,AC-PROFIT,Support for Sensory Impairment,S42087,DEAF DIRECT LIMITED,Third Party Payments External Provider,54044,05/12/2016,4101617241,1292.6,,
Expenditure - Over 500,2016 09,Worcestershire County Council,Adult Services & Health,AC-PROFIT,Primary Care - LARC Sex.Hlth/Contracept,S42033,THORNELOE LODGE SURGERY,Third Party Payments,53006,15/12/2016,4101620230,1289.64,,
Expenditure - Over 500,2016 09,Worcestershire County Council,Children's Services,CH-PROFIT,Early Years - 2 year old funding,E23050,DROITWICH SPA NURSERY & KINDERGARTE,Third Party Pymts 4Yr Old Nursery Education Grant,53657,05/12/2016,7200027265,3025,,
Expenditure - Over 500,2016 09,Worcestershire County Council,Adult Services & Health,AC-PROFIT,The Grange Kidderminster,S31164,DDC DOLPHIN LTD,Equipment Equipment Repair & Maintenance,49004,08/12/2016,4101615716,781.78,,
Expenditure - Over 500,2016 09,Worcestershire County Council,Children's Services,CH-PROFIT,Foundation Learning,E35010,DROITWICH SPA & RURAL COUNCIL,Services Client Training Fees,50036,22/12/2016,4101620555,720,,
Expenditure - Over 500,2016 09,Worcestershire County Council,"Business, Environment & Community",EN-DIR,Concessionary Fares Administration,V21015,DUDLEY'S COACHES,Third Party Pymnts Public Transport Operators,54005,19/12/2016,7190136400,778.08,,
Expenditure - Over 500,2016 09,Worcestershire County Council,Children's Services,CH-PROFIT,Primary Home/School Transport,E10037,ELGAR COACHES,PTG - Transport Tendered / Cont. Services,46021,19/12/2016,7190136597,5346,,
Expenditure - Over 500,2016 09,Worcestershire County Council,Children's Services,CH-PROFIT,Secondary Home/School Transport,E10707,ELGAR COACHES,PTG - Transport Tendered / Cont. Services,46021,19/12/2016,7190136598,4609,,
Expenditure - Over 500,2016 09,Worcestershire County Council,Children's Services,CH-PROFIT,Primary Home/School Transport,E10037,ELGAR COACHES,PTG - Transport Tendered / Cont. Services,46021,19/12/2016,7190136599,4730,,
Expenditure - Over 500,2016 09,Worcestershire County Council,Children's Services,CH-PROFIT,Secondary Home/School Transport,E10707,ELGAR COACHES,PTG - Transport Tendered / Cont. Services,46021,19/12/2016,7190136600,4010,,
Expenditure - Over 500,2016 09,Worcestershire County Council,Adult Services & Health,AC-PROFIT,North Worcs Residential LD (Wyre Forest),S35511,DEVON & CORNWALL AUTISTIC COMM'TY T,Third Party Payments Purchase of Long Term Care,53667,22/12/2016,7310430222,4754.92,,
Expenditure - Over 500,2016 09,Worcestershire County Council,Children's Services,CH-PROFIT,Primary Home/School Transport,E10037,DUDLEY'S COACHES,PTG - Transport Tendered / Cont. Services,46021,08/12/2016,7190136005,3898.11,,
Expenditure - Over 500,2016 09,Worcestershire County Council,Children's Services,CH-PROFIT,Primary Home/School Transport,E10037,DUDLEY'S COACHES,PTG - Transport Tendered / Cont. Services,46021,08/12/2016,7190136006,3748.19,,
Expenditure - Over 500,2016 09,Worcestershire County Council,Children's Services,CH-PROFIT,Trans't to Non WCC Secondary Schools,E10028,DUDLEY'S COACHES,PTG - Transport Tendered / Cont. Services,46021,08/12/2016,7190136008,3249.58,,
Expenditure - Over 500,2016 09,Worcestershire County Council,Adult Services & Health,AC-PROFIT,North Worcs Nursing LD (Wyre Forest),S35512,EDGEVIEW HOMES LTD,Receipts Sales Long Term Residents,67047,22/12/2016,7310427689,4738.84,,
Expenditure - Over 500,2016 09,Worcestershire County Council,Adult Services & Health,AC-PROFIT,South Worcester Nursing LD,S35552,EDGEVIEW HOMES LTD,Third Party Payments Purchase of Long Term Care,53667,22/12/2016,7310427691,5124.28,,
Expenditure - Over 500,2016 09,Worcestershire County Council,Adult Services & Health,AC-PROFIT,North Worcs Nursing LD (Wyre Forest),S35512,EDGEVIEW HOMES LTD,Third Party Payments Purchase of Long Term Care,53667,22/12/2016,7310427693,3131.52,,
Expenditure - Over 500,2016 09,Worcestershire County Council,Adult Services & Health,AC-PROFIT,North Worcs Nursing LD (Wyre Forest),S35512,EDGEVIEW HOMES LTD,Receipts Sales Long Term Residents,67047,22/12/2016,7310427695,3532.84,,
Expenditure - Over 500,2016 09,Worcestershire County Council,Adult Services & Health,AC-PROFIT,North Worcs Nursing LD (Wyre Forest),S35512,EDGEVIEW HOMES LTD,Receipts Sales Long Term Residents,67047,22/12/2016,7310427697,3698.36,,
Expenditure - Over 500,2016 09,Worcestershire County Council,Adult Services & Health,AC-PROFIT,Nursing - MH,S35642,EDGEVIEW HOMES LTD,Third Party Payments Purchase of Long Term Care,53667,22/12/2016,7310427699,3468.68,,
Expenditure - Over 500,2016 09,Worcestershire County Council,Adult Services & Health,AC-PROFIT,North Worcs Nursing LD (Wyre Forest),S35512,EDGEVIEW HOMES LTD,Third Party Payments Purchase of Long Term Care,53667,22/12/2016,7310427709,8815.24,,
Expenditure - Over 500,2016 09,Worcestershire County Council,Adult Services & Health,AC-PROFIT,Nursing - MH,S35642,EDGEVIEW HOMES LTD,Third Party Payments Purchase of Long Term Care,53667,22/12/2016,7310427711,9695.6,,
Expenditure - Over 500,2016 09,Worcestershire County Council,Adult Services & Health,AC-PROFIT,South Worcester Residential LD,S35551,ELERI HOUSE,Receipts Sales Long Term Residents,67047,22/12/2016,7310429746,2840.48,,
Expenditure - Over 500,2016 09,Worcestershire County Council,Adult Services & Health,AC-PROFIT,Equipment - Pooled Budgets,S31526,DENBIGHSHIRE COUNTY COUNCIL,Equipment Adults SDD,49084,15/12/2016,4101621101,899.72,,
Expenditure - Over 500,2016 09,Worcestershire County Council,Adult Services & Health,AC-PROFIT,Equipment - Pooled Budgets,S31526,DENBIGHSHIRE COUNTY COUNCIL,Equipment Adults SDD,49084,23/12/2016,4101624254,1008.12,,
Expenditure - Over 500,2016 09,Worcestershire County Council,Adult Services & Health,AC-PROFIT,Equipment - Pooled Budgets,S31526,DENBIGHSHIRE COUNTY COUNCIL,Equipment Adults SDD,49084,30/12/2016,4101624865,1008.12,,
Expenditure - Over 500,2016 09,Worcestershire County Council,Adult Services & Health,AC-PROFIT,South Worcester Residential LD,S35551,DERWEN COLLEGE,Third Party Payments Purchase of Long Term Care,53667,22/12/2016,7310429518,2239.54,,
Expenditure - Over 500,2016 09,Worcestershire County Council,Adult Services & Health,AC-PROFIT,North Worcs Residential LD (Wyre Forest),S35511,ELERI HOUSE,Receipts Sales Long Term Residents,67047,22/12/2016,7310429748,2815.56,,
Expenditure - Over 500,2016 09,Worcestershire County Council,Adult Services & Health,AC-PROFIT,South Worcester Residential LD,S35551,DERWEN COLLEGE,Third Party Payments Purchase of Long Term Care,53667,22/12/2016,7310429658,2335.59,,
Expenditure - Over 500,2016 09,Worcestershire County Council,Adult Services & Health,AC-PROFIT,South Worcester Residential LD,S35551,DERWEN COLLEGE,Third Party Payments Purchase of Long Term Care,53667,22/12/2016,7310429660,2436.57,,
Expenditure - Over 500,2016 09,Worcestershire County Council,Children's Services,CH-PROFIT,FE Home/College Transport,E20227,DUDLEY'S COACHES,PTG - Public Transport Bus,47514,01/12/2016,7190135975,5470,,
Expenditure - Over 500,2016 09,Worcestershire County Council,Adult Services & Health,AC-ERROR,Adults & Community Servs Error Suspense,ACSSER001,ELIZABETH FINN GROUP,Adult & Community Servs - Other,98254,22/12/2016,7310429727,625,,
Expenditure - Over 500,2016 09,Worcestershire County Council,Adult Services & Health,AC-ERROR,Adults & Community Servs Error Suspense,ACSSER001,ELIZABETH FINN GROUP,Adult & Community Servs - Other,98254,22/12/2016,7310429741,625,,
Expenditure - Over 500,2016 09,Worcestershire County Council,Adult Services & Health,AC-ERROR,Adults & Community Servs Error Suspense,ACSSER001,ELIZABETH FINN GROUP,Adult & Community Servs - Other,98254,22/12/2016,7310429751,625,,
Expenditure - Over 500,2016 09,Worcestershire County Council,Adult Services & Health,AC-ERROR,Adults & Community Servs Error Suspense,ACSSER001,ELIZABETH FINN GROUP,Adult & Community Servs - Other,98254,22/12/2016,7310429805,625,,
Expenditure - Over 500,2016 09,Worcestershire County Council,Adult Services & Health,AC-ERROR,Adults & Community Servs Error Suspense,ACSSER001,ELIZABETH FINN GROUP,Adult & Community Servs - Other,98254,22/12/2016,7310429811,625,,
Expenditure - Over 500,2016 09,Worcestershire County Council,Adult Services & Health,AC-ERROR,Adults & Community Servs Error Suspense,ACSSER001,ELIZABETH FINN GROUP,Adult & Community Servs - Other,98254,22/12/2016,7310429861,625,,
Expenditure - Over 500,2016 09,Worcestershire County Council,Adult Services & Health,AC-ERROR,Adults & Community Servs Error Suspense,ACSSER001,ELIZABETH FINN GROUP,Adult & Community Servs - Other,98254,22/12/2016,7310429933,625,,
Expenditure - Over 500,2016 09,Worcestershire County Council,Adult Services & Health,AC-ERROR,Adults & Community Servs Error Suspense,ACSSER001,ELIZABETH FINN GROUP,Adult & Community Servs - Other,98254,22/12/2016,7310429935,625,,
Expenditure - Over 500,2016 09,Worcestershire County Council,Adult Services & Health,AC-ERROR,Adults & Community Servs Error Suspense,ACSSER001,ELIZABETH FINN GROUP,Adult & Community Servs - Other,98254,22/12/2016,7310429943,625,,
Expenditure - Over 500,2016 09,Worcestershire County Council,Adult Services & Health,AC-PROFIT,Property Charge Temporary Code,S35398,ELIZABETH FINN GROUP,Receipts Sales Long Term Residents,67047,22/12/2016,7310429947,3919.6,,
Expenditure - Over 500,2016 09,Worcestershire County Council,Adult Services & Health,AC-ERROR,Adults & Community Servs Error Suspense,ACSSER001,ELIZABETH FINN GROUP,Adult & Community Servs - Other,98254,22/12/2016,7310429953,625,,
Expenditure - Over 500,2016 09,Worcestershire County Council,Adult Services & Health,AC-ERROR,Adults & Community Servs Error Suspense,ACSSER001,ELIZABETH FINN GROUP,Adult & Community Servs - Other,98254,22/12/2016,7310430065,625,,
Expenditure - Over 500,2016 09,Worcestershire County Council,Adult Services & Health,AC-PROFIT,12-Week Disregard,S35308,ELIZABETH FINN GROUP,Third Party Payments Purchase of Long Term Care,53667,22/12/2016,7310430073,3225,,
Expenditure - Over 500,2016 09,Worcestershire County Council,Adult Services & Health,AC-ERROR,Adults & Community Servs Error Suspense,ACSSER001,ELIZABETH FINN GROUP,Adult & Community Servs - Other,98254,22/12/2016,7310430091,625,,
Expenditure - Over 500,2016 09,Worcestershire County Council,Adult Services & Health,AC-ERROR,Adults & Community Servs Error Suspense,ACSSER001,ELIZABETH FINN GROUP,Adult & Community Servs - Other,98254,22/12/2016,7310430093,625,,
Expenditure - Over 500,2016 09,Worcestershire County Council,Adult Services & Health,AC-PROFIT,LT Residential - OP,S35341,ELIZABETH FINN GROUP,Third Party Payments Purchase of Long Term Care,53667,22/12/2016,7310430137,2776.84,,
Expenditure - Over 500,2016 09,Worcestershire County Council,Children's Services,CH-PROFIT,FE Home/College Transport,E20227,DUDLEY'S COACHES,PTG - Public Transport Bus,47514,22/12/2016,7190136615,5468.5,,
Expenditure - Over 500,2016 09,Worcestershire County Council,Children's Services,CH-PROFIT,Primary Home/School Transport,E10037,DUDLEY'S COACHES,PTG - Transport Tendered / Cont. Services,46021,22/12/2016,7190136839,3850,,
Expenditure - Over 500,2016 09,Worcestershire County Council,Children's Services,CH-PROFIT,Early Years - 2 year old funding,E23050,EAST REALM LTD,Third Party Pymts 4Yr Old Nursery Education Grant,53657,05/12/2016,7200027426,6007.57,,
Expenditure - Over 500,2016 09,Worcestershire County Council,Children's Services,CH-PROFIT,Early Years - 2 year old funding,E23050,DEERHURST DAY NURSERY,Third Party Pymts 4Yr Old Nursery Education Grant,53657,05/12/2016,7200027263,2229.5,,
Expenditure - Over 500,2016 09,Worcestershire County Council,Adult Services & Health,AC-PROFIT,South Worcester Nursing LD,S35552,EDGEVIEW HOMES LTD,Third Party Payments Purchase of Long Term Care,53667,22/12/2016,7310427715,11172,,
Expenditure - Over 500,2016 09,Worcestershire County Council,Adult Services & Health,AC-PROFIT,South Worcester Residential LD,S35551,EDGEVIEW HOMES LTD,Third Party Payments Purchase of Long Term Care,53667,22/12/2016,7310428073,10334.44,,
Expenditure - Over 500,2016 09,Worcestershire County Council,Adult Services & Health,AC-PROFIT,North Worcs Residential LD (Wyre Forest),S35511,EDGEVIEW HOMES LTD,Third Party Payments Purchase of Long Term Care,53667,22/12/2016,7310430314,10182.72,,
Expenditure - Over 500,2016 09,Worcestershire County Council,Adult Services & Health,AC-PROFIT,North Supported Living Scheme,S31367,EDGEVIEW HOMES LTD,Third Party Payments Purchase of Long Term Care,53667,22/12/2016,7310430516,3769.92,,
Expenditure - Over 500,2016 09,Worcestershire County Council,Adult Services & Health,AC-PROFIT,North Worcs Residential LD (Wyre Forest),S35511,EDGEVIEW HOMES LTD,Receipts Sales Long Term Residents,67047,22/12/2016,7310430608,9864.12,,
Expenditure - Over 500,2016 09,Worcestershire County Council,Children's Services,CH-PROFIT,Primary Home/School Transport,E10037,ELGAR COACHES,PTG - Transport Tendered / Cont. Services,46021,23/12/2016,7190136873,1535.26,,
Expenditure - Over 500,2016 09,Worcestershire County Council,Children's Services,CH-PROFIT,Secondary Home/School Transport,E10707,ELGAR COACHES,PTG - Transport Tendered / Cont. Services,46021,23/12/2016,7190136874,1401.96,,
Expenditure - Over 500,2016 09,Worcestershire County Council,Adult Services & Health,AC-PROFIT,North Worcs Residential LD (Wyre Forest),S35511,FITZROY SUPPORT,Third Party Payments Purchase of Long Term Care,53667,22/12/2016,7310429710,5923.36,,
Expenditure - Over 500,2016 09,Worcestershire County Council,Adult Services & Health,AC-PROFIT,South Worcester Residential LD,S35551,FITZROY SUPPORT,Third Party Payments Purchase of Long Term Care,53667,22/12/2016,7310429782,6375.24,,
Expenditure - Over 500,2016 09,Worcestershire County Council,Adult Services & Health,AC-PROFIT,South Worcester Residential LD,S35551,FITZROY SUPPORT,Third Party Payments Purchase of Long Term Care,53667,22/12/2016,7310429816,6532.24,,
Expenditure - Over 500,2016 09,Worcestershire County Council,Adult Services & Health,AC-PROFIT,South Worcester Residential LD,S35551,FITZROY SUPPORT,Third Party Payments Purchase of Long Term Care,53667,22/12/2016,7310429940,4785.08,,
Expenditure - Over 500,2016 09,Worcestershire County Council,"Business, Environment & Community",EN-PROFIT,"Management, Admin, Professional & E",V22000,EVERSHEDS,Legal Fees,50024,28/12/2016,4101624345,5130,,
Expenditure - Over 500,2016 09,Worcestershire County Council,"Business, Environment & Community",EN-PROFIT,"Management, Admin, Professional & E",V22000,EVERSHEDS,Legal Fees,50024,28/12/2016,4101624348,2828.74,,
Expenditure - Over 500,2016 09,Worcestershire County Council,Non Directorate Specific,,,,EVERSHEDS,Legal Fees,50024,28/12/2016,4101624346,9783,,
Expenditure - Over 500,2016 09,Worcestershire County Council,Non Directorate Specific,,,,EDUCATIONAL AND MUNICIPAL EQUIPMENT,Legal Fees,50024,06/12/2016,4101590349,502.5,,
Expenditure - Over 500,2016 09,Worcestershire County Council,Children's Services,CH-PROFIT,The De Montfort School,E10746,THE DE MONTFORD SCHOOL,Payments4Schools School Fund Contributions,83508,06/12/2016,3310038812,5006,,
Expenditure - Over 500,2016 09,Worcestershire County Council,Adult Services & Health,AC-PROFIT,Adults Housing Related Support,S42082,FCH HOUSING & CARE,Third Party Payments External Provider,54044,20/12/2016,4101623296,1066.66,,
Expenditure - Over 500,2016 09,Worcestershire County Council,Adult Services & Health,AC-PROFIT,LT Residential - OP,S35341,FIELD VIEW RESIDENTIAL HOME,Receipts Sales Long Term Residents,67047,22/12/2016,7310429312,1199.24,,
Expenditure - Over 500,2016 09,Worcestershire County Council,Adult Services & Health,AC-PROFIT,LT Residential - OP,S35341,FIELD VIEW RESIDENTIAL HOME,Receipts Sales Long Term Residents,67047,22/12/2016,7310429336,979.96,,
Expenditure - Over 500,2016 09,Worcestershire County Council,Adult Services & Health,AC-PROFIT,COP Property Temporary Code,S35397,FIELD VIEW RESIDENTIAL HOME,Third Party Payments Purchase of Long Term Care,53667,22/12/2016,7310429496,1980,,
Expenditure - Over 500,2016 09,Worcestershire County Council,Adult Services & Health,AC-PROFIT,COP Property Temporary Code,S35397,FIELD VIEW RESIDENTIAL HOME,Third Party Payments Purchase of Long Term Care,53667,22/12/2016,7310429560,-3046.2,,
Expenditure - Over 500,2016 09,Worcestershire County Council,Adult Services & Health,AC-PROFIT,LT Residential - OP,S35341,FIELD VIEW RESIDENTIAL HOME,Receipts Sales Long Term Residents,67047,22/12/2016,7310429590,1391.6,,
Expenditure - Over 500,2016 09,Worcestershire County Council,Children's Services,CH-PROFIT,Early Years - 2 year old funding,E23050,FIRST CLASS NURSERY (KIDDERMINSTER),Third Party Pymts 4Yr Old Nursery Education Grant,53657,05/12/2016,7200027272,4680,,
Expenditure - Over 500,2016 09,Worcestershire County Council,Children's Services,CH-PROFIT,Flyford Flavell First,E10204,FLYFORD FLAVELL FIRST SCHOOL,Education School Bank Accounts,99903,12/12/2016,3310038923,822.82,,
Expenditure - Over 500,2016 09,Worcestershire County Council,Children's Services,CH-PROFIT,Flyford Flavell First,E10204,FLYFORD FLAVELL FIRST SCHOOL,Education School Bank Accounts,99903,12/12/2016,3310038924,522.94,,
Expenditure - Over 500,2016 09,Worcestershire County Council,Children's Services,CH-PROFIT,Flyford Flavell First,E10204,FLYFORD FLAVELL FIRST SCHOOL,Education School Bank Accounts,99903,28/12/2016,3310039277,824.51,,
Expenditure - Over 500,2016 09,Worcestershire County Council,Children's Services,CH-PROFIT,Inter-Auth Recoupment - Primary,E10032,GLOUCESTERSHIRE COUNTY COUNCIL,Third Party Payments Inter Authority Recoupment,52354,23/12/2016,4101624033,1448.15,,
Expenditure - Over 500,2016 09,Worcestershire County Council,Non Directorate Specific,LA01,Assess Principal Inspections,CA55011,HALCROW GROUP LTD,CAPEX Profess & Tech Fees Other Ext Profess Fees,64457,20/12/2016,4101621438,3386.21,,
Expenditure - Over 500,2016 09,Worcestershire County Council,Non Directorate Specific,LA01,Non PRN North Maintenance,CA55057,HALCROW GROUP LTD,CAPEX Profess & Tech Fees Other Ext Profess Fees,64457,20/12/2016,4101621441,1555.99,,
Expenditure - Over 500,2016 09,Worcestershire County Council,Non Directorate Specific,LA01,Non PRN North Maintenance,CA55057,HALCROW GROUP LTD,CAPEX Profess & Tech Fees Other Ext Profess Fees,64457,20/12/2016,4101621443,4456.85,,
Expenditure - Over 500,2016 09,Worcestershire County Council,Non Directorate Specific,LA01,NPRN Bridge Maintenance Countrywide,CA55111,HALCROW GROUP LTD,CAPEX Profess & Tech Fees Other Ext Profess Fees,64457,20/12/2016,4101621451,1568.47,,
Expenditure - Over 500,2016 09,Worcestershire County Council,"Business, Environment & Community",EN-PROFIT,WCC Transport Models,V19405,HALCROW GROUP LTD,Consultants Fees,50030,22/12/2016,4101621930,6750.32,,
Expenditure - Over 500,2016 09,Worcestershire County Council,Non Directorate Specific,LA01,Pot Hole Funding - South,CA48482,HALCROW GROUP LTD,CAPEX Profess & Tech Fees Other Ext Profess Fees,64457,22/12/2016,4101621966,33615.44,,
Expenditure - Over 500,2016 09,Worcestershire County Council,"Business, Environment & Community",EN-PROFIT,WCC Transport Models,V19405,HALCROW GROUP LTD,Consultants Fees,50030,22/12/2016,4101621939,3725.56,,
Expenditure - Over 500,2016 09,Worcestershire County Council,Non Directorate Specific,LA01,Bromsgrove Package Development,CA62002,HALCROW GROUP LTD,CAPEX Profess & Tech Fees Other Ext Profess Fees,64457,22/12/2016,4101621420,3026.78,,
Expenditure - Over 500,2016 09,Worcestershire County Council,"Business, Environment & Community",EN-PROFIT,Development Control S278/38 Team,V16300,HALCROW GROUP LTD,Professional Fees,50031,22/12/2016,4101621765,2731.41,,
Expenditure - Over 500,2016 09,Worcestershire County Council,"Business, Environment & Community",EN-PROFIT,Transport Planning Overheads,V19400,HALCROW GROUP LTD,Professional Fees,50031,22/12/2016,4101621876,14289.74,,
Expenditure - Over 500,2016 09,Worcestershire County Council,Non Directorate Specific,LA01,Kidderminster Station Improvements,CA60850,HALCROW GROUP LTD,CAPEX Profess & Tech Fees Other Ext Profess Fees,64457,22/12/2016,4101621899,10768.27,,
Expenditure - Over 500,2016 09,Worcestershire County Council,Non Directorate Specific,LA01,"Worcester, Technology Park",CA87904,HALCROW GROUP LTD,CAPEX Profess & Tech Fees Other Ext Profess Fees,64457,22/12/2016,4101621967,1002.49,,
Expenditure - Over 500,2016 09,Worcestershire County Council,Non Directorate Specific,LA01,Worcestershire Gulley Connections,CA48473,HALCROW GROUP LTD,CAPEX Profess & Tech Fees Other Ext Profess Fees,64457,23/12/2016,4101621376,8422.95,,
Expenditure - Over 500,2016 09,Worcestershire County Council,Non Directorate Specific,LA01,Pershore Northern Access Improvements,CA60851,HALCROW GROUP LTD,CAPEX Profess & Tech Fees Other Ext Profess Fees,64457,23/12/2016,4101621423,24688.85,,
Expenditure - Over 500,2016 09,Worcestershire County Council,Non Directorate Specific,LA01,Non PRN North Maintenance,CA55057,HALCROW GROUP LTD,CAPEX Profess & Tech Fees Other Ext Profess Fees,64457,23/12/2016,4101621667,1894.96,,
Expenditure - Over 500,2016 09,Worcestershire County Council,Adult Services & Health,AC-ERROR,Adults & Community Servs Error Suspense,ACSSER001,GLENFIELD HOUSE NURSING HOME LTD,Adult & Community Servs - Other,98254,22/12/2016,7310429543,625,,
Expenditure - Over 500,2016 09,Worcestershire County Council,Adult Services & Health,AC-ERROR,Adults & Community Servs Error Suspense,ACSSER001,GLENFIELD HOUSE NURSING HOME LTD,Adult & Community Servs - Other,98254,22/12/2016,7310429575,625,,
Expenditure - Over 500,2016 09,Worcestershire County Council,Adult Services & Health,AC-ERROR,Adults & Community Servs Error Suspense,ACSSER001,GLENFIELD HOUSE NURSING HOME LTD,Adult & Community Servs - Other,98254,22/12/2016,7310429577,625,,
Expenditure - Over 500,2016 09,Worcestershire County Council,Adult Services & Health,AC-PROFIT,LT Nursing - OP,S35342,GLENFIELD HOUSE NURSING HOME LTD,Third Party Payments Purchase of Long Term Care,53667,22/12/2016,7310429583,2159.92,,
Expenditure - Over 500,2016 09,Worcestershire County Council,Adult Services & Health,AC-ERROR,Adults & Community Servs Error Suspense,ACSSER001,GLENFIELD HOUSE NURSING HOME LTD,Adult & Community Servs - Other,98254,22/12/2016,7310429601,625,,
Expenditure - Over 500,2016 09,Worcestershire County Council,Children's Services,CH-PROFIT,Inter-Auth Recoupment - Special,E10872,GLOUCESTERSHIRE COUNTY COUNCIL,Third Party Payments Inter Authority Recoupment,52354,12/12/2016,4101609705,3077.04,,
Expenditure - Over 500,2016 09,Worcestershire County Council,Children's Services,CH-PROFIT,Inter-Auth Recoupment - Special,E10872,GLOUCESTERSHIRE COUNTY COUNCIL,Third Party Payments Inter Authority Recoupment,52354,12/12/2016,4101609706,5128.12,,
Expenditure - Over 500,2016 09,Worcestershire County Council,Non Directorate Specific,LA01,Eastham Bridge,CA55112,HALCROW GROUP LTD,CAPEX Profess & Tech Fees Other Ext Profess Fees,64457,30/12/2016,4101621467,3846.22,,
Expenditure - Over 500,2016 09,Worcestershire County Council,Children's Services,CH-PROFIT,Early Years - 2 year old funding,E23050,GREAT WITLEY PRE-SCHOOL PLAYGROUP,Third Party Pymts 4Yr Old Nursery Education Grant,53657,05/12/2016,7200027276,1050,,
Expenditure - Over 500,2016 09,Worcestershire County Council,Non Directorate Specific,LA01,Cathedral Plaza,CA60849,HALCROW GROUP LTD,CAPEX Profess & Tech Fees Other Ext Profess Fees,64457,05/12/2016,4101610797,32481.6,,
Expenditure - Over 500,2016 09,Worcestershire County Council,Non Directorate Specific,LA01,Tenbury Public Realm Improvements,CA60833,HALCROW GROUP LTD,CAPEX Profess & Tech Fees Other Ext Profess Fees,64457,12/12/2016,4101610787,798.38,,
Expenditure - Over 500,2016 09,Worcestershire County Council,Non Directorate Specific,LA01,IPT Small Works Package,CA60842,HALCROW GROUP LTD,CAPEX Profess & Tech Fees Other Ext Profess Fees,64457,12/12/2016,4101618776,1168.58,,
Expenditure - Over 500,2016 09,Worcestershire County Council,Non Directorate Specific,LA01,WTSMSB Southern Link Road Dualling,CA40013,HALCROW GROUP LTD,CAPEX Profess & Tech Fees Other Ext Profess Fees,64457,12/12/2016,4101618778,3536.51,,
Expenditure - Over 500,2016 09,Worcestershire County Council,Non Directorate Specific,LA01,Bromsgrove Package Development,CA62002,HALCROW GROUP LTD,CAPEX Profess & Tech Fees Site Investigation Fees,64459,12/12/2016,4101618780,1813.63,,
Expenditure - Over 500,2016 09,Worcestershire County Council,"Business, Environment & Community",EN-DIR,Highways Status & Extent Team,V17450,HALCROW GROUP LTD,Consultants Fees,50030,12/12/2016,4101618786,11428.74,,
Expenditure - Over 500,2016 09,Worcestershire County Council,"Business, Environment & Community",EN-PROFIT,SLR4,V19408,HALCROW GROUP LTD,Professional Fees,50031,12/12/2016,4101618804,1169.7,,
Expenditure - Over 500,2016 09,Worcestershire County Council,"Business, Environment & Community",EN-PROFIT,Transport Planning Overheads,V19400,HALCROW GROUP LTD,Professional Fees,50031,12/12/2016,4101618770,3079.74,,
Expenditure - Over 500,2016 09,Worcestershire County Council,"Business, Environment & Community",EN-PROFIT,Transport Planning Overheads,V19400,HALCROW GROUP LTD,Professional Fees,50031,12/12/2016,4101618771,2824.73,,
Expenditure - Over 500,2016 09,Worcestershire County Council,"Business, Environment & Community",EN-PROFIT,Transport Planning Overheads,V19400,HALCROW GROUP LTD,Professional Fees,50031,12/12/2016,4101618773,1996.91,,
Expenditure - Over 500,2016 09,Worcestershire County Council,"Business, Environment & Community",EN-PROFIT,Transport Planning Overheads,V19400,HALCROW GROUP LTD,Professional Fees,50031,20/12/2016,4101621490,2684.7,,
Expenditure - Over 500,2016 09,Worcestershire County Council,"Business, Environment & Community",EN-PROFIT,Transport Planning Overheads,V19400,HALCROW GROUP LTD,Professional Fees,50031,20/12/2016,4101621495,3000.16,,
Expenditure - Over 500,2016 09,Worcestershire County Council,"Business, Environment & Community",EN-PROFIT,Transport Planning Overheads,V19400,HALCROW GROUP LTD,Professional Fees,50031,20/12/2016,4101621501,-2685.66,,
Expenditure - Over 500,2016 09,Worcestershire County Council,"Business, Environment & Community",EN-PROFIT,Transport Planning Overheads,V19400,HALCROW GROUP LTD,Professional Fees,50031,20/12/2016,4101621508,8642.24,,
Expenditure - Over 500,2016 09,Worcestershire County Council,"Business, Environment & Community",EN-PROFIT,Transport Planning Overheads,V19400,HALCROW GROUP LTD,Professional Fees,50031,20/12/2016,4101621513,1180.42,,
Expenditure - Over 500,2016 09,Worcestershire County Council,"Business, Environment & Community",EN-PROFIT,Transport Planning Overheads,V19400,HALCROW GROUP LTD,Professional Fees,50031,20/12/2016,4101621519,5014.57,,
Expenditure - Over 500,2016 09,Worcestershire County Council,"Business, Environment & Community",EN-PROFIT,Transport Planning Overheads,V19400,HALCROW GROUP LTD,Professional Fees,50031,20/12/2016,4101621522,-606.26,,
Expenditure - Over 500,2016 09,Worcestershire County Council,"Business, Environment & Community",EN-PROFIT,Transport Planning Overheads,V19400,HALCROW GROUP LTD,Professional Fees,50031,20/12/2016,4101621526,1649.63,,
Expenditure - Over 500,2016 09,Worcestershire County Council,"Business, Environment & Community",EN-PROFIT,Transport Planning Overheads,V19400,HALCROW GROUP LTD,Professional Fees,50031,20/12/2016,4101621538,517.27,,
Expenditure - Over 500,2016 09,Worcestershire County Council,"Business, Environment & Community",EN-PROFIT,Transport Planning Overheads,V19400,HALCROW GROUP LTD,Professional Fees,50031,20/12/2016,4101621543,772.71,,
Expenditure - Over 500,2016 09,Worcestershire County Council,"Business, Environment & Community",EN-PROFIT,Transport Planning Overheads,V19400,HALCROW GROUP LTD,Professional Fees,50031,20/12/2016,4101621547,2444.06,,
Expenditure - Over 500,2016 09,Worcestershire County Council,Non Directorate Specific,LA01,NPRN Bridge Maintenance Countrywide,CA55111,HALCROW GROUP LTD,CAPEX Profess & Tech Fees Other Ext Profess Fees,64457,20/12/2016,4101621661,3559.32,,
Expenditure - Over 500,2016 09,Worcestershire County Council,Non Directorate Specific,LA01,NPRN Bridge Maintenance Countrywide,CA55111,HALCROW GROUP LTD,CAPEX Profess & Tech Fees Other Ext Profess Fees,64457,20/12/2016,4101621671,1401.32,,
Expenditure - Over 500,2016 09,Worcestershire County Council,Non Directorate Specific,LA01,Surface Dressing,CA48415,HALCROW GROUP LTD,CAPEX Profess & Tech Fees Other Ext Profess Fees,64457,20/12/2016,4101621850,3846.87,,
Expenditure - Over 500,2016 09,Worcestershire County Council,"Business, Environment & Community",EN-PROFIT,Transport Planning Overheads,V19400,HALCROW GROUP LTD,Professional Fees,50031,22/12/2016,4101621617,477.12,,
Expenditure - Over 500,2016 09,Worcestershire County Council,"Business, Environment & Community",EN-PROFIT,Development Control S278/38 Team,V16300,HALCROW GROUP LTD,Professional Fees,50031,22/12/2016,4101621679,4507.96,,
Expenditure - Over 500,2016 09,Worcestershire County Council,"Business, Environment & Community",EN-PROFIT,Development Control S278/38 Team,V16300,HALCROW GROUP LTD,Professional Fees,50031,22/12/2016,4101621683,-2812.64,,
Expenditure - Over 500,2016 09,Worcestershire County Council,Non Directorate Specific,LA01,WTSMSB Real Time Information Syatems,CA40015,HALCROW GROUP LTD,CAPEX Profess & Tech Fees Other Ext Profess Fees,64457,20/12/2016,4101621878,5376.12,,
Expenditure - Over 500,2016 09,Worcestershire County Council,Resources,PP-PROFIT,Game Changer Programme 1,X85205,HALCROW GROUP LTD,Consultants Fees,50030,20/12/2016,4101621935,2428.92,,
Expenditure - Over 500,2016 09,Worcestershire County Council,Non Directorate Specific,LA01,Non PRN North Maintenance,CA55057,HALCROW GROUP LTD,CAPEX Profess & Tech Fees Other Ext Profess Fees,64457,20/12/2016,4101621458,1546.25,,
Expenditure - Over 500,2016 09,Worcestershire County Council,"Business, Environment & Community",EN-PROFIT,SLR4,V19408,HALCROW GROUP LTD,Professional Fees,50031,20/12/2016,4101621390,109858.01,,
Expenditure - Over 500,2016 09,Worcestershire County Council,Non Directorate Specific,LA01,WTSMSB Southern Link Road Dualling,CA40013,HALCROW GROUP LTD,CAPEX Profess & Tech Fees Other Ext Profess Fees,64457,20/12/2016,4101621394,12129.5,,
Expenditure - Over 500,2016 09,Worcestershire County Council,Non Directorate Specific,LA01,Worcestershire Parkway,CA60779,HALCROW GROUP LTD,CAPEX Profess & Tech Fees Other Ext Profess Fees,64457,20/12/2016,4101621397,13350.98,,
Expenditure - Over 500,2016 09,Worcestershire County Council,"Business, Environment & Community",EN-PROFIT,Transport Planning Overheads,V19400,HALCROW GROUP LTD,Professional Fees,50031,20/12/2016,4101621424,2899.65,,
Expenditure - Over 500,2016 09,Worcestershire County Council,"Business, Environment & Community",EN-PROFIT,Transport Planning Overheads,V19400,HALCROW GROUP LTD,Professional Fees,50031,20/12/2016,4101621434,2998.49,,
Expenditure - Over 500,2016 09,Worcestershire County Council,"Business, Environment & Community",EN-DIR,"(184) Selsdon Cl, Wythall - f'way/cross",V52111,HALCROW GROUP LTD,Professional Fees,50031,22/12/2016,4101621865,1291.82,,
Expenditure - Over 500,2016 09,Worcestershire County Council,Non Directorate Specific,LA01,Non PRN North Maintenance,CA55057,HALCROW GROUP LTD,CAPEX Profess & Tech Fees Other Ext Profess Fees,64457,20/12/2016,4101621454,3585.23,,
Expenditure - Over 500,2016 09,Worcestershire County Council,Non Directorate Specific,LA01,Non PRN North Maintenance,CA55057,HALCROW GROUP LTD,CAPEX Profess & Tech Fees Other Ext Profess Fees,64457,20/12/2016,4101621462,8829.29,,
Expenditure - Over 500,2016 09,Worcestershire County Council,"Business, Environment & Community",EN-PROFIT,WCC Transport Models,V19405,HALCROW GROUP LTD,Professional Fees,50031,20/12/2016,4101621607,897.09,,
Expenditure - Over 500,2016 09,Worcestershire County Council,"Business, Environment & Community",EN-PROFIT,Evesham Traffic Study,V19409,HALCROW GROUP LTD,Professional Fees,50031,20/12/2016,4101621615,9882.19,,
Expenditure - Over 500,2016 09,Worcestershire County Council,Adult Services & Health,AC-PROFIT,LT Residential - PD,S35441,FATHER HUDSON'S SOCIETY,Receipts Sales Long Term Residents,67047,22/12/2016,7310430204,3992.12,,
Expenditure - Over 500,2016 09,Worcestershire County Council,Adult Services & Health,AC-PROFIT,North Worcs Residential LD (Wyre Forest),S35511,FAVOR HOUSE HOMES,Third Party Payments Purchase of Long Term Care,53667,22/12/2016,7310429248,1816.8,,
Expenditure - Over 500,2016 09,Worcestershire County Council,Adult Services & Health,AC-PROFIT,North Worcs Residential LD (Wyre Forest),S35511,FAVOR HOUSE HOMES,Third Party Payments Purchase of Long Term Care,53667,22/12/2016,7310429250,1689.8,,
Expenditure - Over 500,2016 09,Worcestershire County Council,Adult Services & Health,AC-PROFIT,North Worcs Residential LD (Wyre Forest),S35511,FAVOR HOUSE HOMES,Third Party Payments Purchase of Long Term Care,53667,22/12/2016,7310429252,1846.2,,
Expenditure - Over 500,2016 09,Worcestershire County Council,Adult Services & Health,AC-PROFIT,North Worcs Residential LD (Wyre Forest),S35511,FAVOR HOUSE HOMES,Third Party Payments Purchase of Long Term Care,53667,22/12/2016,7310429254,2210,,
Expenditure - Over 500,2016 09,Worcestershire County Council,Adult Services & Health,AC-PROFIT,North Worcs Residential LD (Wyre Forest),S35511,FAVOR HOUSE HOMES,Receipts Sales Long Term Residents,67047,22/12/2016,7310429256,1826.88,,
Expenditure - Over 500,2016 09,Worcestershire County Council,Adult Services & Health,AC-PROFIT,North Worcs Residential LD (Wyre Forest),S35511,FAVOR HOUSE HOMES,Receipts Sales Long Term Residents,67047,22/12/2016,7310429258,5100.56,,
Expenditure - Over 500,2016 09,Worcestershire County Council,Adult Services & Health,AC-PROFIT,North Worcs Residential LD (Wyre Forest),S35511,FAVOR HOUSE HOMES,Receipts Sales Long Term Residents,67047,22/12/2016,7310429262,3924.64,,
Expenditure - Over 500,2016 09,Worcestershire County Council,Adult Services & Health,AC-PROFIT,North Worcs Residential LD (Wyre Forest),S35511,FAVOR HOUSE HOMES,Third Party Payments Purchase of Long Term Care,53667,22/12/2016,7310429308,5100.56,,
Expenditure - Over 500,2016 09,Worcestershire County Council,Adult Services & Health,AC-PROFIT,North Worcs Residential LD (Wyre Forest),S35511,FAVOR HOUSE HOMES,Third Party Payments Purchase of Long Term Care,53667,22/12/2016,7310429310,2522.2,,
Expenditure - Over 500,2016 09,Worcestershire County Council,Adult Services & Health,AC-PROFIT,North Worcs Residential LD (Wyre Forest),S35511,FAVOR HOUSE HOMES,Third Party Payments Purchase of Long Term Care,53667,22/12/2016,7310429316,3601.2,,
Expenditure - Over 500,2016 09,Worcestershire County Council,Adult Services & Health,AC-PROFIT,North Worcs Residential LD (Wyre Forest),S35511,FAVOR HOUSE HOMES,Third Party Payments Purchase of Long Term Care,53667,22/12/2016,7310429330,4337.2,,
Expenditure - Over 500,2016 09,Worcestershire County Council,Adult Services & Health,AC-PROFIT,North Worcs Short Breaks LD,S35510,FAVOR HOUSE HOMES,TPP Purchase of Planned Replacement Care,53666,22/12/2016,7310429670,2414.28,,
Expenditure - Over 500,2016 09,Worcestershire County Council,Adult Services & Health,AC-PROFIT,North Worcs Short Breaks LD,S35510,FAVOR HOUSE HOMES,TPP Purchase of Planned Replacement Care,53666,22/12/2016,7310429694,5942.86,,
Expenditure - Over 500,2016 09,Worcestershire County Council,Adult Services & Health,AC-PROFIT,North Supported Living Scheme,S31367,FAVOR HOUSE HOMES,Third Party Payments Purchase of Long Term Care,53667,22/12/2016,7310430564,1848.32,,
Expenditure - Over 500,2016 09,Worcestershire County Council,Adult Services & Health,AC-PROFIT,LD North Domiciliary,S33413,FAVOR HOUSE HOMES,Third Party Payments Dom Care Frm Independent Prov,53669,30/12/2016,7320561088,1975.68,,
Expenditure - Over 500,2016 09,Worcestershire County Council,Adult Services & Health,AC-PROFIT,LD North Domiciliary,S33413,FAVOR HOUSE HOMES,Third Party Payments Dom Care Frm Independent Prov,53669,30/12/2016,7320561089,2030.56,,
Expenditure - Over 500,2016 09,Worcestershire County Council,Adult Services & Health,AC-PROFIT,LD North Domiciliary,S33413,FAVOR HOUSE HOMES,Third Party Payments Dom Care Frm Independent Prov,53669,30/12/2016,7320561087,880.08,,
Expenditure - Over 500,2016 09,Worcestershire County Council,Non Directorate Specific,LA01,NPRN Bridge Maintenance Countrywide,CA55111,HALCROW GROUP LTD,CAPEX Profess & Tech Fees Other Ext Profess Fees,64457,22/12/2016,4101621466,1992.82,,
Expenditure - Over 500,2016 09,Worcestershire County Council,"Business, Environment & Community",EN-DIR,Transport Strategy Team,V19410,HALCROW GROUP LTD,Professional Fees,50031,22/12/2016,4101621602,1293.24,,
Expenditure - Over 500,2016 09,Worcestershire County Council,Non Directorate Specific,LA01,NPRN Bridge Maintenance Countrywide,CA55111,HALCROW GROUP LTD,CAPEX Profess & Tech Fees Other Ext Profess Fees,64457,22/12/2016,4101621675,1159,,
Expenditure - Over 500,2016 09,Worcestershire County Council,"Business, Environment & Community",EN-PROFIT,Development Control S278/38 Team,V16300,HALCROW GROUP LTD,Professional Fees,50031,22/12/2016,4101621692,3219.46,,
Expenditure - Over 500,2016 09,Worcestershire County Council,"Business, Environment & Community",EN-PROFIT,Development Control S278/38 Team,V16300,HALCROW GROUP LTD,Professional Fees,50031,22/12/2016,4101621759,1912.8,,
Expenditure - Over 500,2016 09,Worcestershire County Council,Adult Services & Health,AC-PROFIT,LT Nursing - OP,S35342,HERITAGE MANOR LTD,Third Party Payments Purchase of Long Term Care,53667,22/12/2016,7310427620,1444.2,,
Expenditure - Over 500,2016 09,Worcestershire County Council,Adult Services & Health,AC-PROFIT,Interim Care,S35385,HERITAGE MANOR LTD,TPP Purchase of Planned Replacement Care,53666,22/12/2016,7310427698,617.5,,
Expenditure - Over 500,2016 09,Worcestershire County Council,Adult Services & Health,AC-ERROR,Adults & Community Servs Error Suspense,ACSSER001,HERITAGE MANOR LTD,Adult & Community Servs - Other,98254,22/12/2016,7310430698,625,,
Expenditure - Over 500,2016 09,Worcestershire County Council,Adult Services & Health,AC-PROFIT,LT Nursing - OP,S35342,HERITAGE MANOR LTD,Receipts Sales Long Term Residents,67047,22/12/2016,7310430706,-1686.93,,
Expenditure - Over 500,2016 09,Worcestershire County Council,Adult Services & Health,AC-PROFIT,LT Nursing - OP,S35342,HERITAGE MANOR LTD,Receipts Sales Long Term Residents,67047,22/12/2016,7310430716,2107.4,,
Expenditure - Over 500,2016 09,Worcestershire County Council,Adult Services & Health,AC-PROFIT,LT Nursing - OP,S35342,HERITAGE MANOR LTD,Third Party Payments Purchase of Long Term Care,53667,22/12/2016,7310430717,1994.08,,
Expenditure - Over 500,2016 09,Worcestershire County Council,Adult Services & Health,AC-PROFIT,LT Nursing - OP,S35342,HERITAGE MANOR LTD,Receipts Sales Long Term Residents,67047,22/12/2016,7310430737,1935.04,,
Expenditure - Over 500,2016 09,Worcestershire County Council,Adult Services & Health,AC-ERROR,Adults & Community Servs Error Suspense,ACSSER001,HERITAGE MANOR LTD,Adult & Community Servs - Other,98254,22/12/2016,7310430763,625,,
Expenditure - Over 500,2016 09,Worcestershire County Council,Adult Services & Health,AC-PROFIT,LT Nursing - OP,S35342,HERITAGE MANOR LTD,Third Party Payments Purchase of Long Term Care,53667,22/12/2016,7310430766,2136.52,,
Expenditure - Over 500,2016 09,Worcestershire County Council,Adult Services & Health,AC-PROFIT,LT Nursing - OP,S35342,HERITAGE MANOR LTD,Third Party Payments Purchase of Long Term Care,53667,22/12/2016,7310430771,1878.84,,
Expenditure - Over 500,2016 09,Worcestershire County Council,Adult Services & Health,AC-ERROR,Adults & Community Servs Error Suspense,ACSSER001,HERITAGE MANOR LTD,Adult & Community Servs - Other,98254,22/12/2016,7310430774,625,,
Expenditure - Over 500,2016 09,Worcestershire County Council,Adult Services & Health,AC-ERROR,Adults & Community Servs Error Suspense,ACSSER001,HERITAGE MANOR LTD,Adult & Community Servs - Other,98254,22/12/2016,7310430778,625,,
Expenditure - Over 500,2016 09,Worcestershire County Council,Adult Services & Health,AC-ERROR,Adults & Community Servs Error Suspense,ACSSER001,HERITAGE MANOR LTD,Adult & Community Servs - Other,98254,22/12/2016,7310430797,625,,
Expenditure - Over 500,2016 09,Worcestershire County Council,Adult Services & Health,AC-ERROR,Adults & Community Servs Error Suspense,ACSSER001,HERITAGE MANOR LTD,Adult & Community Servs - Other,98254,22/12/2016,7310430804,625,,
Expenditure - Over 500,2016 09,Worcestershire County Council,Adult Services & Health,AC-PROFIT,LT Nursing - OP,S35342,HERITAGE MANOR LTD,Third Party Payments Purchase of Long Term Care,53667,22/12/2016,7310430813,2658.24,,
Expenditure - Over 500,2016 09,Worcestershire County Council,Adult Services & Health,AC-ERROR,Adults & Community Servs Error Suspense,ACSSER001,HERITAGE MANOR LTD,Adult & Community Servs - Other,98254,22/12/2016,7310430816,625,,
Expenditure - Over 500,2016 09,Worcestershire County Council,Adult Services & Health,AC-PROFIT,LT Nursing - OP,S35342,HERITAGE MANOR LTD,Receipts Sales Long Term Residents,67047,22/12/2016,7310430817,1484.28,,
Expenditure - Over 500,2016 09,Worcestershire County Council,Adult Services & Health,AC-ERROR,Adults & Community Servs Error Suspense,ACSSER001,HERITAGE MANOR LTD,Adult & Community Servs - Other,98254,22/12/2016,7310430825,625,,
Expenditure - Over 500,2016 09,Worcestershire County Council,Adult Services & Health,AC-ERROR,Adults & Community Servs Error Suspense,ACSSER001,HERITAGE MANOR LTD,Adult & Community Servs - Other,98254,22/12/2016,7310430839,625,,
Expenditure - Over 500,2016 09,Worcestershire County Council,Adult Services & Health,AC-ERROR,Adults & Community Servs Error Suspense,ACSSER001,HERITAGE MANOR LTD,Adult & Community Servs - Other,98254,22/12/2016,7310430840,625,,
Expenditure - Over 500,2016 09,Worcestershire County Council,Adult Services & Health,AC-ERROR,Adults & Community Servs Error Suspense,ACSSER001,HERITAGE MANOR LTD,Adult & Community Servs - Other,98254,22/12/2016,7310430847,625,,
Expenditure - Over 500,2016 09,Worcestershire County Council,Adult Services & Health,AC-ERROR,Adults & Community Servs Error Suspense,ACSSER001,HERITAGE MANOR LTD,Adult & Community Servs - Other,98254,22/12/2016,7310430849,625,,
Expenditure - Over 500,2016 09,Worcestershire County Council,Adult Services & Health,AC-ERROR,Adults & Community Servs Error Suspense,ACSSER001,HERITAGE MANOR LTD,Adult & Community Servs - Other,98254,22/12/2016,7310430855,625,,
Expenditure - Over 500,2016 09,Worcestershire County Council,Adult Services & Health,AC-ERROR,Adults & Community Servs Error Suspense,ACSSER001,HERITAGE MANOR LTD,Adult & Community Servs - Other,98254,22/12/2016,7310430863,625,,
Expenditure - Over 500,2016 09,Worcestershire County Council,Non Directorate Specific,LA01,Miscellaneous Items,MISCELL,GALLAGHER BASSETT INTERNATIONAL LTD,Holding Account Fin Servs Insurance Suspense,84109,08/12/2016,3300652466,49683,,
Expenditure - Over 500,2016 09,Worcestershire County Council,Adult Services & Health,AC-PROFIT,Residential - MH,S35641,GALLTFAENAN HALL,Third Party Payments Purchase of Long Term Care,53667,22/12/2016,7310430244,2984.04,,
Expenditure - Over 500,2016 09,Worcestershire County Council,Adult Services & Health,AC-ERROR,Adults & Community Servs Error Suspense,ACSSER001,GLENFIELD HOUSE NURSING HOME LTD,Adult & Community Servs - Other,98254,22/12/2016,7310429201,625,,
Expenditure - Over 500,2016 09,Worcestershire County Council,Adult Services & Health,AC-ERROR,Adults & Community Servs Error Suspense,ACSSER001,GLENFIELD HOUSE NURSING HOME LTD,Adult & Community Servs - Other,98254,22/12/2016,7310429227,625,,
Expenditure - Over 500,2016 09,Worcestershire County Council,Adult Services & Health,AC-ERROR,Adults & Community Servs Error Suspense,ACSSER001,GLENFIELD HOUSE NURSING HOME LTD,Adult & Community Servs - Other,98254,22/12/2016,7310429241,625,,
Expenditure - Over 500,2016 09,Worcestershire County Council,Adult Services & Health,AC-ERROR,Adults & Community Servs Error Suspense,ACSSER001,GLENFIELD HOUSE NURSING HOME LTD,Adult & Community Servs - Other,98254,22/12/2016,7310429255,625,,
Expenditure - Over 500,2016 09,Worcestershire County Council,Adult Services & Health,AC-ERROR,Adults & Community Servs Error Suspense,ACSSER001,GLENFIELD HOUSE NURSING HOME LTD,Adult & Community Servs - Other,98254,22/12/2016,7310429265,625,,
Expenditure - Over 500,2016 09,Worcestershire County Council,Adult Services & Health,AC-ERROR,Adults & Community Servs Error Suspense,ACSSER001,GLENFIELD HOUSE NURSING HOME LTD,Adult & Community Servs - Other,98254,22/12/2016,7310429291,625,,
Expenditure - Over 500,2016 09,Worcestershire County Council,Adult Services & Health,AC-ERROR,Adults & Community Servs Error Suspense,ACSSER001,GLENFIELD HOUSE NURSING HOME LTD,Adult & Community Servs - Other,98254,22/12/2016,7310429295,625,,
Expenditure - Over 500,2016 09,Worcestershire County Council,Adult Services & Health,AC-ERROR,Adults & Community Servs Error Suspense,ACSSER001,GLENFIELD HOUSE NURSING HOME LTD,Adult & Community Servs - Other,98254,22/12/2016,7310429299,625,,
Expenditure - Over 500,2016 09,Worcestershire County Council,Adult Services & Health,AC-ERROR,Adults & Community Servs Error Suspense,ACSSER001,GLENFIELD HOUSE NURSING HOME LTD,Adult & Community Servs - Other,98254,22/12/2016,7310429305,625,,
Expenditure - Over 500,2016 09,Worcestershire County Council,Adult Services & Health,AC-PROFIT,LT Nursing - OP,S35342,GLENFIELD HOUSE NURSING HOME LTD,Receipts Sales Long Term Residents,67047,22/12/2016,7310429315,2276.64,,
Expenditure - Over 500,2016 09,Worcestershire County Council,Adult Services & Health,AC-ERROR,Adults & Community Servs Error Suspense,ACSSER001,GLENFIELD HOUSE NURSING HOME LTD,Adult & Community Servs - Other,98254,22/12/2016,7310429327,625,,
Expenditure - Over 500,2016 09,Worcestershire County Council,Adult Services & Health,AC-ERROR,Adults & Community Servs Error Suspense,ACSSER001,GLENFIELD HOUSE NURSING HOME LTD,Adult & Community Servs - Other,98254,22/12/2016,7310429345,625,,
Expenditure - Over 500,2016 09,Worcestershire County Council,Adult Services & Health,AC-ERROR,Adults & Community Servs Error Suspense,ACSSER001,GLENFIELD HOUSE NURSING HOME LTD,Adult & Community Servs - Other,98254,22/12/2016,7310429361,625,,
Expenditure - Over 500,2016 09,Worcestershire County Council,Adult Services & Health,AC-ERROR,Adults & Community Servs Error Suspense,ACSSER001,GLENFIELD HOUSE NURSING HOME LTD,Adult & Community Servs - Other,98254,22/12/2016,7310429375,625,,
Expenditure - Over 500,2016 09,Worcestershire County Council,Adult Services & Health,AC-ERROR,Adults & Community Servs Error Suspense,ACSSER001,GLENFIELD HOUSE NURSING HOME LTD,Adult & Community Servs - Other,98254,22/12/2016,7310429391,625,,
Expenditure - Over 500,2016 09,Worcestershire County Council,Adult Services & Health,AC-ERROR,Adults & Community Servs Error Suspense,ACSSER001,GLENFIELD HOUSE NURSING HOME LTD,Adult & Community Servs - Other,98254,22/12/2016,7310429395,625,,
Expenditure - Over 500,2016 09,Worcestershire County Council,Adult Services & Health,AC-ERROR,Adults & Community Servs Error Suspense,ACSSER001,GLENFIELD HOUSE NURSING HOME LTD,Adult & Community Servs - Other,98254,22/12/2016,7310429425,625,,
Expenditure - Over 500,2016 09,Worcestershire County Council,Adult Services & Health,AC-ERROR,Adults & Community Servs Error Suspense,ACSSER001,GLENFIELD HOUSE NURSING HOME LTD,Adult & Community Servs - Other,98254,22/12/2016,7310429431,625,,
Expenditure - Over 500,2016 09,Worcestershire County Council,Adult Services & Health,AC-ERROR,Adults & Community Servs Error Suspense,ACSSER001,GLENFIELD HOUSE NURSING HOME LTD,Adult & Community Servs - Other,98254,22/12/2016,7310429433,625,,
Expenditure - Over 500,2016 09,Worcestershire County Council,Adult Services & Health,AC-PROFIT,LT Nursing - OP,S35342,GLENFIELD HOUSE NURSING HOME LTD,Receipts Sales Long Term Residents,67047,22/12/2016,7310429441,2198.64,,
Expenditure - Over 500,2016 09,Worcestershire County Council,Adult Services & Health,AC-ERROR,Adults & Community Servs Error Suspense,ACSSER001,GLENFIELD HOUSE NURSING HOME LTD,Adult & Community Servs - Other,98254,22/12/2016,7310429457,625,,
Expenditure - Over 500,2016 09,Worcestershire County Council,Adult Services & Health,AC-ERROR,Adults & Community Servs Error Suspense,ACSSER001,GLENFIELD HOUSE NURSING HOME LTD,Adult & Community Servs - Other,98254,22/12/2016,7310429463,625,,
Expenditure - Over 500,2016 09,Worcestershire County Council,Adult Services & Health,AC-PROFIT,LT Nursing - OP,S35342,GLENFIELD HOUSE NURSING HOME LTD,Receipts Sales Long Term Residents,67047,22/12/2016,7310429485,3760.36,,
Expenditure - Over 500,2016 09,Worcestershire County Council,Adult Services & Health,AC-ERROR,Adults & Community Servs Error Suspense,ACSSER001,GLENFIELD HOUSE NURSING HOME LTD,Adult & Community Servs - Other,98254,22/12/2016,7310429487,625,,
Expenditure - Over 500,2016 09,Worcestershire County Council,Adult Services & Health,AC-PROFIT,LT Nursing - OP,S35342,GLENFIELD HOUSE NURSING HOME LTD,Receipts Sales Long Term Residents,67047,22/12/2016,7310429507,2338.08,,
Expenditure - Over 500,2016 09,Worcestershire County Council,Adult Services & Health,AC-ERROR,Adults & Community Servs Error Suspense,ACSSER001,GLENFIELD HOUSE NURSING HOME LTD,Adult & Community Servs - Other,98254,22/12/2016,7310429541,625,,
Expenditure - Over 500,2016 09,Worcestershire County Council,Adult Services & Health,AC-PROFIT,LT Residential - OP,S35341,GRANGE HILL HOUSE RESIDENTIAL CARE,Third Party Payments Purchase of Long Term Care,53667,22/12/2016,7310429904,1120.92,,
Expenditure - Over 500,2016 09,Worcestershire County Council,Adult Services & Health,AC-PROFIT,LT Residential - OP,S35341,GRANGE HILL HOUSE RESIDENTIAL CARE,Third Party Payments Purchase of Long Term Care,53667,22/12/2016,7310430096,2022.88,,
Expenditure - Over 500,2016 09,Worcestershire County Council,Adult Services & Health,AC-PROFIT,LT Residential - OP,S35341,GREENHILL PARK RESIDENTIAL CARE HOM,Third Party Payments Purchase of Long Term Care,53667,22/12/2016,7310429960,995.08,,
Expenditure - Over 500,2016 09,Worcestershire County Council,Adult Services & Health,AC-PROFIT,LT Residential - OP,S35341,GREENHILL PARK RESIDENTIAL CARE HOM,Receipts Sales Long Term Residents,67047,22/12/2016,7310430024,1902.72,,
Expenditure - Over 500,2016 09,Worcestershire County Council,Adult Services & Health,AC-PROFIT,LT Residential - OP,S35341,GREENHILL PARK RESIDENTIAL CARE HOM,Receipts Sales Long Term Residents,67047,22/12/2016,7310430068,1053.08,,
Expenditure - Over 500,2016 09,Worcestershire County Council,Adult Services & Health,AC-PROFIT,LT Residential - OP,S35341,GREENHILL PARK RESIDENTIAL CARE HOM,Receipts Sales Long Term Residents,67047,22/12/2016,7310430078,898.35,,
Expenditure - Over 500,2016 09,Worcestershire County Council,Non Directorate Specific,LA01,Highways & Footways Improvement,CA48476,HALCROW GROUP LTD,CAPEX Profess & Tech Fees Other Ext Profess Fees,64457,20/12/2016,4101618799,846.8,,
Expenditure - Over 500,2016 09,Worcestershire County Council,Non Directorate Specific,LA01,Bromsgrove Package Development,CA62002,HALCROW GROUP LTD,CAPEX Profess & Tech Fees Other Ext Profess Fees,64457,20/12/2016,4101621427,531,,
Expenditure - Over 500,2016 09,Worcestershire County Council,"Business, Environment & Community",EN-PROFIT,SLR4,V19408,HALCROW GROUP LTD,Professional Fees,50031,20/12/2016,4101621431,2050.82,,
Expenditure - Over 500,2016 09,Worcestershire County Council,"Business, Environment & Community",EN-PROFIT,Transport Planning Overheads,V19400,HALCROW GROUP LTD,Professional Fees,50031,20/12/2016,4101621437,-594.07,,
Expenditure - Over 500,2016 09,Worcestershire County Council,Non Directorate Specific,LA01,NPRN Bridge Maintenance Countrywide,CA55111,HALCROW GROUP LTD,CAPEX Profess & Tech Fees Other Ext Profess Fees,64457,20/12/2016,4101621446,2731.95,,
Expenditure - Over 500,2016 09,Worcestershire County Council,Non Directorate Specific,LA01,Bromsgrove Package Development,CA62002,HALCROW GROUP LTD,CAPEX Profess & Tech Fees Other Ext Profess Fees,64457,20/12/2016,4101621475,1739.66,,
Expenditure - Over 500,2016 09,Worcestershire County Council,"Business, Environment & Community",EN-PROFIT,WCC Transport Models,V19405,HALCROW GROUP LTD,Professional Fees,50031,20/12/2016,4101621481,478.57,,
Expenditure - Over 500,2016 09,Worcestershire County Council,"Business, Environment & Community",EN-PROFIT,Principal inspections & Structural Inv,V17351,HALCROW GROUP LTD,Professional Fees,50031,20/12/2016,4101621624,35882.93,,
Expenditure - Over 500,2016 09,Worcestershire County Council,"Business, Environment & Community",EN-PROFIT,Principal inspections & Structural Inv,V17351,HALCROW GROUP LTD,Professional Fees,50031,22/12/2016,4101621621,-26649.36,,
Expenditure - Over 500,2016 09,Worcestershire County Council,"Business, Environment & Community",EN-DIR,(189) Junc Deed Vari,V52093,HALCROW GROUP LTD,Professional Fees,50031,22/12/2016,4101621531,496.25,,
Expenditure - Over 500,2016 09,Worcestershire County Council,"Business, Environment & Community",EN-PROFIT,Transport Planning Overheads,V19400,HALCROW GROUP LTD,Professional Fees,50031,22/12/2016,4101621611,2833.72,,
Expenditure - Over 500,2016 09,Worcestershire County Council,"Business, Environment & Community",EN-PROFIT,Development Control S278/38 Team,V16300,HALCROW GROUP LTD,Professional Fees,50031,20/12/2016,4101621384,7946.31,,
Expenditure - Over 500,2016 09,Worcestershire County Council,Non Directorate Specific,LA01,WTSMSB Southern Link Road Dualling,CA40013,HALCROW GROUP LTD,CAPEX Profess & Tech Fees Other Ext Profess Fees,64457,20/12/2016,4101621387,94536.3,,
Expenditure - Over 500,2016 09,Worcestershire County Council,Children's Services,CH-PROFIT,Early Years - 2 year old funding,E23050,HAPPY DAYS PLAYGROUP,Third Party Pymts 4Yr Old Nursery Education Grant,53657,05/12/2016,7200027282,2307.99,,
Expenditure - Over 500,2016 09,Worcestershire County Council,Adult Services & Health,AC-PROFIT,LT Residential - OP,S35341,HAVEN HOME FOR THE ELDERLY,Third Party Payments Purchase of Long Term Care,53667,22/12/2016,7310429332,1721.12,,
Expenditure - Over 500,2016 09,Worcestershire County Council,Adult Services & Health,AC-PROFIT,LT Residential - OP,S35341,HAVEN HOME FOR THE ELDERLY,Third Party Payments Purchase of Long Term Care,53667,22/12/2016,7310429344,1348.88,,
Expenditure - Over 500,2016 09,Worcestershire County Council,Adult Services & Health,AC-PROFIT,LT Residential - OP,S35341,HAVEN HOME FOR THE ELDERLY,Receipts Sales Long Term Residents,67047,22/12/2016,7310429398,1243.36,,
Expenditure - Over 500,2016 09,Worcestershire County Council,Adult Services & Health,AC-PROFIT,COP Property Temporary Code,S35397,HAVEN HOME FOR THE ELDERLY,Third Party Payments Purchase of Long Term Care,53667,22/12/2016,7310429484,2696,,
Expenditure - Over 500,2016 09,Worcestershire County Council,Adult Services & Health,AC-PROFIT,LT Residential - OP,S35341,HAVEN HOME FOR THE ELDERLY,Receipts Sales Long Term Residents,67047,22/12/2016,7310429642,1837.6,,
Expenditure - Over 500,2016 09,Worcestershire County Council,Resources,FS-PROFIT,Accountancy Section,F40301,HAYS SPECIALIST RECRUITMENT LTD,Services Bureau,50050,05/12/2016,4101616978,2125,,
Expenditure - Over 500,2016 09,Worcestershire County Council,Resources,FS-PROFIT,Management Team,F40300,HAYS SPECIALIST RECRUITMENT LTD,Services Bureau,50050,08/12/2016,4101617952,1425,,
Expenditure - Over 500,2016 09,Worcestershire County Council,Resources,FS-PROFIT,Accountancy Section,F40301,HAYS SPECIALIST RECRUITMENT LTD,Services Bureau,50050,22/12/2016,4101622578,2125,,
Expenditure - Over 500,2016 09,Worcestershire County Council,Resources,CS-PROFIT,COaCH Finance,C40031,HAYS SPECIALIST RECRUITMENT LTD,Services Bureau,50050,23/12/2016,4101620782,686.4,,
Expenditure - Over 500,2016 09,Worcestershire County Council,Resources,CS-PROFIT,COaCH Finance,C40031,HAYS SPECIALIST RECRUITMENT LTD,Services Bureau,50050,23/12/2016,4101623402,707.85,,
Expenditure - Over 500,2016 09,Worcestershire County Council,Resources,FS-PROFIT,Accountancy Section,F40301,HAYS SPECIALIST RECRUITMENT LTD,Services Bureau,50050,05/12/2016,4101616980,1700,,
Expenditure - Over 500,2016 09,Worcestershire County Council,Resources,FS-PROFIT,Management Team,F40300,HAYS SPECIALIST RECRUITMENT LTD,Services Bureau,50050,05/12/2016,4101615865,2375,,
Expenditure - Over 500,2016 09,Worcestershire County Council,"Business, Environment & Community",EN-DIR,Concessionary Fares Administration,V21015,HANSONS (WORDSLEY) LIMITED,Third Party Pymnts Public Transport Operators,54005,19/12/2016,7190136401,2519.94,,
Expenditure - Over 500,2016 09,Worcestershire County Council,"Business, Environment & Community",EN-DIR,Local Bus WCC Services,V21020,HANSONS (WORDSLEY) LIMITED,Third Party Pymnts Other Hired & Contracted Servs,53986,22/12/2016,7190136677,4815.14,,
Expenditure - Over 500,2016 09,Worcestershire County Council,"Business, Environment & Community",EN-DIR,Local Bus WCC Services,V21020,HANSONS (WORDSLEY) LIMITED,Third Party Pymnts Other Hired & Contracted Servs,53986,22/12/2016,7190136678,4815.14,,
Expenditure - Over 500,2016 09,Worcestershire County Council,"Business, Environment & Community",EN-DIR,Local Bus WCC Services,V21020,HANSONS (WORDSLEY) LIMITED,Third Party Pymnts Other Hired & Contracted Servs,53986,22/12/2016,7190136679,4815.14,,
Expenditure - Over 500,2016 09,Worcestershire County Council,Resources,FS-PROFIT,Management Team,F40300,HAYS SPECIALIST RECRUITMENT LTD,Services Bureau,50050,22/12/2016,4101622159,2375,,
Expenditure - Over 500,2016 09,Worcestershire County Council,Adult Services & Health,AC-PROFIT,LT Nursing - OP,S35342,HAVENCROFT NURSING HOME,Third Party Payments Purchase of Long Term Care,53667,22/12/2016,7310429386,1196.84,,
Expenditure - Over 500,2016 09,Worcestershire County Council,Adult Services & Health,AC-PROFIT,LT Nursing - OP,S35342,HAVENCROFT NURSING HOME,Third Party Payments Purchase of Long Term Care,53667,22/12/2016,7310429410,1285.2,,
Expenditure - Over 500,2016 09,Worcestershire County Council,Adult Services & Health,AC-PROFIT,LT Nursing - OP,S35342,HAVENCROFT NURSING HOME,Receipts Sales Long Term Residents,67047,22/12/2016,7310429526,1174.64,,
Expenditure - Over 500,2016 09,Worcestershire County Council,Adult Services & Health,AC-PROFIT,LT Nursing - OP,S35342,HAVENCROFT NURSING HOME,Receipts Sales Long Term Residents,67047,22/12/2016,7310429528,1677.24,,
Expenditure - Over 500,2016 09,Worcestershire County Council,Adult Services & Health,AC-PROFIT,LT Nursing - OP,S35342,HAVENCROFT NURSING HOME,Third Party Payments Purchase of Long Term Care,53667,22/12/2016,7310429552,1348.56,,
Expenditure - Over 500,2016 09,Worcestershire County Council,Adult Services & Health,AC-PROFIT,LT Nursing - OP,S35342,HAVENCROFT NURSING HOME,Receipts Sales Long Term Residents,67047,22/12/2016,7310429610,-901.29,,
Expenditure - Over 500,2016 09,Worcestershire County Council,Adult Services & Health,AC-PROFIT,LT Nursing - OP,S35342,HAVENCROFT NURSING HOME,Receipts Sales Long Term Residents,67047,22/12/2016,7310429624,1236.16,,
Expenditure - Over 500,2016 09,Worcestershire County Council,Resources,CS-PROFIT,COaCH Finance,C40031,HAYS SPECIALIST RECRUITMENT LTD,Services Bureau,50050,01/12/2016,4101610897,679.25,,
Expenditure - Over 500,2016 09,Worcestershire County Council,Resources,CS-PROFIT,COaCH Finance,C40031,HAYS SPECIALIST RECRUITMENT LTD,Services Bureau,50050,01/12/2016,4101613208,686.4,,
Expenditure - Over 500,2016 09,Worcestershire County Council,Adult Services & Health,AC-PROFIT,Adults Housing Related Support,S42082,HEADWAY WORCESTERSHIRE,Third Party Payments External Provider,54044,20/12/2016,4101623297,12500,,
Expenditure - Over 500,2016 09,Worcestershire County Council,Resources,CS-PROFIT,COaCH Finance,C40031,HAYS SPECIALIST RECRUITMENT LTD,Services Bureau,50050,12/12/2016,4101615760,664.95,,
Expenditure - Over 500,2016 09,Worcestershire County Council,Resources,CS-PROFIT,COaCH Finance,C40031,HAYS SPECIALIST RECRUITMENT LTD,Services Bureau,50050,12/12/2016,4101617950,657.8,,
Expenditure - Over 500,2016 09,Worcestershire County Council,Resources,FS-PROFIT,Accountancy Section,F40301,HAYS SPECIALIST RECRUITMENT LTD,Services Bureau,50050,28/12/2016,4101624292,2125,,
Expenditure - Over 500,2016 09,Worcestershire County Council,Resources,FS-PROFIT,Management Team,F40300,HAYS SPECIALIST RECRUITMENT LTD,Services Bureau,50050,30/12/2016,4101624478,2375,,
Expenditure - Over 500,2016 09,Worcestershire County Council,Resources,FS-PROFIT,Management Team,F40300,HAYS SPECIALIST RECRUITMENT LTD,Services Bureau,50050,30/12/2016,4101624479,2137.5,,
Expenditure - Over 500,2016 09,Worcestershire County Council,Adult Services & Health,AC-PROFIT,Domiciliary Spot - OP,S33414,HELPING HANDS HOME CARE,Third Party Payments Dom Care Frm Independent Prov,53669,19/12/2016,7320557537,894.79,,
Expenditure - Over 500,2016 09,Worcestershire County Council,Adult Services & Health,AC-PROFIT,Domiciliary Spot - OP,S33414,HELPING HANDS HOME CARE,Third Party Payments Dom Care Frm Independent Prov,53669,19/12/2016,7320557538,733.59,,
Expenditure - Over 500,2016 09,Worcestershire County Council,Adult Services & Health,AC-PROFIT,Domiciliary Spot - PD,S33412,HELPING HANDS HOME CARE,Third Party Payments Dom Care Frm Independent Prov,53669,19/12/2016,7320557539,1790.7,,
Expenditure - Over 500,2016 09,Worcestershire County Council,Adult Services & Health,AC-PROFIT,Domiciliary Spot - OP,S33414,HELPING HANDS HOME CARE,Third Party Payments Dom Care Frm Independent Prov,53669,19/12/2016,7320557541,511.24,,
Expenditure - Over 500,2016 09,Worcestershire County Council,Adult Services & Health,AC-PROFIT,Domiciliary Spot - OP,S33414,HELPING HANDS HOME CARE,Third Party Payments Dom Care Frm Independent Prov,53669,19/12/2016,7320557597,772.8,,
Expenditure - Over 500,2016 09,Worcestershire County Council,Adult Services & Health,AC-PROFIT,Domiciliary Spot - OP,S33414,HELPING HANDS HOME CARE,Third Party Payments Dom Care Frm Independent Prov,53669,19/12/2016,7320557599,837.28,,
Expenditure - Over 500,2016 09,Worcestershire County Council,Adult Services & Health,AC-PROFIT,Domiciliary Spot - OP,S33414,HELPING HANDS HOME CARE,Third Party Payments Dom Care Frm Independent Prov,53669,19/12/2016,7320557601,548.86,,
Expenditure - Over 500,2016 09,Worcestershire County Council,Adult Services & Health,AC-PROFIT,Domiciliary Spot - PD,S33412,HELPING HANDS HOME CARE,Third Party Payments Dom Care Frm Independent Prov,53669,19/12/2016,7320557602,727.8,,
Expenditure - Over 500,2016 09,Worcestershire County Council,Adult Services & Health,AC-PROFIT,Domiciliary Spot - OP,S33414,HELPING HANDS HOME CARE,Third Party Payments Dom Care Frm Independent Prov,53669,19/12/2016,7320557603,706.45,,
Expenditure - Over 500,2016 09,Worcestershire County Council,Adult Services & Health,AC-PROFIT,Domiciliary Spot - OP,S33414,HELPING HANDS HOME CARE,Third Party Payments Dom Care Frm Independent Prov,53669,19/12/2016,7320557526,1087.8,,
Expenditure - Over 500,2016 09,Worcestershire County Council,Adult Services & Health,AC-PROFIT,Domiciliary Spot - OP,S33414,HELPING HANDS HOME CARE,Third Party Payments Dom Care Frm Independent Prov,53669,19/12/2016,7320557527,1011.64,,
Expenditure - Over 500,2016 09,Worcestershire County Council,Adult Services & Health,AC-PROFIT,Domiciliary Spot - OP,S33414,HELPING HANDS HOME CARE,Third Party Payments Dom Care Frm Independent Prov,53669,19/12/2016,7320557531,659.4,,
Expenditure - Over 500,2016 09,Worcestershire County Council,Adult Services & Health,AC-PROFIT,LD North Domiciliary,S33413,HELPING HANDS HOME CARE,Third Party Payments Dom Care Frm Independent Prov,53669,19/12/2016,7320557532,987,,
Expenditure - Over 500,2016 09,Worcestershire County Council,Adult Services & Health,AC-PROFIT,LT Residential - PD,S35441,HENSHAWS YORKSHIRE,Receipts Sales Long Term Residents,67047,22/12/2016,7310430266,2813.72,,
Expenditure - Over 500,2016 09,Worcestershire County Council,Adult Services & Health,AC-PROFIT,Domiciliary Spot - PD,S33412,HELPING HANDS HOME CARE,Third Party Payments Dom Care Frm Independent Prov,53669,15/12/2016,7320556282,2410.52,,
Expenditure - Over 500,2016 09,Worcestershire County Council,Adult Services & Health,AC-PROFIT,Domiciliary Block - OP,S33424,HELPING HANDS HOME CARE,Third Party Payments Dom Care Frm Independent Prov,53669,19/12/2016,7320557371,785.96,,
Expenditure - Over 500,2016 09,Worcestershire County Council,Adult Services & Health,AC-PROFIT,Domiciliary Spot - OP,S33414,HELPING HANDS HOME CARE,Third Party Payments Dom Care Frm Independent Prov,53669,19/12/2016,7320557543,677.48,,
Expenditure - Over 500,2016 09,Worcestershire County Council,Adult Services & Health,AC-PROFIT,Domiciliary Spot - OP,S33414,HELPING HANDS HOME CARE,Third Party Payments Dom Care Frm Independent Prov,53669,19/12/2016,7320557544,521.64,,
Expenditure - Over 500,2016 09,Worcestershire County Council,Adult Services & Health,AC-PROFIT,Domiciliary Spot - PD,S33412,HELPING HANDS HOME CARE,Third Party Payments Dom Care Frm Independent Prov,53669,19/12/2016,7320557545,521.64,,
Expenditure - Over 500,2016 09,Worcestershire County Council,Adult Services & Health,AC-PROFIT,Domiciliary - MH,S33411,HELPING HANDS HOME CARE,Third Party Payments Dom Care Frm Independent Prov,53669,19/12/2016,7320557546,549.2,,
Expenditure - Over 500,2016 09,Worcestershire County Council,Adult Services & Health,AC-PROFIT,Domiciliary Spot - OP,S33414,HELPING HANDS HOME CARE,Third Party Payments Dom Care Frm Independent Prov,53669,19/12/2016,7320557547,692.72,,
Expenditure - Over 500,2016 09,Worcestershire County Council,Adult Services & Health,AC-PROFIT,Domiciliary Spot - OP,S33414,HELPING HANDS HOME CARE,Third Party Payments Dom Care Frm Independent Prov,53669,19/12/2016,7320557548,730.66,,
Expenditure - Over 500,2016 09,Worcestershire County Council,Adult Services & Health,AC-PROFIT,LD North Domiciliary,S33413,HELPING HANDS HOME CARE,Third Party Payments Dom Care Frm Independent Prov,53669,19/12/2016,7320557550,960.96,,
Expenditure - Over 500,2016 09,Worcestershire County Council,Adult Services & Health,AC-PROFIT,Domiciliary Spot - OP,S33414,HELPING HANDS HOME CARE,Third Party Payments Dom Care Frm Independent Prov,53669,19/12/2016,7320557551,1229.2,,
Expenditure - Over 500,2016 09,Worcestershire County Council,Adult Services & Health,AC-PROFIT,Domiciliary Spot - OP,S33414,HELPING HANDS HOME CARE,Third Party Payments Dom Care Frm Independent Prov,53669,19/12/2016,7320557588,744.46,,
Expenditure - Over 500,2016 09,Worcestershire County Council,Adult Services & Health,AC-PROFIT,Domiciliary Spot - OP,S33414,HELPING HANDS HOME CARE,Third Party Payments Dom Care Frm Independent Prov,53669,19/12/2016,7320557591,773.8,,
Expenditure - Over 500,2016 09,Worcestershire County Council,Adult Services & Health,AC-PROFIT,Domiciliary Spot - OP,S33414,HELPING HANDS HOME CARE,Third Party Payments Dom Care Frm Independent Prov,53669,19/12/2016,7320557595,676.2,,
Expenditure - Over 500,2016 09,Worcestershire County Council,Adult Services & Health,AC-PROFIT,Domiciliary Spot - OP,S33414,HELPING HANDS HOME CARE,Third Party Payments Dom Care Frm Independent Prov,53669,19/12/2016,7320557596,739.45,,
Expenditure - Over 500,2016 09,Worcestershire County Council,Adult Services & Health,AC-PROFIT,Domiciliary Spot - PD,S33412,HELPING HANDS HOME CARE,Third Party Payments Dom Care Frm Independent Prov,53669,08/12/2016,7320552702,3094.5,,
Expenditure - Over 500,2016 09,Worcestershire County Council,Adult Services & Health,AC-PROFIT,Domiciliary Spot - PD,S33412,HELPING HANDS HOME CARE,Third Party Payments Dom Care Frm Independent Prov,53669,08/12/2016,7320552706,1443.8,,
Expenditure - Over 500,2016 09,Worcestershire County Council,Adult Services & Health,AC-PROFIT,Domiciliary Spot - PD,S33412,HELPING HANDS HOME CARE,Third Party Payments Dom Care Frm Independent Prov,53669,08/12/2016,7320552728,1272.2,,
Expenditure - Over 500,2016 09,Worcestershire County Council,Adult Services & Health,AC-PROFIT,Domiciliary Spot - PD,S33412,HELPING HANDS HOME CARE,Third Party Payments Dom Care Frm Independent Prov,53669,08/12/2016,7320552700,2410.52,,
Expenditure - Over 500,2016 09,Worcestershire County Council,Adult Services & Health,AC-PROFIT,Domiciliary Spot - PD,S33412,HELPING HANDS HOME CARE,Third Party Payments Dom Care Frm Independent Prov,53669,08/12/2016,7320552444,540.81,,
Expenditure - Over 500,2016 09,Worcestershire County Council,Adult Services & Health,AC-PROFIT,Domiciliary Spot - PD,S33412,HELPING HANDS HOME CARE,Third Party Payments Dom Care Frm Independent Prov,53669,12/12/2016,7320554375,1272.2,,
Expenditure - Over 500,2016 09,Worcestershire County Council,Adult Services & Health,AC-PROFIT,Domiciliary Spot - PD,S33412,HELPING HANDS HOME CARE,Third Party Payments Dom Care Frm Independent Prov,53669,12/12/2016,7320554376,2988,,
Expenditure - Over 500,2016 09,Worcestershire County Council,Adult Services & Health,AC-PROFIT,Domiciliary Spot - PD,S33412,HELPING HANDS HOME CARE,Third Party Payments Dom Care Frm Independent Prov,53669,12/12/2016,7320554378,1443.8,,
Expenditure - Over 500,2016 09,Worcestershire County Council,Adult Services & Health,AC-PROFIT,Block Zone Contract - OP,S33404,HELPING HANDS HOME CARE,Third Party Payments Dom Care Frm Independent Prov,53669,19/12/2016,7320557376,560.84,,
Expenditure - Over 500,2016 09,Worcestershire County Council,Adult Services & Health,AC-PROFIT,Block Zone Contract - OP,S33404,HELPING HANDS HOME CARE,Third Party Payments Dom Care Frm Independent Prov,53669,19/12/2016,7320557378,560.84,,
Expenditure - Over 500,2016 09,Worcestershire County Council,Adult Services & Health,AC-PROFIT,Block Zone Contract PD,S33402,HELPING HANDS HOME CARE,Third Party Payments Dom Care Frm Independent Prov,53669,19/12/2016,7320557380,635.85,,
Expenditure - Procurement Card,2016 09,Worcestershire County Council,Children's Services,CH-PROFIT,Green Hill Lodge,E31761,HOMEBASE LTD 352,Equipment,48601,06/12/2016,4600144485,39.17,LUMBER/BUILD. SUPPLY STORES,5211
Expenditure - Procurement Card,2016 09,Worcestershire County Council,Children's Services,CH-PROFIT,Hill View Short Breaks Unit,E31607,HOMEBASE LTD 027,Catering Supplies/Provisions,49251,06/12/2016,4600144654,13.67,LUMBER/BUILD. SUPPLY STORES,5211
Expenditure - Procurement Card,2016 09,Worcestershire County Council,Children's Services,CH-PROFIT,Green Hill Lodge,E31761,HOMEBASE LTD 352,Equipment & Furniture,49001,06/12/2016,4600144488,121.67,LUMBER/BUILD. SUPPLY STORES,5211
Expenditure - Procurement Card,2016 09,Worcestershire County Council,Children's Services,CH-PROFIT,Orchardene Children's Home,E31608,HOMEBASE LTD 299,Cleaning & Domestic Cleaning Materials,45206,06/12/2016,4600144578,8.33,LUMBER/BUILD. SUPPLY STORES,5211
Expenditure - Over 500,2016 09,Worcestershire County Council,Adult Services & Health,AC-PROFIT,Domiciliary Spot - PD,S33412,HELPING HANDS HOME CARE,Third Party Payments Dom Care Frm Independent Prov,53669,19/12/2016,7320557552,1108.4,,
Expenditure - Over 500,2016 09,Worcestershire County Council,Adult Services & Health,AC-PROFIT,Domiciliary Spot - OP,S33414,HELPING HANDS HOME CARE,Third Party Payments Dom Care Frm Independent Prov,53669,19/12/2016,7320557553,1736,,
Expenditure - Over 500,2016 09,Worcestershire County Council,Adult Services & Health,AC-PROFIT,Domiciliary Spot - OP,S33414,HELPING HANDS HOME CARE,Third Party Payments Dom Care Frm Independent Prov,53669,19/12/2016,7320557555,513.79,,
Expenditure - Over 500,2016 09,Worcestershire County Council,Adult Services & Health,AC-PROFIT,Domiciliary Spot - OP,S33414,HELPING HANDS HOME CARE,Third Party Payments Dom Care Frm Independent Prov,53669,19/12/2016,7320557556,692.72,,
Expenditure - Over 500,2016 09,Worcestershire County Council,Adult Services & Health,AC-PROFIT,Domiciliary Spot - OP,S33414,HELPING HANDS HOME CARE,Third Party Payments Dom Care Frm Independent Prov,53669,19/12/2016,7320557558,964.31,,
Expenditure - Over 500,2016 09,Worcestershire County Council,Adult Services & Health,AC-PROFIT,Domiciliary Spot - OP,S33414,HELPING HANDS HOME CARE,Third Party Payments Dom Care Frm Independent Prov,53669,19/12/2016,7320557559,744.51,,
Expenditure - Over 500,2016 09,Worcestershire County Council,Adult Services & Health,AC-PROFIT,Domiciliary Spot - OP,S33414,HELPING HANDS HOME CARE,Third Party Payments Dom Care Frm Independent Prov,53669,19/12/2016,7320557561,655.25,,
Expenditure - Over 500,2016 09,Worcestershire County Council,Adult Services & Health,AC-PROFIT,Domiciliary Spot - PD,S33412,HELPING HANDS HOME CARE,Third Party Payments Dom Care Frm Independent Prov,53669,19/12/2016,7320557562,1164.2,,
Expenditure - Over 500,2016 09,Worcestershire County Council,Adult Services & Health,AC-PROFIT,Domiciliary Spot - OP,S33414,HELPING HANDS HOME CARE,Third Party Payments Dom Care Frm Independent Prov,53669,19/12/2016,7320557564,1048.44,,
Expenditure - Over 500,2016 09,Worcestershire County Council,Adult Services & Health,AC-PROFIT,Domiciliary Spot - OP,S33414,HELPING HANDS HOME CARE,Third Party Payments Dom Care Frm Independent Prov,53669,19/12/2016,7320557566,1786.68,,
Expenditure - Over 500,2016 09,Worcestershire County Council,Adult Services & Health,AC-PROFIT,Domiciliary Spot - OP,S33414,HELPING HANDS HOME CARE,Third Party Payments Dom Care Frm Independent Prov,53669,19/12/2016,7320557569,1497.34,,
Expenditure - Over 500,2016 09,Worcestershire County Council,Adult Services & Health,AC-PROFIT,Domiciliary Spot - OP,S33414,HELPING HANDS HOME CARE,Third Party Payments Dom Care Frm Independent Prov,53669,19/12/2016,7320557571,901.6,,
Expenditure - Over 500,2016 09,Worcestershire County Council,Adult Services & Health,AC-PROFIT,Domiciliary Spot - OP,S33414,HELPING HANDS HOME CARE,Third Party Payments Dom Care Frm Independent Prov,53669,19/12/2016,7320557572,801.8,,
Expenditure - Over 500,2016 09,Worcestershire County Council,Adult Services & Health,AC-PROFIT,Domiciliary Spot - OP,S33414,HELPING HANDS HOME CARE,Third Party Payments Dom Care Frm Independent Prov,53669,19/12/2016,7320557574,948.76,,
Expenditure - Over 500,2016 09,Worcestershire County Council,Adult Services & Health,AC-PROFIT,Domiciliary Spot - OP,S33414,HELPING HANDS HOME CARE,Third Party Payments Dom Care Frm Independent Prov,53669,19/12/2016,7320557575,676.2,,
Expenditure - Over 500,2016 09,Worcestershire County Council,Adult Services & Health,AC-PROFIT,Domiciliary Spot - OP,S33414,HELPING HANDS HOME CARE,Third Party Payments Dom Care Frm Independent Prov,53669,19/12/2016,7320557578,1011.64,,
Expenditure - Over 500,2016 09,Worcestershire County Council,Adult Services & Health,AC-PROFIT,Domiciliary Spot - OP,S33414,HELPING HANDS HOME CARE,Third Party Payments Dom Care Frm Independent Prov,53669,19/12/2016,7320557580,672.59,,
Expenditure - Over 500,2016 09,Worcestershire County Council,Adult Services & Health,AC-PROFIT,Domiciliary Spot - OP,S33414,HELPING HANDS HOME CARE,Third Party Payments Dom Care Frm Independent Prov,53669,19/12/2016,7320557582,568.89,,
Expenditure - Over 500,2016 09,Worcestershire County Council,Adult Services & Health,AC-PROFIT,Domiciliary Spot - OP,S33414,HELPING HANDS HOME CARE,Third Party Payments Dom Care Frm Independent Prov,53669,19/12/2016,7320557583,771.2,,
Expenditure - Over 500,2016 09,Worcestershire County Council,Adult Services & Health,AC-PROFIT,Domiciliary Spot - PD,S33412,HELPING HANDS HOME CARE,Third Party Payments Dom Care Frm Independent Prov,53669,19/12/2016,7320557587,831.88,,
Expenditure - Procurement Card,2016 09,Worcestershire County Council,Children's Services,CH-PROFIT,"26 Brockhampton Close, Blackpole SL",E31806,HOMEBASE LTD 352,Equipment & Furniture,49001,07/12/2016,4600144705,3,LUMBER/BUILD. SUPPLY STORES,5211
Expenditure - Over 500,2016 09,Worcestershire County Council,Adult Services & Health,AC-PROFIT,Domiciliary Spot - OP,S33414,HELPING HANDS HOME CARE,Third Party Payments Dom Care Frm Independent Prov,53669,30/12/2016,7320562367,593.04,,
Expenditure - Over 500,2016 09,Worcestershire County Council,Children's Services,CH-PROFIT,Adoption Interagency,E32012,HEREFORDSHIRE COUNCIL,Third Party Pymnts Interagency,54013,30/12/2016,7230015062,27000,,
Expenditure - Over 500,2016 09,Worcestershire County Council,Non Directorate Specific,LA01,Herefordshire Group Training Ltd,CA87919,HEREFORDSHIRE GROUP TRAINING,CAPEX Construction Costs Main Contractor,64951,05/12/2016,4101615350,396640.94,,
Expenditure - Over 500,2016 09,Worcestershire County Council,Adult Services & Health,AC-PROFIT,Nursing - MH,S35642,HEREFORDSHIRE MIND,Third Party Payments Purchase of Long Term Care,53667,22/12/2016,7310430262,3823.32,,
Expenditure - Over 500,2016 09,Worcestershire County Council,Children's Services,CH-PROFIT,DSG Post 16 SEN payments,E28212,HEREWARD COLLEGE,Third Party Pymts Vol Assoc Indepen. Spec Sch Fees,53655,23/12/2016,4101623545,1524.93,,
Expenditure - Over 500,2016 09,Worcestershire County Council,Children's Services,CH-PROFIT,Early Years - 2 year old funding,E23050,HICKORY DICKORY DOCK DAY NURSERY LT,Third Party Pymts 4Yr Old Nursery Education Grant,53657,05/12/2016,7200027288,693,,
Expenditure - Procurement Card,2016 09,Worcestershire County Council,Children's Services,CH-PROFIT,Hill View Short Breaks Unit,E31607,HOMEBASE LTD 027,Equipment,48601,22/12/2016,4600147050,39.96,LUMBER/BUILD. SUPPLY STORES,5211
Expenditure - Procurement Card,2016 09,Worcestershire County Council,Adult Services & Health,AC-PROFIT,Registration Service - General,S80017,HOMEBASE LTD 352,Fixtures & Fittings,44606,24/12/2016,4600147171,25.97,LUMBER/BUILD. SUPPLY STORES,5211
Expenditure - Procurement Card,2016 09,Worcestershire County Council,Children's Services,CH-PROFIT,32 Ploughmans Way Droitwich SL,E31808,HOMEBASE LTD 299,Building Maintenance,42105,30/12/2016,4600147269,41.95,LUMBER/BUILD. SUPPLY STORES,5211
Expenditure - Over 500,2016 09,Worcestershire County Council,Adult Services & Health,AC-PROFIT,Domiciliary Spot - PD,S33412,HELPING HANDS HOME CARE,Third Party Payments Dom Care Frm Independent Prov,53669,19/12/2016,7320557511,773.8,,
Expenditure - Over 500,2016 09,Worcestershire County Council,Adult Services & Health,AC-PROFIT,Domiciliary Spot - OP,S33414,HELPING HANDS HOME CARE,Third Party Payments Dom Care Frm Independent Prov,53669,19/12/2016,7320557512,961.24,,
Expenditure - Over 500,2016 09,Worcestershire County Council,Adult Services & Health,AC-PROFIT,Domiciliary Spot - OP,S33414,HELPING HANDS HOME CARE,Third Party Payments Dom Care Frm Independent Prov,53669,19/12/2016,7320557514,989.44,,
Expenditure - Over 500,2016 09,Worcestershire County Council,Adult Services & Health,AC-PROFIT,Domiciliary Spot - OP,S33414,HELPING HANDS HOME CARE,Third Party Payments Dom Care Frm Independent Prov,53669,19/12/2016,7320557516,573.68,,
Expenditure - Over 500,2016 09,Worcestershire County Council,Adult Services & Health,AC-PROFIT,Domiciliary Spot - OP,S33414,HELPING HANDS HOME CARE,Third Party Payments Dom Care Frm Independent Prov,53669,19/12/2016,7320557517,1922.48,,
Expenditure - Over 500,2016 09,Worcestershire County Council,Adult Services & Health,AC-PROFIT,Domiciliary Spot - PD,S33412,HELPING HANDS HOME CARE,Third Party Payments Dom Care Frm Independent Prov,53669,19/12/2016,7320557521,1610.19,,
Expenditure - Over 500,2016 09,Worcestershire County Council,Adult Services & Health,AC-PROFIT,Domiciliary Spot - OP,S33414,HELPING HANDS HOME CARE,Third Party Payments Dom Care Frm Independent Prov,53669,19/12/2016,7320557522,2077,,
Expenditure - Over 500,2016 09,Worcestershire County Council,Adult Services & Health,AC-PROFIT,Domiciliary Spot - OP,S33414,HELPING HANDS HOME CARE,Third Party Payments Dom Care Frm Independent Prov,53669,19/12/2016,7320557523,534.36,,
Expenditure - Over 500,2016 09,Worcestershire County Council,Adult Services & Health,AC-PROFIT,South Worcester Residential LD,S35551,THE HESLEY GROUP LTD,Third Party Payments Purchase of Long Term Care,53667,22/12/2016,7310430566,17220.24,,
Expenditure - Over 500,2016 09,Worcestershire County Council,Children's Services,CH-PROFIT,Primary Home/School Transport,E10037,HOLLAND COACHES,PTG - Transport Tendered / Cont. Services,46021,08/12/2016,7190136100,1468.31,,
Expenditure - Over 500,2016 09,Worcestershire County Council,Children's Services,CH-PROFIT,Primary Home/School Transport,E10037,HOLLAND COACHES,PTG - Transport Tendered / Cont. Services,46021,08/12/2016,7190136101,3195.31,,
Expenditure - Over 500,2016 09,Worcestershire County Council,Children's Services,CH-PROFIT,Primary Home/School Transport,E10037,HOLLAND COACHES,PTG - Transport Tendered / Cont. Services,46021,08/12/2016,7190136102,1347.27,,
Expenditure - Over 500,2016 09,Worcestershire County Council,Children's Services,CH-PROFIT,Primary Home/School Transport,E10037,HOLLAND COACHES,PTG - Transport Tendered / Cont. Services,46021,08/12/2016,7190136124,2236.82,,
Expenditure - Over 500,2016 09,Worcestershire County Council,Children's Services,CH-PROFIT,Short Breaks on framework,E31529,HOLLAND COACHES,PTG - Transport Tendered / Cont. Services,46021,22/12/2016,7190136750,3806,,
Expenditure - Over 500,2016 09,Worcestershire County Council,Children's Services,CH-PROFIT,Short Breaks on framework,E31529,HOLLAND COACHES,PTG - Transport Tendered / Cont. Services,46021,22/12/2016,7190136751,2397.78,,
Expenditure - Over 500,2016 09,Worcestershire County Council,Children's Services,CH-PROFIT,Short Breaks on framework,E31529,HOLLAND COACHES,PTG - Transport Tendered / Cont. Services,46021,22/12/2016,7190136753,2464,,
Expenditure - Over 500,2016 09,Worcestershire County Council,Adult Services & Health,AC-PROFIT,LD Transport (PTG) North,S34844,HOLLAND COACHES,PTG - Transport Tendered / Cont. Services,46021,22/12/2016,7190136772,2451,,
Expenditure - Over 500,2016 09,Worcestershire County Council,Children's Services,CH-PROFIT,Special Home/School Transport,E10877,HOLLAND COACHES,PTG - Transport Tendered / Cont. Services,46021,22/12/2016,7190136785,3872,,
Expenditure - Over 500,2016 09,Worcestershire County Council,Children's Services,CH-PROFIT,Special Home/School Transport,E10877,HOLLAND COACHES,PTG - Transport Tendered / Cont. Services,46021,22/12/2016,7190136786,1628,,
Expenditure - Over 500,2016 09,Worcestershire County Council,Children's Services,CH-PROFIT,Special Home/School Transport,E10877,HOLLAND COACHES,PTG - Transport Tendered / Cont. Services,46021,22/12/2016,7190136787,2288,,
Expenditure - Over 500,2016 09,Worcestershire County Council,Adult Services & Health,AC-PROFIT,LT Nursing - OP,S35342,BARCHESTER HEALTHCARE HOMES LTD,Third Party Payments Purchase of Long Term Care,53667,22/12/2016,7310428216,3116.6,,
Expenditure - Over 500,2016 09,Worcestershire County Council,Adult Services & Health,AC-PROFIT,Nursing - MH,S35642,BARCHESTER HEALTHCARE HOMES LTD,Third Party Payments Purchase of Long Term Care,53667,22/12/2016,7310428228,7777,,
Expenditure - Over 500,2016 09,Worcestershire County Council,Adult Services & Health,AC-ERROR,Adults & Community Servs Error Suspense,ACSSER001,BARCHESTER HEALTHCARE HOMES LTD,Adult & Community Servs - Other,98254,22/12/2016,7310428232,625,,
Expenditure - Over 500,2016 09,Worcestershire County Council,Adult Services & Health,AC-PROFIT,LT Nursing - OP,S35342,BARCHESTER HEALTHCARE HOMES LTD,Receipts Sales Long Term Residents,67047,22/12/2016,7310428234,2272.84,,
Expenditure - Over 500,2016 09,Worcestershire County Council,Adult Services & Health,AC-PROFIT,North Worcs Nursing LD (Wyre Forest),S35512,BARCHESTER HEALTHCARE HOMES LTD,Third Party Payments Purchase of Long Term Care,53667,22/12/2016,7310428236,3193.84,,
Expenditure - Over 500,2016 09,Worcestershire County Council,Adult Services & Health,AC-PROFIT,North Worcs Nursing LD (Wyre Forest),S35512,BARCHESTER HEALTHCARE HOMES LTD,Third Party Payments Purchase of Long Term Care,53667,22/12/2016,7310428248,3688.04,,
Expenditure - Over 500,2016 09,Worcestershire County Council,Adult Services & Health,AC-ERROR,Adults & Community Servs Error Suspense,ACSSER001,BARCHESTER HEALTHCARE HOMES LTD,Adult & Community Servs - Other,98254,22/12/2016,7310428294,625,,
Expenditure - Over 500,2016 09,Worcestershire County Council,Adult Services & Health,AC-ERROR,Adults & Community Servs Error Suspense,ACSSER001,BARCHESTER HEALTHCARE HOMES LTD,Adult & Community Servs - Other,98254,22/12/2016,7310428322,625,,
Expenditure - Over 500,2016 09,Worcestershire County Council,Resources,CS-PROFIT,Cllr Divisional Fund,C40236,HOLT PARISH COUNCIL,Expenses Members Other,50612,05/12/2016,3310038769,750,,
Expenditure - Over 500,2016 09,Worcestershire County Council,Adult Services & Health,AC-PROFIT,LT Nursing - OP,S35342,BARCHESTER HEALTHCARE HOMES LTD,Third Party Payments Purchase of Long Term Care,53667,22/12/2016,7310428336,3183.04,,
Expenditure - Over 500,2016 09,Worcestershire County Council,Adult Services & Health,AC-PROFIT,LT Nursing - OP,S35342,BARCHESTER HEALTHCARE HOMES LTD,Third Party Payments Purchase of Long Term Care,53667,22/12/2016,7310428406,4105,,
Expenditure - Over 500,2016 09,Worcestershire County Council,Adult Services & Health,AC-PROFIT,LT Nursing - OP,S35342,BARCHESTER HEALTHCARE HOMES LTD,Third Party Payments Purchase of Long Term Care,53667,22/12/2016,7310428426,2116.96,,
Expenditure - Over 500,2016 09,Worcestershire County Council,Adult Services & Health,AC-PROFIT,LT Nursing - OP,S35342,BARCHESTER HEALTHCARE HOMES LTD,Receipts Sales Long Term Residents,67047,22/12/2016,7310428428,3353.64,,
Expenditure - Over 500,2016 09,Worcestershire County Council,Adult Services & Health,AC-PROFIT,LT Nursing - OP,S35342,BARCHESTER HEALTHCARE HOMES LTD,Receipts Sales Long Term Residents,67047,22/12/2016,7310428518,3485.12,,
Expenditure - Over 500,2016 09,Worcestershire County Council,Adult Services & Health,AC-PROFIT,South Worcester Nursing LD,S35552,BARCHESTER HEALTHCARE HOMES LTD,Receipts Sales Long Term Residents,67047,22/12/2016,7310428594,3277.2,,
Expenditure - Over 500,2016 09,Worcestershire County Council,Adult Services & Health,AC-PROFIT,LT Nursing - OP,S35342,BARCHESTER HEALTHCARE HOMES LTD,Receipts Sales Long Term Residents,67047,22/12/2016,7310428608,3257.92,,
Expenditure - Over 500,2016 09,Worcestershire County Council,Adult Services & Health,AC-PROFIT,LT Nursing - OP,S35342,BARCHESTER HEALTHCARE HOMES LTD,Third Party Payments Purchase of Long Term Care,53667,22/12/2016,7310428614,8172,,
Expenditure - Over 500,2016 09,Worcestershire County Council,Adult Services & Health,AC-PROFIT,ST Nursing - OP,S35344,BARCHESTER HEALTHCARE HOMES LTD,TPP Purchase of Planned Replacement Care,53666,22/12/2016,7310428654,969,,
Expenditure - Over 500,2016 09,Worcestershire County Council,Adult Services & Health,AC-PROFIT,LT Nursing - OP,S35342,BARCHESTER HEALTHCARE HOMES LTD,Third Party Payments Purchase of Long Term Care,53667,22/12/2016,7310428684,3876,,
Expenditure - Over 500,2016 09,Worcestershire County Council,Adult Services & Health,AC-PROFIT,LT Residential - OP,S35341,HOPWOOD COURT RETIREMENT HOME,Third Party Payments Purchase of Long Term Care,53667,22/12/2016,7310429948,1024.4,,
Expenditure - Over 500,2016 09,Worcestershire County Council,Adult Services & Health,AC-PROFIT,LT Residential - OP,S35341,HOPWOOD COURT RETIREMENT HOME,Receipts Sales Long Term Residents,67047,22/12/2016,7310429996,1136.24,,
Expenditure - Over 500,2016 09,Worcestershire County Council,Adult Services & Health,AC-PROFIT,LT Residential - OP,S35341,HOPWOOD COURT RETIREMENT HOME,Third Party Payments Purchase of Long Term Care,53667,22/12/2016,7310430006,1378.4,,
Expenditure - Over 500,2016 09,Worcestershire County Council,Adult Services & Health,AC-PROFIT,Equipment - Pooled Budgets,S31526,HOSPITAL DIRECT (MARKETING) LTD,Equipment Adults SDD,49084,19/12/2016,4101622167,1645,,
Expenditure - Over 500,2016 09,Worcestershire County Council,Adult Services & Health,AC-PROFIT,LD Transport (PTG) North,S34844,I & I TRANSPORT LTD,PTG - Transport Tendered / Cont. Services,46021,12/12/2016,7190136202,525,,
Expenditure - Over 500,2016 09,Worcestershire County Council,Adult Services & Health,AC-PROFIT,LD Transport (PTG) North,S34844,I & I TRANSPORT LTD,PTG - Adhoc Transport,46506,12/12/2016,7190136203,630,,
Expenditure - Over 500,2016 09,Worcestershire County Council,Adult Services & Health,AC-PROFIT,LT Residential - OP,S35341,LAWNS RESIDENTIAL CARE HOME LTD,Third Party Payments Purchase of Long Term Care,53667,22/12/2016,7310430054,1245.88,,
Expenditure - Over 500,2016 09,Worcestershire County Council,Adult Services & Health,AC-PROFIT,LT Residential - OP,S35341,LAWNS RESIDENTIAL CARE HOME LTD,Third Party Payments Purchase of Long Term Care,53667,22/12/2016,7310430072,1391.08,,
Expenditure - Over 500,2016 09,Worcestershire County Council,Children's Services,CH-DIR,Adoption Support Fund,E37711,HSBC INVOICE FINANCE (UK) LTD,Professional Fees,50031,01/12/2016,4101614810,713.25,,
Expenditure - Over 500,2016 09,Worcestershire County Council,Adult Services & Health,AC-PROFIT,LT Residential - OP,S35341,LAWNS RESIDENTIAL CARE HOME LTD,Receipts Sales Long Term Residents,67047,22/12/2016,7310429956,1817.96,,
Expenditure - Over 500,2016 09,Worcestershire County Council,Children's Services,CH-PROFIT,Early Years - 2 year old funding,E23050,KEMERTON EARLY YEARS & FOREST SCHOO,Third Party Pymts 4Yr Old Nursery Education Grant,53657,05/12/2016,7200027300,1215,,
Expenditure - Over 500,2016 09,Worcestershire County Council,Children's Services,CH-PROFIT,L&A SEN/LDD Inclusion & Assessment,E28080,KIRKLEES COUNCIL,Services Other Fees,50035,15/12/2016,4101620665,1400,,
Expenditure - Over 500,2016 09,Worcestershire County Council,"Business, Environment & Community",EN-DIR,Local Bus WCC Services,V21020,JOHNSONS COACH TRAVEL,Third Party Pymnts Other Hired & Contracted Servs,53986,08/12/2016,7190135998,2300,,
Expenditure - Over 500,2016 09,Worcestershire County Council,"Business, Environment & Community",EN-DIR,Concessionary Fares Administration,V21015,JOHNSONS COACH TRAVEL,Third Party Pymnts Public Transport Operators,54005,19/12/2016,7190136403,10221.6,,
Expenditure - Over 500,2016 09,Worcestershire County Council,"Business, Environment & Community",EN-DIR,Local Bus WCC Services,V21020,LMS TRAVEL,Third Party Pymnts Other Hired & Contracted Servs,53986,22/12/2016,7190136674,7182.5,,
Expenditure - Over 500,2016 09,Worcestershire County Council,"Business, Environment & Community",EN-DIR,Local Bus WCC Services,V21020,LMS TRAVEL,Third Party Pymnts Other Hired & Contracted Servs,53986,22/12/2016,7190136675,14546.5,,
Expenditure - Over 500,2016 09,Worcestershire County Council,Children's Services,CH-PROFIT,Early Years - 2 year old funding,E23050,LEAPFROG DAY NURSERIES LTD,Third Party Pymts 4Yr Old Nursery Education Grant,53657,05/12/2016,7200027244,3465,,
Expenditure - Over 500,2016 09,Worcestershire County Council,Children's Services,CH-PROFIT,Early Years - 2 year old funding,E23050,LEAPFROG DAY NURSERIES (TRADING) LT,Third Party Pymts 4Yr Old Nursery Education Grant,53657,05/12/2016,7200027243,2205,,
Expenditure - Over 500,2016 09,Worcestershire County Council,"Business, Environment & Community",EN-DIR,Local Bus WCC Services,V21020,LMS TRAVEL,Third Party Pymnts Other Hired & Contracted Servs,53986,22/12/2016,7190136676,5541.2,,
Expenditure - Over 500,2016 09,Worcestershire County Council,"Business, Environment & Community",EN-PROFIT,Parish Lengthsman Scheme,V16101,KEMPSEY PARISH COUNCIL,Third Party Payments Private Contractors,53974,28/12/2016,4101622871,1540,,
Expenditure - Over 500,2016 09,Worcestershire County Council,Adult Services & Health,AC-PROFIT,Equipment - Pooled Budgets,S31526,JCM SEATING SOLUTIONS LTD,Equipment Children SSD,49083,01/12/2016,4101614254,2775.68,,
Expenditure - Over 500,2016 09,Worcestershire County Council,"Business, Environment & Community",EN-DIR,Local Bus WCC Services,V21020,JOHNSONS COACH TRAVEL,Third Party Pymnts Other Hired & Contracted Servs,53986,08/12/2016,7190135996,4910,,
Expenditure - Over 500,2016 09,Worcestershire County Council,Children's Services,CH-PROFIT,FE Home/College Transport,E20227,LMS TRAVEL,PTG - Public Transport Bus,47514,22/12/2016,7190136616,900,,
Expenditure - Over 500,2016 09,Worcestershire County Council,Adult Services & Health,AC-PROFIT,Coroners Service,S80230,LGC (TEDDINGTON) LIMITED,Expenses PM Examinations Pathologists Fees,51649,15/12/2016,3300652528,811.08,,
Expenditure - Over 500,2016 09,Worcestershire County Council,Children's Services,CH-PROFIT,Early Years - 2 year old funding,E23050,LINDRIDGE PRE-SCHOOL GROUP,Third Party Pymts 4Yr Old Nursery Education Grant,53657,05/12/2016,7200027311,672,,
Expenditure - Over 500,2016 09,Worcestershire County Council,Children's Services,CH-PROFIT,Early Years - 2 year old funding,E23050,LITTLE LODGE NURSERY SCHOOL,Third Party Pymts 4Yr Old Nursery Education Grant,53657,05/12/2016,7200027318,5175,,
Expenditure - Over 500,2016 09,Worcestershire County Council,Children's Services,CH-PROFIT,Act Local Pos Activities Wyre Forest,E28006,KIDDERMINSTER & DISTRICT YOUTH TRUS,Third Party Pymts Voluntary Associations-General,53656,05/12/2016,4101616439,15983.5,,
Expenditure - Over 500,2016 09,Worcestershire County Council,Children's Services,CH-PROFIT,Primary Home/School Transport,E10037,LMS TRAVEL,PTG - Transport Tendered / Cont. Services,46021,12/12/2016,7190136283,737,,
Expenditure - Over 500,2016 09,Worcestershire County Council,Children's Services,CH-PROFIT,Primary Home/School Transport,E10037,LMS TRAVEL,PTG - Transport Tendered / Cont. Services,46021,12/12/2016,7190136291,1980,,
Expenditure - Over 500,2016 09,Worcestershire County Council,"Business, Environment & Community",EN-DIR,Concessionary Fares Administration,V21015,LMS TRAVEL,Third Party Pymnts Public Transport Operators,54005,19/12/2016,7190136404,4910.69,,
Expenditure - Over 500,2016 09,Worcestershire County Council,"Business, Environment & Community",EN-DIR,Local Bus WCC Services,V21020,LMS TRAVEL,Third Party Pymnts Other Hired & Contracted Servs,53986,19/12/2016,7190136550,6027.3,,
Expenditure - Over 500,2016 09,Worcestershire County Council,Adult Services & Health,AC-PROFIT,LD Transport (PTG) South,S34866,LMS TRAVEL,PTG - Transport Tendered / Cont. Services,46021,19/12/2016,7190136571,2131.5,,
Expenditure - Over 500,2016 09,Worcestershire County Council,Children's Services,CH-PROFIT,Early Years - 2 year old funding,E23050,TINY TOEZ AT LITTLE LORDS AND LADIE,Third Party Pymts 4Yr Old Nursery Education Grant,53657,05/12/2016,7200027421,4814.79,,
Expenditure - Over 500,2016 09,Worcestershire County Council,Children's Services,CH-PROFIT,Secondary - SEN H/S Transport,E20802,LMS TRAVEL,PTG - Transport Tendered / Cont. Services,46021,19/12/2016,7190136577,2068,,
Expenditure - Over 500,2016 09,Worcestershire County Council,Children's Services,CH-PROFIT,Special Home/School Transport,E10877,LMS TRAVEL,PTG - Transport Tendered / Cont. Services,46021,19/12/2016,7190136578,3683.9,,
Expenditure - Over 500,2016 09,Worcestershire County Council,Children's Services,CH-PROFIT,FE Home/College Transport,E20227,LMS TRAVEL,PTG - Public Transport Bus,47514,01/12/2016,7190135976,900,,
Expenditure - Over 500,2016 09,Worcestershire County Council,Children's Services,CH-PROFIT,Secondary Home/School Transport,E10707,LMS TRAVEL,PTG - Transport Tendered / Cont. Services,46021,08/12/2016,7190136117,2600,,
Expenditure - Over 500,2016 09,Worcestershire County Council,Children's Services,CH-PROFIT,Secondary Home/School Transport,E10707,LMS TRAVEL,PTG - Transport Tendered / Cont. Services,46021,08/12/2016,7190136118,1600,,
Expenditure - Over 500,2016 09,Worcestershire County Council,Adult Services & Health,AC-PROFIT,Primary Care - LARC Sex.Hlth/Contracept,S42033,LINK END SURGERY,Third Party Payments,53006,12/12/2016,4101615942,1345.66,,
Expenditure - Over 500,2016 09,Worcestershire County Council,Adult Services & Health,AC-PROFIT,North Supported Living Scheme,S31367,MACINTYRE,Third Party Payments Dom Care Frm Independent Prov,53669,12/12/2016,7320554478,543.66,,
Expenditure - Over 500,2016 09,Worcestershire County Council,Adult Services & Health,AC-PROFIT,North Supported Living Scheme,S31367,MACINTYRE,Third Party Payments Dom Care Frm Independent Prov,53669,12/12/2016,7320554480,728.37,,
Expenditure - Over 500,2016 09,Worcestershire County Council,Adult Services & Health,AC-PROFIT,Domiciliary Spot - PD,S33412,MACINTYRE,Third Party Payments Dom Care Frm Independent Prov,53669,12/12/2016,7320554481,1174.45,,
Expenditure - Over 500,2016 09,Worcestershire County Council,Adult Services & Health,AC-PROFIT,LT Residential - PD,S35441,LEONARD CHESHIRE FOUNDATION,Receipts Sales Long Term Residents,67047,22/12/2016,7310430200,2316.88,,
Expenditure - Over 500,2016 09,Worcestershire County Council,Children's Services,CH-PROFIT,Early Years - 2 year old funding,E23050,LITTLE BEARS NURSERY,Third Party Pymts 4Yr Old Nursery Education Grant,53657,05/12/2016,7200027313,2310,,
Expenditure - Over 500,2016 09,Worcestershire County Council,Adult Services & Health,AC-PROFIT,North Supported Living Scheme,S31367,MACINTYRE,Third Party Payments Purchase of Long Term Care,53667,22/12/2016,7360018287,3445.05,,
Expenditure - Over 500,2016 09,Worcestershire County Council,Adult Services & Health,AC-PROFIT,South Supportd Living Scheme,S35501,MACINTYRE,Third Party Payments Purchase of Long Term Care,53667,22/12/2016,7360018288,2537.01,,
Expenditure - Over 500,2016 09,Worcestershire County Council,Adult Services & Health,AC-PROFIT,South Supportd Living Scheme,S35501,MACINTYRE,Third Party Payments Purchase of Long Term Care,53667,22/12/2016,7360018289,2365.09,,
Expenditure - Over 500,2016 09,Worcestershire County Council,Adult Services & Health,AC-PROFIT,South Supportd Living Scheme,S35501,MACINTYRE,Third Party Payments Purchase of Long Term Care,53667,22/12/2016,7360018290,2848.25,,
